Workbook

Sheet Main
B10: 2018-10-19
B12: Sheet No. | C12: Template Name | D12: Summary
B13: 1 | C13: Future Intra | D13: For Intraday trading in F&O segment
B14: 2 | C14: Cash Intra | D14: For Intraday trading in cash market segment
B15: 3 | C15: Mid-cap Intra | D15: For Intraday trading in Mid-cap stocks
B16: 4 | C16: Bulk Deals | D16: Reveals Bulk Deals carried on NSE & BSE
B17: 5 | C17: Call Tracker

Sheet Future Intra
M5: Back to Main Page
A6: FOR INTRA DAY TRADING | L6: =Main!B10 -> 2018-10-19
A9: Sr.no | B9: Sector | C9: Scrip | D9: CLOSE RATE | E9: Pivot Point | F9: Supports | I9: Resistances
B10: Sector | D10: Point | E10: Point | F10: S1 | G10: S2 | H10: S3 | I10: R1 | J10: R2 | K10: R3 | L10: HIGH | M10: LOW | N10: OI | O10: % Change in OI
A11: 1 | B11: Index | C11: BANKNIFTY | D11: 25177.50 | E11: 25383.60 | F11: 24874.30 | G11: 24571.10 | H11: 24061.80 | I11: 25686.80 | J11: 26196.10 | K11: 26499.30 | L11: 25892.9 | M11: 25080.4 | N11: 1396640 | O11: -10.22%
A12: 2 | B12: Index | C12: NIFTY | D12: 10443.95 | E12: 10522.60 | F12: 10345.25 | G12: 10246.55 | H12: 10069.20 | I12: 10621.30 | J12: 10798.65 | K12: 10897.35 | L12: 10699.95 | M12: 10423.9 | N12: 22917750 | O12: -0.20%
A13: 3 | B13: Index | C13: NIFTYCPSE | D13: 2315.55 | E13: 771.85 | F13: 1543.70 | G13: 771.85 | H13: 1543.70 | I13: 1543.70 | J13: 771.85 | K13: 1543.70 | L13: 0 | M13: 0 | N13: 0 | O13: 0.00%
A14: 4 | B14: Index | C14: NIFTYINFRA | D14: 3177.55 | E14: 1059.18 | F14: 2118.37 | G14: 1059.18 | H14: 2118.37 | I14: 2118.37 | J14: 1059.18 | K14: 2118.37 | L14: 0 | M14: 0 | N14: 0 | O14: 0.00%
A15: 5 | B15: Index | C15: NIFTYIT | D15: 14915.00 | E15: 14971.33 | F15: 14819.67 | G15: 14724.33 | H15: 14572.67 | I15: 15066.67 | J15: 15218.33 | K15: 15313.67 | L15: 15123 | M15: 14876 | N15: 34250 | O15: -3.66%
A16: 6 | B16: Index | C16: NIFTYMID50 | D16: 4570.00 | E16: 4570.00 | F16: 4570.00 | G16: 4570.00 | H16: 4570.00 | I16: 4570.00 | J16: 4570.00 | K16: 4570.00 | L16: 4570 | M16: 4570 | N16: 725780 | O16: -0.02%
A17: 7 | B17: Index | C17: NIFTYPSE | D17: 3599.05 | E17: 1199.68 | F17: 2399.37 | G17: 1199.68 | H17: 2399.37 | I17: 2399.37 | J17: 1199.68 | K17: 2399.37 | L17: 0 | M17: 0 | N17: 0 | O17: 0.00%
A18: 8 | B18: Cement | C18: ACC | D18: 1526.70 | E18: 1536.47 | F18: 1498.93 | G18: 1471.17 | H18: 1433.63 | I18: 1564.23 | J18: 1601.77 | K18: 1629.53 | L18: 1574 | M18: 1508.7 | N18: 1160800 | O18: 0.83%
A19: 9 | B19: Others | C19: ADANIENT | D19: 162.10 | E19: 160.27 | F19: 156.58 | G19: 151.07 | H19: 147.38 | I19: 165.78 | J19: 169.47 | K19: 174.98 | L19: 163.95 | M19: 154.75 | N19: 39844000 | O19: -0.03%
A20: 10 | B20: Others | C20: ADANIPORTS | D20: 314.50 | E20: 321.45 | F20: 303.30 | G20: 292.10 | H20: 273.95 | I20: 332.65 | J20: 350.80 | K20: 362.00 | L20: 339.6 | M20: 310.25 | N20: 14880000 | O20: 1.52%
A21: 11 | B21: Power | C21: ADANIPOWER | D21: 34.65 | E21: 35.17 | F21: 33.08 | G21: 31.52 | H21: 29.43 | I21: 36.73 | J21: 38.82 | K21: 40.38 | L21: 37.25 | M21: 33.6 | N21: 164820000 | O21: -1.82%
A22: 12 | B22: Pharma | C22: AJANTPHARM | D22: 1001.95 | E22: 1010.12 | F22: 980.73 | G22: 959.52 | H22: 930.13 | I22: 1031.33 | J22: 1060.72 | K22: 1081.93 | L22: 1039.5 | M22: 988.9 | N22: 614500 | O22: 1.74%
A23: 13 | B23: Banking | C23: ALBK | D23: 37.85 | E23: 38.18 | F23: 36.87 | G23: 35.88 | H23: 34.57 | I23: 39.17 | J23: 40.48 | K23: 41.47 | L23: 39.5 | M23: 37.2 | N23: 19008000 | O23: 1.23%
A24: 14 | B24: Automobile | C24: AMARAJABAT | D24: 738.30 | E24: 746.57 | F24: 727.18 | G24: 716.07 | H24: 696.68 | I24: 757.68 | J24: 777.07 | K24: 788.18 | L24: 765.95 | M24: 735.45 | N24: 1392300 | O24: 1.27%
A25: 15 | B25: Cement | C25: AMBUJACEM | D25: 218.75 | E25: 221.08 | F25: 214.57 | G25: 210.38 | H25: 203.87 | I25: 225.27 | J25: 231.78 | K25: 235.97 | L25: 227.6 | M25: 216.9 | N25: 13142500 | O25: 3.57%
A26: 17 | B26: Others | C26: APOLLOHOSP | D26: 1121.95 | E26: 1125.07 | F26: 1103.33 | G26: 1084.72 | H26: 1062.98 | I26: 1143.68 | J26: 1165.42 | K26: 1184.03 | L26: 1146.8 | M26: 1106.45 | N26: 998500 | O26: -8.35%
A27: 18 | B27: Automobile | C27: APOLLOTYRE | D27: 208.95 | E27: 213.20 | F27: 203.55 | G27: 198.15 | H27: 188.50 | I27: 218.60 | J27: 228.25 | K27: 233.65 | L27: 222.85 | M27: 207.8 | N27: 10791000 | O27: -0.17%
A28: 19 | B28: Textile | C28: ARVIND | D28: 315.15 | E28: 321.57 | F28: 305.28 | G28: 295.42 | H28: 279.13 | I28: 331.43 | J28: 347.72 | K28: 357.58 | L28: 337.85 | M28: 311.7 | N28: 7074000 | O28: 2.91%
A29: 20 | B29: Automobile | C29: ASHOKLEY | D29: 114.20 | E29: 116.50 | F29: 110.05 | G29: 105.90 | H29: 99.45 | I29: 120.65 | J29: 127.10 | K29: 131.25 | L29: 122.95 | M29: 112.35 | N29: 56640000 | O29: -0.06%
A30: 21 | B30: FMCG | C30: ASIANPAINT | D30: 1255.50 | E30: 1262.68 | F30: 1245.17 | G30: 1234.83 | H30: 1217.32 | I30: 1273.02 | J30: 1290.53 | K30: 1300.87 | L30: 1280.2 | M30: 1252.35 | N30: 5736000 | O30: 1.22%
A31: 22 | B31: Pharma | C31: AUROPHARMA | D31: 755.40 | E31: 761.60 | F31: 738.80 | G31: 722.20 | H31: 699.40 | I31: 778.20 | J31: 801.00 | K31: 817.60 | L31: 784.4 | M31: 745 | N31: 20367000 | O31: -1.09%
A32: 23 | B32: Banking | C32: AXISBANK | D32: 575.80 | E32: 580.60 | F32: 562.20 | G32: 548.60 | H32: 530.20 | I32: 594.20 | J32: 612.60 | K32: 626.20 | L32: 599 | M32: 567 | N32: 41638800 | O32: 0.37%
A33: 24 | B33: Automobile | C33: BAJAJ-AUTO | D33: 2551.00 | E33: 2579.72 | F33: 2512.43 | G33: 2473.87 | H33: 2406.58 | I33: 2618.28 | J33: 2685.57 | K33: 2724.13 | L33: 2647 | M33: 2541.15 | N33: 2584750 | O33: 1.14%
A34: 25 | B34: Others | C34: BAJAJFINSV | D34: 5385.05 | E34: 5494.98 | F34: 5250.07 | G34: 5115.08 | H34: 4870.17 | I34: 5629.97 | J34: 5874.88 | K34: 6009.87 | L34: 5739.9 | M34: 5360 | N34: 772125 | O34: 3.14%
A35: 26 | B35: Finance | C35: BAJFINANCE | D35: 2147.50 | E35: 2215.50 | F35: 2062.00 | G35: 1976.50 | H35: 1823.00 | I35: 2301.00 | J35: 2454.50 | K35: 2540.00 | L35: 2369 | M35: 2130 | N35: 7870500 | O35: 8.30%
A36: 27 | B36: Others | C36: BALKRISIND | D36: 1031.25 | E36: 1038.95 | F36: 1017.90 | G36: 1004.55 | H36: 983.50 | I36: 1052.30 | J36: 1073.35 | K36: 1086.70 | L36: 1060 | M36: 1025.6 | N36: 1856000 | O36: -5.23%
A37: 29 | B37: Banking | C37: BANKBARODA | D37: 99.40 | E37: 100.30 | F37: 97.65 | G37: 95.90 | H37: 93.25 | I37: 102.05 | J37: 104.70 | K37: 106.45 | L37: 102.95 | M37: 98.55 | N37: 80936000 | O37: -4.43%
A38: 30 | B38: Banking | C38: BANKINDIA | D38: 76.80 | E38: 78.45 | F38: 74.75 | G38: 72.70 | H38: 69.00 | I38: 80.50 | J38: 84.20 | K38: 86.25 | L38: 82.15 | M38: 76.4 | N38: 21564000 | O38: 3.96%
A39: 31 | B39: FMCG | C39: BATAINDIA | D39: 912.20 | E39: 924.40 | F39: 893.80 | G39: 875.40 | H39: 844.80 | I39: 942.80 | J39: 973.40 | K39: 991.80 | L39: 955 | M39: 906 | N39: 1691800 | O39: 1.99%
A40: 32 | B40: Capital_Goods | C40: BEL | D40: 85.30 | E40: 86.45 | F40: 83.65 | G40: 82.00 | H40: 79.20 | I40: 88.10 | J40: 90.90 | K40: 92.55 | L40: 89.25 | M40: 84.8 | N40: 29625750 | O40: 1.58%
A41: 33 | B41: Infrastructure | C41: BEML | D41: 588.80 | E41: 603.57 | F41: 567.48 | G41: 546.17 | H41: 510.08 | I41: 624.88 | J41: 660.97 | K41: 682.28 | L41: 639.65 | M41: 582.25 | N41: 1648000 | O41: 3.68%
A42: 34 | B42: Others | C42: BERGEPAINT | D42: 287.50 | E42: 286.50 | F42: 284.10 | G42: 280.70 | H42: 278.30 | I42: 289.90 | J42: 292.30 | K42: 295.70 | L42: 288.9 | M42: 283.1 | N42: 2697200 | O42: 17.21%
A43: 35 | B43: Finance | C43: BHARATFIN | D43: 984.30 | E43: 996.70 | F43: 969.50 | G43: 954.70 | H43: 927.50 | I43: 1011.50 | J43: 1038.70 | K43: 1053.50 | L43: 1023.9 | M43: 981.9 | N43: 6448500 | O43: 15.46%
A44: 36 | B44: Automobile | C44: BHARATFORG | D44: 561.60 | E44: 569.87 | F44: 551.73 | G44: 541.87 | H44: 523.73 | I44: 579.73 | J44: 597.87 | K44: 607.73 | L44: 588 | M44: 560 | N44: 7176000 | O44: 1.84%
A45: 37 | B45: Telecom | C45: BHARTIARTL | D45: 288.55 | E45: 290.55 | F45: 282.40 | G45: 276.25 | H45: 268.10 | I45: 296.70 | J45: 304.85 | K45: 311.00 | L45: 298.7 | M45: 284.4 | N45: 55787200 | O45: 0.48%
A46: 38 | B46: Capital_Goods | C46: BHEL | D46: 73.90 | E46: 74.92 | F46: 72.18 | G46: 70.47 | H46: 67.73 | I46: 76.63 | J46: 79.37 | K46: 81.08 | L46: 77.65 | M46: 73.2 | N46: 38190000 | O46: -0.33%
A47: 39 | B47: Pharma | C47: BIOCON | D47: 635.20 | E47: 634.25 | F47: 623.10 | G47: 611.00 | H47: 599.85 | I47: 646.35 | J47: 657.50 | K47: 669.60 | L47: 645.4 | M47: 622.15 | N47: 6598800 | O47: -2.58%
A48: 40 | B48: Automobile | C48: BOSCHLTD | D48: 18354.80 | E48: 18635.75 | F48: 18034.05 | G48: 17713.30 | H48: 17111.60 | I48: 18956.50 | J48: 19558.20 | K48: 19878.95 | L48: 19237.45 | M48: 18315 | N48: 129510 | O48: 3.06%
A49: 41 | B49: Oil_Gas | C49: BPCL | D49: 285.95 | E49: 291.60 | F49: 278.55 | G49: 271.15 | H49: 258.10 | I49: 299.00 | J49: 312.05 | K49: 319.45 | L49: 304.65 | M49: 284.2 | N49: 15402600 | O49: -0.47%
A50: 42 | B50: FMCG | C50: BRITANNIA | D50: 5536.95 | E50: 5608.07 | F50: 5438.88 | G50: 5340.82 | H50: 5171.63 | I50: 5706.13 | J50: 5875.32 | K50: 5973.38 | L50: 5777.25 | M50: 5510 | N50: 1396000 | O50: 2.29%
A51: 43 | B51: Pharma | C51: CADILAHC | D51: 377.50 | E51: 379.28 | F51: 373.57 | G51: 369.63 | H51: 363.92 | I51: 383.22 | J51: 388.93 | K51: 392.87 | L51: 385 | M51: 375.35 | N51: 9313600 | O51: 0.33%
A52: 44 | B52: Banking | C52: CANBK | D52: 220.25 | E52: 226.55 | F52: 212.60 | G52: 204.95 | H52: 191.00 | I52: 234.20 | J52: 248.15 | K52: 255.80 | L52: 240.5 | M52: 218.9 | N52: 8972000 | O52: 4.89%
A53: 45 | B53: Others | C53: CANFINHOME | D53: 231.45 | E53: 235.50 | F53: 223.30 | G53: 215.15 | H53: 202.95 | I53: 243.65 | J53: 255.85 | K53: 264.00 | L53: 247.7 | M53: 227.35 | N53: 5740000 | O53: -0.50%
A54: 46 | B54: Finance | C54: CAPF | D54: 472.15 | E54: 480.68 | F54: 461.62 | G54: 451.08 | H54: 432.02 | I54: 491.22 | J54: 510.28 | K54: 520.82 | L54: 499.75 | M54: 470.15 | N54: 6316000 | O54: 2.97%
A55: 47 | B55: Oil_Gas | C55: CASTROLIND | D55: 139.35 | E55: 140.68 | F55: 137.52 | G55: 135.68 | H55: 132.52 | I55: 142.52 | J55: 145.68 | K55: 147.52 | L55: 143.85 | M55: 138.85 | N55: 9797200 | O55: 2.28%
A56: 48 | B56: Automobile | C56: CEATLTD | D56: 1089.00 | E56: 1105.65 | F56: 1055.80 | G56: 1022.60 | H56: 972.75 | I56: 1138.85 | J56: 1188.70 | K56: 1221.90 | L56: 1155.5 | M56: 1072.45 | N56: 1026900 | O56: 2.48%
A57: 49 | B57: Textile | C57: CENTURYTEX | D57: 785.70 | E57: 802.63 | F57: 763.27 | G57: 740.83 | H57: 701.47 | I57: 825.07 | J57: 864.43 | K57: 886.87 | L57: 842 | M57: 780.2 | N57: 6106100 | O57: 0.74%
A58: 50 | B58: Power | C58: CESC | D58: 894.65 | E58: 905.83 | F58: 872.82 | G58: 850.98 | H58: 817.97 | I58: 927.67 | J58: 960.68 | K58: 982.52 | L58: 938.85 | M58: 884 | N58: 5214550 | O58: -4.36%
A59: 51 | B59: Power | C59: CGPOWER | D59: 38.90 | E59: 39.72 | F59: 37.58 | G59: 36.27 | H59: 34.13 | I59: 41.03 | J59: 43.17 | K59: 44.48 | L59: 41.85 | M59: 38.4 | N59: 36732000 | O59: 0.89%
A60: 52 | B60: Others | C60: CHENNPETRO | D60: 256.15 | E60: 260.25 | F60: 249.40 | G60: 242.65 | H60: 231.80 | I60: 267.00 | J60: 277.85 | K60: 284.60 | L60: 271.1 | M60: 253.5 | N60: 1173000 | O60: -1.26%
A61: 53 | B61: Others | C61: CHOLAFIN | D61: 1131.65 | E61: 1161.37 | F61: 1090.83 | G61: 1050.02 | H61: 979.48 | I61: 1202.18 | J61: 1272.72 | K61: 1313.53 | L61: 1231.9 | M61: 1120.55 | N61: 918500 | O61: -1.92%
A62: 54 | B62: Pharma | C62: CIPLA | D62: 638.95 | E62: 639.92 | F62: 635.03 | G62: 631.12 | H62: 626.23 | I62: 643.83 | J62: 648.72 | K62: 652.63 | L62: 644.8 | M62: 636 | N62: 11202000 | O62: -0.03%
A63: 55 | B63: Others | C63: COALINDIA | D63: 280.25 | E63: 280.50 | F63: 276.80 | G63: 273.35 | H63: 269.65 | I63: 283.95 | J63: 287.65 | K63: 291.10 | L63: 284.2 | M63: 277.05 | N63: 21538000 | O63: 0.43%
A64: 56 | B64: FMCG | C64: COLPAL | D64: 1087.45 | E64: 1096.40 | F64: 1074.05 | G64: 1060.65 | H64: 1038.30 | I64: 1109.80 | J64: 1132.15 | K64: 1145.55 | L64: 1118.75 | M64: 1083 | N64: 1670200 | O64: 4.88%
A65: 57 | B65: Others | C65: CONCOR | D65: 597.65 | E65: 601.67 | F65: 591.48 | G65: 585.32 | H65: 575.13 | I65: 607.83 | J65: 618.02 | K65: 624.18 | L65: 611.85 | M65: 595.5 | N65: 3220000 | O65: 2.96%
A66: 58 | B66: Capital_Goods | C66: CUMMINSIND | D66: 684.15 | E66: 690.67 | F66: 674.73 | G66: 665.32 | H66: 649.38 | I66: 700.08 | J66: 716.02 | K66: 725.43 | L66: 706.6 | M66: 681.25 | N66: 1109500 | O66: 0.63%
A67: 59 | B67: FMCG | C67: DABUR | D67: 403.70 | E67: 409.00 | F67: 395.70 | G67: 387.70 | H67: 374.40 | I67: 417.00 | J67: 430.30 | K67: 438.30 | L67: 422.3 | M67: 401 | N67: 17202500 | O67: -0.64%
A68: 60 | B68: Cement | C68: DALMIABHA | D68: 2056.10 | E68: 2075.38 | F68: 2025.77 | G68: 1995.43 | H68: 1945.82 | I68: 2105.72 | J68: 2155.33 | K68: 2185.67 | L68: 2125 | M68: 2045.05 | N68: 437400 | O68: -3.51%
A69: 61 | B69: Banking | C69: DCBBANK | D69: 159.50 | E69: 163.27 | F69: 154.03 | G69: 148.57 | H69: 139.33 | I69: 168.73 | J69: 177.97 | K69: 183.43 | L69: 172.5 | M69: 157.8 | N69: 5922000 | O69: 7.69%
A70: 62 | B70: Finance | C70: DHFL | D70: 229.95 | E70: 243.42 | F70: 214.63 | G70: 199.32 | H70: 170.53 | I70: 258.73 | J70: 287.52 | K70: 302.83 | L70: 272.2 | M70: 228.1 | N70: 20217000 | O70: 47.67%
A71: 63 | B71: Media | C71: DISHTV | D71: 50.40 | E71: 51.57 | F71: 48.88 | G71: 47.37 | H71: 44.68 | I71: 53.08 | J71: 55.77 | K71: 57.28 | L71: 54.25 | M71: 50.05 | N71: 38472000 | O71: -0.87%
A72: 64 | B72: Pharma | C72: DIVISLAB | D72: 1298.45 | E72: 1303.40 | F72: 1286.65 | G72: 1274.85 | H72: 1258.10 | I72: 1315.20 | J72: 1331.95 | K72: 1343.75 | L72: 1320.15 | M72: 1291.6 | N72: 2502400 | O72: -4.78%
A73: 65 | B73: Realty | C73: DLF | D73: 144.15 | E73: 150.00 | F73: 137.40 | G73: 130.65 | H73: 118.05 | I73: 156.75 | J73: 169.35 | K73: 176.10 | L73: 162.6 | M73: 143.25 | N73: 30790000 | O73: 8.20%
A74: 66 | B74: Pharma | C74: DRREDDY | D74: 2561.10 | E74: 2568.77 | F74: 2539.53 | G74: 2517.97 | H74: 2488.73 | I74: 2590.33 | J74: 2619.57 | K74: 2641.13 | L74: 2598 | M74: 2547.2 | N74: 4107250 | O74: -2.45%
A75: 67 | B75: Automobile | C75: EICHERMOT | D75: 22016.90 | E75: 22524.12 | F75: 21352.78 | G75: 20688.67 | H75: 19517.33 | I75: 23188.23 | J75: 24359.57 | K75: 25023.68 | L75: 23695.45 | M75: 21860 | N75: 311575 | O75: 4.53%
A76: 68 | B76: Infrastructure | C76: ENGINERSIN | D76: 114.70 | E76: 116.22 | F76: 112.63 | G76: 110.57 | H76: 106.98 | I76: 118.28 | J76: 121.87 | K76: 123.93 | L76: 119.8 | M76: 114.15 | N76: 7756000 | O76: -2.76%
A77: 69 | B77: Finance | C77: EQUITAS | D77: 125.10 | E77: 127.95 | F77: 121.40 | G77: 117.70 | H77: 111.15 | I77: 131.65 | J77: 138.20 | K77: 141.90 | L77: 134.5 | M77: 124.25 | N77: 10972000 | O77: -7.52%
A78: 70 | B78: Automobile | C78: ESCORTS | D78: 618.00 | E78: 626.82 | F78: 605.58 | G78: 593.17 | H78: 571.93 | I78: 639.23 | J78: 660.47 | K78: 672.88 | L78: 648.05 | M78: 614.4 | N78: 4556200 | O78: -3.11%
A79: 71 | B79: Automobile | C79: EXIDEIND | D79: 261.85 | E79: 263.37 | F79: 258.98 | G79: 256.12 | H79: 251.73 | I79: 266.23 | J79: 270.62 | K79: 273.48 | L79: 267.75 | M79: 260.5 | N79: 5544000 | O79: -1.35%
A80: 72 | B80: Banking | C80: FEDERALBNK | D80: 78.60 | E80: 80.15 | F80: 76.80 | G80: 75.00 | H80: 71.65 | I80: 81.95 | J80: 85.30 | K80: 87.10 | L80: 83.5 | M80: 78.35 | N80: 49742000 | O80: -2.37%
A81: 73 | B81: Oil_Gas | C81: GAIL | D81: 346.10 | E81: 351.38 | F81: 339.07 | G81: 332.03 | H81: 319.72 | I81: 358.42 | J81: 370.73 | K81: 377.77 | L81: 363.7 | M81: 344.35 | N81: 20791932 | O81: 2.28%
A82: 74 | B82: Pharma | C82: GLENMARK | D82: 599.70 | E82: 602.37 | F82: 592.33 | G82: 584.97 | H82: 574.93 | I82: 609.73 | J82: 619.77 | K82: 627.13 | L82: 612.4 | M82: 595 | N82: 4397000 | O82: 0.05%
A83: 75 | B83: Infrastructure | C83: GMRINFRA | D83: 15.75 | E83: 16.10 | F83: 15.25 | G83: 14.75 | H83: 13.90 | I83: 16.60 | J83: 17.45 | K83: 17.95 | L83: 16.95 | M83: 15.6 | N83: 197235000 | O83: 5.87%
A84: 76 | B84: Others | C84: GODFRYPHLP | D84: 739.45 | E84: 743.83 | F84: 726.17 | G84: 712.88 | H84: 695.22 | I84: 757.12 | J84: 774.78 | K84: 788.07 | L84: 761.5 | M84: 730.55 | N84: 539000 | O84: -0.39%
A85: 77 | B85: FMCG | C85: GODREJCP | D85: 734.70 | E85: 742.92 | F85: 722.13 | G85: 709.57 | H85: 688.78 | I85: 755.48 | J85: 776.27 | K85: 788.83 | L85: 763.7 | M85: 730.35 | N85: 4908000 | O85: -2.43%
A86: 78 | B86: FMCG | C86: GODREJIND | D86: 471.00 | E86: 480.17 | F86: 459.43 | G86: 447.87 | H86: 427.13 | I86: 491.73 | J86: 512.47 | K86: 524.03 | L86: 500.9 | M86: 468.6 | N86: 2109000 | O86: -1.54%
A87: 79 | B87: Pharma | C87: GRANULES | D87: 94.15 | E87: 95.73 | F87: 92.02 | G87: 89.88 | H87: 86.17 | I87: 97.87 | J87: 101.58 | K87: 103.72 | L87: 99.45 | M87: 93.6 | N87: 12980000 | O87: -0.92%
A88: 80 | B88: Cement | C88: GRASIM | D88: 883.50 | E88: 894.57 | F88: 869.13 | G88: 854.77 | H88: 829.33 | I88: 908.93 | J88: 934.37 | K88: 948.73 | L88: 920 | M88: 880.2 | N88: 4551000 | O88: -0.96%
A89: 81 | B89: Others | C89: GSFC | D89: 93.15 | E89: 95.20 | F89: 90.45 | G89: 87.75 | H89: 83.00 | I89: 97.90 | J89: 102.65 | K89: 105.35 | L89: 99.95 | M89: 92.5 | N89: 13756500 | O89: 1.46%
A90: 82 | B90: Others | C90: HAVELLS | D90: 587.65 | E90: 594.78 | F90: 571.17 | G90: 554.68 | H90: 531.07 | I90: 611.27 | J90: 634.88 | K90: 651.37 | L90: 618.4 | M90: 578.3 | N90: 4798000 | O90: 3.18%
A91: 83 | B91: Others | C91: HCC | D91: 12.45 | E91: 12.85 | F91: 11.90 | G91: 11.35 | H91: 10.40 | I91: 13.40 | J91: 14.35 | K91: 14.90 | L91: 13.8 | M91: 12.3 | N91: 32022000 | O91: -0.84%
A92: 84 | B92: Technology | C92: HCLTECH | D92: 1024.75 | E92: 1025.37 | F92: 1009.93 | G92: 995.12 | H92: 979.68 | I92: 1040.18 | J92: 1055.62 | K92: 1070.43 | L92: 1040.8 | M92: 1010.55 | N92: 8602300 | O92: -2.50%
A93: 85 | B93: Finance | C93: HDFC | D93: 1737.65 | E93: 1748.57 | F93: 1720.08 | G93: 1702.52 | H93: 1674.03 | I93: 1766.13 | J93: 1794.62 | K93: 1812.18 | L93: 1777.05 | M93: 1731 | N93: 24170000 | O93: -1.13%
A94: 86 | B94: Banking | C94: HDFCBANK | D94: 1976.20 | E94: 1986.48 | F94: 1957.97 | G94: 1939.73 | H94: 1911.22 | I94: 2004.72 | J94: 2033.23 | K94: 2051.47 | L94: 2015 | M94: 1968.25 | N94: 11937000 | O94: -2.12%
A95: 88 | B95: Automobile | C95: HEROMOTOCO | D95: 2810.05 | E95: 2856.02 | F95: 2725.43 | G95: 2640.82 | H95: 2510.23 | I95: 2940.63 | J95: 3071.22 | K95: 3155.83 | L95: 2986.6 | M95: 2771.4 | N95: 1716400 | O95: 1.71%
A96: 89 | B96: Technology | C96: HEXAWARE | D96: 394.85 | E96: 396.60 | F96: 389.85 | G96: 384.85 | H96: 378.10 | I96: 401.60 | J96: 408.35 | K96: 413.35 | L96: 403.35 | M96: 391.6 | N96: 5292000 | O96: -2.19%
A97: 90 | B97: Metals | C97: HINDALCO | D97: 227.25 | E97: 228.50 | F97: 222.80 | G97: 218.35 | H97: 212.65 | I97: 232.95 | J97: 238.65 | K97: 243.10 | L97: 234.2 | M97: 224.05 | N97: 35122500 | O97: -1.76%
A98: 91 | B98: Oil_Gas | C98: HINDPETRO | D98: 207.70 | E98: 209.02 | F98: 203.23 | G98: 198.77 | H98: 192.98 | I98: 213.48 | J98: 219.27 | K98: 223.73 | L98: 214.8 | M98: 204.55 | N98: 21925575 | O98: -6.41%
A99: 92 | B99: FMCG | C99: HINDUNILVR | D99: 1552.10 | E99: 1554.15 | F99: 1539.70 | G99: 1527.30 | H99: 1512.85 | I99: 1566.55 | J99: 1581.00 | K99: 1593.40 | L99: 1568.6 | M99: 1541.75 | N99: 9789000 | O99: 0.17%
A100: 93 | B100: Metals | C100: HINDZINC | D100: 270.80 | E100: 273.60 | F100: 266.80 | G100: 262.80 | H100: 256.00 | I100: 277.60 | J100: 284.40 | K100: 288.40 | L100: 280.4 | M100: 269.6 | N100: 7564800 | O100: -0.71%
A101: 94 | B101: Finance | C101: IBULHSGFIN | D101: 778.55 | E101: 819.58 | F101: 728.97 | G101: 679.38 | H101: 588.77 | I101: 869.17 | J101: 959.78 | K101: 1009.37 | L101: 910.2 | M101: 770 | N101: 20607000 | O101: 20.00%
A102: 95 | B102: Banking | C102: ICICIBANK | D102: 314.20 | E102: 317.55 | F102: 307.90 | G102: 301.60 | H102: 291.95 | I102: 323.85 | J102: 333.50 | K102: 339.80 | L102: 327.2 | M102: 311.25 | N102: 99486750 | O102: -5.35%
A103: 96 | B103: Others | C103: ICICIPRULI | D103: 329.30 | E103: 333.07 | F103: 324.03 | G103: 318.77 | H103: 309.73 | I103: 338.33 | J103: 347.37 | K103: 352.63 | L103: 342.1 | M103: 327.8 | N103: 4451200 | O103: -5.73%
A104: 97 | B104: Banking | C104: IDBI | D104: 59.30 | E104: 59.08 | F104: 58.47 | G104: 57.63 | H104: 57.02 | I104: 59.92 | J104: 60.53 | K104: 61.37 | L104: 59.7 | M104: 58.25 | N104: 45680000 | O104: -1.08%
A105: 98 | B105: Telecom | C105: IDEA | D105: 37.95 | E105: 37.67 | F105: 37.13 | G105: 36.32 | H105: 35.78 | I105: 38.48 | J105: 39.02 | K105: 39.83 | L105: 38.2 | M105: 36.85 | N105: 146755000 | O105: -1.35%
A106: 99 | B106: Finance | C106: IDFC | D106: 37.80 | E106: 38.40 | F106: 36.75 | G106: 35.70 | H106: 34.05 | I106: 39.45 | J106: 41.10 | K106: 42.15 | L106: 40.05 | M106: 37.35 | N106: 115275600 | O106: 0.36%
A107: 100 | B107: Banking | C107: IDFCBANK | D107: 35.00 | E107: 35.57 | F107: 34.18 | G107: 33.37 | H107: 31.98 | I107: 36.38 | J107: 37.77 | K107: 38.58 | L107: 36.95 | M107: 34.75 | N107: 130075000 | O107: 1.20%
A108: 101 | B108: Finance | C108: IFCI | D108: 13.15 | E108: 13.42 | F108: 12.78 | G108: 12.42 | H108: 11.78 | I108: 13.78 | J108: 14.42 | K108: 14.78 | L108: 14.05 | M108: 13.05 | N108: 61075000 | O108: -1.49%
A109: 102 | B109: Oil_Gas | C109: IGL | D109: 242.05 | E109: 244.53 | F109: 238.12 | G109: 234.18 | H109: 227.77 | I109: 248.47 | J109: 254.88 | K109: 258.82 | L109: 250.95 | M109: 240.6 | N109: 3308250 | O109: -2.91%
A110: 103 | B110: Cement | C110: INDIACEM | D110: 93.60 | E110: 95.70 | F110: 91.15 | G110: 88.70 | H110: 84.15 | I110: 98.15 | J110: 102.70 | K110: 105.15 | L110: 100.25 | M110: 93.25 | N110: 18637500 | O110: 2.38%
A111: 104 | B111: Banking | C111: INDIANB | D111: 226.05 | E111: 232.57 | F111: 217.58 | G111: 209.12 | H111: 194.13 | I111: 241.03 | J111: 256.02 | K111: 264.48 | L111: 247.55 | M111: 224.1 | N111: 4904000 | O111: -0.93%
A112: 105 | B112: Others | C112: INDIGO | D112: 836.90 | E112: 848.02 | F112: 817.28 | G112: 797.67 | H112: 766.93 | I112: 867.63 | J112: 898.37 | K112: 917.98 | L112: 878.75 | M112: 828.4 | N112: 3574200 | O112: -2.81%
A113: 106 | B113: Banking | C113: INDUSINDBK | D113: 1600.35 | E113: 1616.12 | F113: 1579.23 | G113: 1558.12 | H113: 1521.23 | I113: 1637.23 | J113: 1674.12 | K113: 1695.23 | L113: 1653 | M113: 1595 | N113: 7311900 | O113: -0.11%
A114: 107 | B114: Technology | C114: INFIBEAM | D114: 51.25 | E114: 51.35 | F114: 49.60 | G114: 47.95 | H114: 46.20 | I114: 53.00 | J114: 54.75 | K114: 56.40 | L114: 53.1 | M114: 49.7 | N114: 26088000 | O114: -1.85%
A115: 108 | B115: Telecom | C115: INFRATEL | D115: 260.85 | E115: 263.87 | F115: 256.08 | G115: 251.32 | H115: 243.53 | I115: 268.63 | J115: 276.42 | K115: 281.18 | L115: 271.65 | M115: 259.1 | N115: 7301500 | O115: 4.00%
A116: 109 | B116: Technology | C116: INFY | D116: 700.05 | E116: 704.02 | F116: 692.03 | G116: 684.02 | H116: 672.03 | I116: 712.03 | J116: 724.02 | K116: 732.03 | L116: 716 | M116: 696 | N116: 36794400 | O116: 8.69%
A117: 110 | B117: Oil_Gas | C117: IOC | D117: 132.55 | E117: 133.85 | F117: 130.80 | G117: 129.05 | H117: 126.00 | I117: 135.60 | J117: 138.65 | K117: 140.40 | L117: 136.9 | M117: 132.1 | N117: 32799000 | O117: -1.45%
A118: 111 | B118: Infrastructure | C118: IRB | D118: 125.55 | E118: 127.88 | F118: 122.32 | G118: 119.08 | H118: 113.52 | I118: 131.12 | J118: 136.68 | K118: 139.92 | L118: 133.45 | M118: 124.65 | N118: 14392500 | O118: 1.50%
A119: 112 | B119: FMCG | C119: ITC | D119: 285.90 | E119: 286.37 | F119: 281.18 | G119: 276.47 | H119: 271.28 | I119: 291.08 | J119: 296.27 | K119: 300.98 | L119: 291.55 | M119: 281.65 | N119: 73552800 | O119: -2.72%
A120: 113 | B120: Others | C120: JETAIRWAYS | D120: 216.25 | E120: 216.73 | F120: 209.97 | G120: 203.68 | H120: 196.92 | I120: 223.02 | J120: 229.78 | K120: 236.07 | L120: 223.5 | M120: 210.45 | N120: 7528800 | O120: 14.34%
A121: 114 | B121: Metals | C121: JINDALSTEL | D121: 168.60 | E121: 172.87 | F121: 163.28 | G121: 157.97 | H121: 148.38 | I121: 178.18 | J121: 187.77 | K121: 193.08 | L121: 182.45 | M121: 167.55 | N121: 27877500 | O121: -0.44%
A122: 115 | B122: Others | C122: JISLJALEQS | D122: 65.65 | E122: 66.77 | F122: 63.88 | G122: 62.12 | H122: 59.23 | I122: 68.53 | J122: 71.42 | K122: 73.18 | L122: 69.65 | M122: 65 | N122: 36072000 | O122: 1.31%
A123: 116 | B123: Realty | C123: JPASSOCIAT | D123: 6.80 | E123: 7.00 | F123: 6.40 | G123: 6.00 | H123: 5.40 | I123: 7.40 | J123: 8.00 | K123: 8.40 | L123: 7.6 | M123: 6.6 | N123: 175440000 | O123: 0.57%
A124: 117 | B124: Metals | C124: JSWSTEEL | D124: 361.45 | E124: 366.13 | F124: 354.12 | G124: 346.78 | H124: 334.77 | I124: 373.47 | J124: 385.48 | K124: 392.82 | L124: 378.15 | M124: 358.8 | N124: 52908000 | O124: 3.06%
A125: 118 | B125: Others | C125: JUBLFOOD | D125: 1204.95 | E125: 1221.20 | F125: 1176.00 | G125: 1147.05 | H125: 1101.85 | I125: 1250.15 | J125: 1295.35 | K125: 1324.30 | L125: 1266.4 | M125: 1192.25 | N125: 3017000 | O125: -4.86%
A126: 119 | B126: Others | C126: JUSTDIAL | D126: 485.15 | E126: 490.60 | F126: 470.55 | G126: 455.95 | H126: 435.90 | I126: 505.20 | J126: 525.25 | K126: 539.85 | L126: 510.65 | M126: 476 | N126: 2567600 | O126: 1.38%
A127: 120 | B127: Others | C127: KAJARIACER | D127: 351.50 | E127: 358.02 | F127: 340.68 | G127: 329.87 | H127: 312.53 | I127: 368.83 | J127: 386.17 | K127: 396.98 | L127: 375.35 | M127: 347.2 | N127: 2396000 | O127: 0.34%
A128: 121 | B128: Banking | C128: KOTAKBANK | D128: 1170.85 | E128: 1175.02 | F128: 1163.48 | G128: 1156.12 | H128: 1144.58 | I128: 1182.38 | J128: 1193.92 | K128: 1201.28 | L128: 1186.55 | M128: 1167.65 | N128: 11868000 | O128: 2.93%
A129: 122 | B129: Technology | C129: KPIT | D129: 207.60 | E129: 210.42 | F129: 202.38 | G129: 197.17 | H129: 189.13 | I129: 215.63 | J129: 223.67 | K129: 228.88 | L129: 218.45 | M129: 205.2 | N129: 9760500 | O129: -4.11%
A130: 123 | B130: Others | C130: KSCL | D130: 512.75 | E130: 522.53 | F130: 498.27 | G130: 483.78 | H130: 459.52 | I130: 537.02 | J130: 561.28 | K130: 575.77 | L130: 546.8 | M130: 508.05 | N130: 931500 | O130: -9.87%
A131: 124 | B131: Banking | C131: KTKBANK | D131: 97.90 | E131: 98.93 | F131: 96.42 | G131: 94.93 | H131: 92.42 | I131: 100.42 | J131: 102.93 | K131: 104.42 | L131: 101.45 | M131: 97.45 | N131: 19669500 | O131: 0.74%
A132: 125 | B132: Finance | C132: L&TFH | D132: 120.65 | E132: 124.63 | F132: 115.27 | G132: 109.88 | H132: 100.52 | I132: 130.02 | J132: 139.38 | K132: 144.77 | L132: 134 | M132: 119.25 | N132: 33318000 | O132: 10.01%
A133: 126 | B133: Finance | C133: LICHSGFIN | D133: 433.20 | E133: 437.33 | F133: 423.57 | G133: 413.93 | H133: 400.17 | I133: 446.97 | J133: 460.73 | K133: 470.37 | L133: 451.1 | M133: 427.7 | N133: 9472100 | O133: -0.19%
A134: 127 | B134: Capital_Goods | C134: LT | D134: 1213.25 | E134: 1221.13 | F134: 1202.42 | G134: 1191.58 | H134: 1172.87 | I134: 1231.97 | J134: 1250.68 | K134: 1261.52 | L134: 1239.85 | M134: 1210.3 | N134: 13140750 | O134: 1.04%
A135: 128 | B135: Pharma | C135: LUPIN | D135: 893.75 | E135: 895.80 | F135: 881.60 | G135: 869.45 | H135: 855.25 | I135: 907.95 | J135: 922.15 | K135: 934.30 | L135: 910 | M135: 883.65 | N135: 9156000 | O135: 0.65%
A136: 129 | B136: Automobile | C136: M&M | D136: 759.20 | E136: 766.55 | F136: 742.80 | G136: 726.40 | H136: 702.65 | I136: 782.95 | J136: 806.70 | K136: 823.10 | L136: 790.3 | M136: 750.15 | N136: 18258000 | O136: -1.73%
A137: 130 | B137: Finance | C137: M&MFIN | D137: 367.05 | E137: 378.72 | F137: 353.08 | G137: 339.12 | H137: 313.48 | I137: 392.68 | J137: 418.32 | K137: 432.28 | L137: 404.35 | M137: 364.75 | N137: 10655000 | O137: 2.76%
A138: 131 | B138: Others | C138: MANAPPURAM | D138: 70.95 | E138: 72.45 | F138: 68.90 | G138: 66.85 | H138: 63.30 | I138: 74.50 | J138: 78.05 | K138: 80.10 | L138: 76 | M138: 70.4 | N138: 19602000 | O138: 0.12%
A139: 132 | B139: FMCG | C139: MARICO | D139: 313.95 | E139: 317.17 | F139: 309.23 | G139: 304.52 | H139: 296.58 | I139: 321.88 | J139: 329.82 | K139: 334.53 | L139: 325.1 | M139: 312.45 | N139: 7982000 | O139: -2.38%
A140: 133 | B140: Automobile | C140: MARUTI | D140: 6883.95 | E140: 6998.13 | F140: 6747.27 | G140: 6610.58 | H140: 6359.72 | I140: 7134.82 | J140: 7385.68 | K140: 7522.37 | L140: 7249 | M140: 6861.45 | N140: 2865675 | O140: 1.94%
A141: 134 | B141: FMCG | C141: MCDOWELL-N | D141: 533.95 | E141: 537.48 | F141: 521.97 | G141: 509.98 | H141: 494.47 | I141: 549.47 | J141: 564.98 | K141: 576.97 | L141: 553 | M141: 525.5 | N141: 12362500 | O141: 3.67%
A142: 135 | B142: Others | C142: MCX | D142: 784.00 | E142: 788.03 | F142: 764.97 | G142: 745.93 | H142: 722.87 | I142: 807.07 | J142: 830.13 | K142: 849.17 | L142: 811.1 | M142: 769 | N142: 4514300 | O142: 1.67%
A143: 136 | B143: Finance | C143: MFSL | D143: 383.70 | E143: 388.82 | F143: 375.88 | G143: 368.07 | H143: 355.13 | I143: 396.63 | J143: 409.57 | K143: 417.38 | L143: 401.75 | M143: 381 | N143: 2307600 | O143: -5.08%
A144: 137 | B144: Others | C144: MGL | D144: 819.40 | E144: 826.17 | F144: 806.33 | G144: 793.27 | H144: 773.43 | I144: 839.23 | J144: 859.07 | K144: 872.13 | L144: 846 | M144: 813.1 | N144: 1824600 | O144: -2.41%
A145: 138 | B145: Technology | C145: MINDTREE | D145: 979.65 | E145: 975.18 | F145: 955.47 | G145: 931.28 | H145: 911.57 | I145: 999.37 | J145: 1019.08 | K145: 1043.27 | L145: 994.9 | M145: 951 | N145: 4515600 | O145: 2.51%
A146: 139 | B146: Automobile | C146: MOTHERSUMI | D146: 249.60 | E146: 248.90 | F146: 244.45 | G146: 239.30 | H146: 234.85 | I146: 254.05 | J146: 258.50 | K146: 263.65 | L146: 253.35 | M146: 243.75 | N146: 15624000 | O146: -2.70%
A147: 140 | B147: Automobile | C147: MRF | D147: 61996.15 | E147: 62752.87 | F147: 61105.73 | G147: 60215.32 | H147: 58568.18 | I147: 63643.28 | J147: 65290.42 | K147: 66180.83 | L147: 64400 | M147: 61862.45 | N147: 26310 | O147: -5.09%
A148: 141 | B148: Others | C148: MRPL | D148: 81.55 | E148: 82.82 | F148: 79.18 | G148: 76.82 | H148: 73.18 | I148: 85.18 | J148: 88.82 | K148: 91.18 | L148: 86.45 | M148: 80.45 | N148: 4864500 | O148: -1.28%
A149: 142 | B149: Finance | C149: MUTHOOTFIN | D149: 391.25 | E149: 396.53 | F149: 383.07 | G149: 374.88 | H149: 361.42 | I149: 404.72 | J149: 418.18 | K149: 426.37 | L149: 410 | M149: 388.35 | N149: 2500500 | O149: 2.46%
A150: 143 | B150: Others | C150: NATIONALUM | D150: 65.75 | E150: 66.33 | F150: 64.72 | G150: 63.68 | H150: 62.07 | I150: 67.37 | J150: 68.98 | K150: 70.02 | L150: 67.95 | M150: 65.3 | N150: 40904000 | O150: -2.61%
A151: 144 | B151: Others | C151: NBCC | D151: 56.35 | E151: 57.10 | F151: 54.80 | G151: 53.25 | H151: 50.95 | I151: 58.65 | J151: 60.95 | K151: 62.50 | L151: 59.4 | M151: 55.55 | N151: 27318000 | O151: -4.17%
A152: 145 | B152: Infrastructure | C152: NCC | D152: 68.80 | E152: 70.82 | F152: 65.73 | G152: 62.67 | H152: 57.58 | I152: 73.88 | J152: 78.97 | K152: 82.03 | L152: 75.9 | M152: 67.75 | N152: 46816000 | O152: -2.60%
A153: 146 | B153: Others | C153: NESTLEIND | D153: 9743.75 | E153: 9765.33 | F153: 9653.42 | G153: 9563.08 | H153: 9451.17 | I153: 9855.67 | J153: 9967.58 | K153: 10057.92 | L153: 9877.25 | M153: 9675 | N153: 368800 | O153: 1.68%
A154: 147 | B154: Power | C154: NHPC | D154: 23.60 | E154: 23.83 | F154: 23.27 | G154: 22.93 | H154: 22.37 | I154: 24.17 | J154: 24.73 | K154: 25.07 | L154: 24.4 | M154: 23.5 | N154: 22707000 | O154: -1.75%
A155: 148 | B155: Technology | C155: NIITTECH | D155: 1194.40 | E155: 1178.53 | F155: 1138.57 | G155: 1082.73 | H155: 1042.77 | I155: 1234.37 | J155: 1274.33 | K155: 1330.17 | L155: 1218.5 | M155: 1122.7 | N155: 2121000 | O155: 25.35%
A156: 149 | B156: Metals | C156: NMDC | D156: 110.40 | E156: 111.50 | F156: 108.25 | G156: 106.10 | H156: 102.85 | I156: 113.65 | J156: 116.90 | K156: 119.05 | L156: 114.75 | M156: 109.35 | N156: 21378000 | O156: 2.18%
A157: 150 | B157: Power | C157: NTPC | D157: 163.35 | E157: 164.07 | F157: 162.03 | G157: 160.72 | H157: 158.68 | I157: 165.38 | J157: 167.42 | K157: 168.73 | L157: 166.1 | M157: 162.75 | N157: 38292000 | O157: 1.82%
A158: 151 | B158: Technology | C158: OFSS | D158: 3912.70 | E158: 3950.08 | F158: 3859.17 | G158: 3805.63 | H158: 3714.72 | I158: 4003.62 | J158: 4094.53 | K158: 4148.07 | L158: 4041 | M158: 3896.55 | N158: 298200 | O158: -0.30%
A159: 152 | B159: Oil_Gas | C159: OIL | D159: 202.50 | E159: 205.30 | F159: 198.40 | G159: 194.30 | H159: 187.40 | I159: 209.40 | J159: 216.30 | K159: 220.40 | L159: 212.2 | M159: 201.2 | N159: 3371808 | O159: -0.40%
A160: 153 | B160: Oil_Gas | C160: ONGC | D160: 161.95 | E160: 163.48 | F160: 159.17 | G160: 156.38 | H160: 152.07 | I160: 166.27 | J160: 170.58 | K160: 173.37 | L160: 167.8 | M160: 160.7 | N160: 47467500 | O160: -0.33%
A161: 154 | B161: Banking | C161: ORIENTBANK | D161: 64.95 | E161: 65.80 | F161: 63.45 | G161: 61.95 | H161: 59.60 | I161: 67.30 | J161: 69.65 | K161: 71.15 | L161: 68.15 | M161: 64.3 | N161: 13656000 | O161: -0.70%
A162: 155 | B162: Textile | C162: PAGEIND | D162: 28103.65 | E162: 28367.77 | F162: 27585.93 | G162: 27068.22 | H162: 26286.38 | I162: 28885.48 | J162: 29667.32 | K162: 30185.03 | L162: 29149.6 | M162: 27850.05 | N162: 121975 | O162: 0.12%
A163: 156 | B163: Others | C163: PCJEWELLER | D163: 56.30 | E163: 56.53 | F163: 54.67 | G163: 53.03 | H163: 51.17 | I163: 58.17 | J163: 60.03 | K163: 61.67 | L163: 58.4 | M163: 54.9 | N163: 10431000 | O163: 4.34%
A164: 157 | B164: Pharma | C164: PEL | D164: 2097.55 | E164: 2180.65 | F164: 1987.90 | G164: 1878.25 | H164: 1685.50 | I164: 2290.30 | J164: 2483.05 | K164: 2592.70 | L164: 2373.4 | M164: 2071 | N164: 3373340 | O164: 6.59%
A165: 158 | B165: Oil_Gas | C165: PETRONET | D165: 217.05 | E165: 219.70 | F165: 212.15 | G165: 207.25 | H165: 199.70 | I165: 224.60 | J165: 232.15 | K165: 237.05 | L165: 227.25 | M165: 214.8 | N165: 15186000 | O165: -1.92%
A166: 159 | B166: Finance | C166: PFC | D166: 80.25 | E166: 81.15 | F166: 78.55 | G166: 76.85 | H166: 74.25 | I166: 82.85 | J166: 85.45 | K166: 87.15 | L166: 83.75 | M166: 79.45 | N166: 81054000 | O166: -0.30%
A167: 160 | B167: FMCG | C167: PIDILITIND | D167: 962.80 | E167: 976.00 | F167: 947.00 | G167: 931.20 | H167: 902.20 | I167: 991.80 | J167: 1020.80 | K167: 1036.60 | L167: 1005 | M167: 960.2 | N167: 3496000 | O167: 2.43%
A168: 161 | B168: Banking | C168: PNB | D168: 66.40 | E168: 67.80 | F168: 64.60 | G168: 62.80 | H168: 59.60 | I168: 69.60 | J168: 72.80 | K168: 74.60 | L168: 71 | M168: 66 | N168: 115709000 | O168: 2.81%
A169: 162 | B169: Power | C169: POWERGRID | D169: 189.05 | E169: 189.13 | F169: 187.92 | G169: 186.78 | H169: 185.57 | I169: 190.27 | J169: 191.48 | K169: 192.62 | L169: 190.35 | M169: 188 | N169: 41044000 | O169: -1.63%
A170: 163 | B170: Power | C170: PTC | D170: 75.65 | E170: 76.12 | F170: 74.08 | G170: 72.52 | H170: 70.48 | I170: 77.68 | J170: 79.72 | K170: 81.28 | L170: 78.15 | M170: 74.55 | N170: 10032000 | O170: 0.40%
A171: 164 | B171: Others | C171: PVR | D171: 1317.50 | E171: 1332.70 | F171: 1289.40 | G171: 1261.30 | H171: 1218.00 | I171: 1360.80 | J171: 1404.10 | K171: 1432.20 | L171: 1376 | M171: 1304.6 | N171: 1109600 | O171: -1.91%
A172: 165 | B172: Cement | C172: RAMCOCEM | D172: 575.25 | E172: 581.97 | F172: 566.28 | G172: 557.32 | H172: 541.63 | I172: 590.93 | J172: 606.62 | K172: 615.58 | L172: 597.65 | M172: 573 | N172: 1110400 | O172: 5.23%
A173: 166 | B173: Others | C173: RAYMOND | D173: 640.15 | E173: 653.62 | F173: 622.53 | G173: 604.92 | H173: 573.83 | I173: 671.23 | J173: 702.32 | K173: 719.93 | L173: 684.7 | M173: 636 | N173: 4715200 | O173: 2.45%
A174: 167 | B174: Banking | C174: RBLBANK | D174: 535.90 | E174: 538.85 | F174: 528.70 | G174: 521.50 | H174: 511.35 | I174: 546.05 | J174: 556.20 | K174: 563.40 | L174: 549 | M174: 531.65 | N174: 5892000 | O174: 12.56%
A175: 168 | B175: Telecom | C175: RCOM | D175: 11.40 | E175: 11.57 | F175: 11.03 | G175: 10.67 | H175: 10.13 | I175: 11.93 | J175: 12.47 | K175: 12.83 | L175: 12.1 | M175: 11.2 | N175: 100604000 | O175: 0.53%
A176: 169 | B176: Power | C176: RECLTD | D176: 102.45 | E176: 103.60 | F176: 99.70 | G176: 96.95 | H176: 93.05 | I176: 106.35 | J176: 110.25 | K176: 113.00 | L176: 107.5 | M176: 100.85 | N176: 38526000 | O176: -0.83%
A177: 170 | B177: Finance | C177: RELCAPITAL | D177: 248.30 | E177: 256.43 | F177: 237.52 | G177: 226.73 | H177: 207.82 | I177: 267.22 | J177: 286.13 | K177: 296.92 | L177: 275.35 | M177: 245.65 | N177: 11064000 | O177: 0.11%
A178: 171 | B178: Oil_Gas | C178: RELIANCE | D178: 1150.50 | E178: 1158.80 | F178: 1134.85 | G178: 1119.20 | H178: 1095.25 | I178: 1174.45 | J178: 1198.40 | K178: 1214.05 | L178: 1182.75 | M178: 1143.15 | N178: 47841000 | O178: -3.32%
A179: 172 | B179: Power | C179: RELINFRA | D179: 316.05 | E179: 323.72 | F179: 304.53 | G179: 293.02 | H179: 273.83 | I179: 335.23 | J179: 354.42 | K179: 365.93 | L179: 342.9 | M179: 312.2 | N179: 7827300 | O179: 0.99%
A180: 173 | B180: Others | C180: REPCOHOME | D180: 339.55 | E180: 350.02 | F180: 321.28 | G180: 303.02 | H180: 274.28 | I180: 368.28 | J180: 397.02 | K180: 415.28 | L180: 378.75 | M180: 331.75 | N180: 612900 | O180: -0.58%
A181: 174 | B181: Power | C181: RPOWER | D181: 27.40 | E181: 27.87 | F181: 26.73 | G181: 26.07 | H181: 24.93 | I181: 28.53 | J181: 29.67 | K181: 30.33 | L181: 29 | M181: 27.2 | N181: 49868000 | O181: 1.99%
A182: 175 | B182: Metals | C182: SAIL | D182: 65.45 | E182: 66.43 | F182: 64.12 | G182: 62.78 | H182: 60.47 | I182: 67.77 | J182: 70.08 | K182: 71.42 | L182: 68.75 | M182: 65.1 | N182: 74628000 | O182: 0.48%
A183: 176 | B183: Banking | C183: SBIN | D183: 261.25 | E183: 265.57 | F183: 255.38 | G183: 249.52 | H183: 239.33 | I183: 271.43 | J183: 281.62 | K183: 287.48 | L183: 275.75 | M183: 259.7 | N183: 95610000 | O183: -2.96%
A184: 177 | B184: Cement | C184: SHREECEM | D184: 15171.10 | E184: 15423.30 | F184: 14847.85 | G184: 14524.60 | H184: 13949.15 | I184: 15746.55 | J184: 16322.00 | K184: 16645.25 | L184: 15998.75 | M184: 15100.05 | N184: 112400 | O184: -0.84%
A185: 178 | B185: Capital_Goods | C185: SIEMENS | D185: 932.90 | E185: 935.70 | F185: 924.65 | G185: 916.40 | H185: 905.35 | I185: 943.95 | J185: 955.00 | K185: 963.25 | L185: 946.75 | M185: 927.45 | N185: 1242000 | O185: -1.47%
A186: 179 | B186: Banking | C186: SOUTHBANK | D186: 14.90 | E186: 15.00 | F186: 14.65 | G186: 14.40 | H186: 14.05 | I186: 15.25 | J186: 15.60 | K186: 15.85 | L186: 15.35 | M186: 14.75 | N186: 146251233 | O186: -2.04%
A187: 180 | B187: Others | C187: SREINFRA | D187: 31.60 | E187: 32.28 | F187: 30.02 | G187: 28.43 | H187: 26.17 | I187: 33.87 | J187: 36.13 | K187: 37.72 | L187: 34.55 | M187: 30.7 | N187: 15169000 | O187: 6.91%
A188: 181 | B188: Textile | C188: SRF | D188: 1756.00 | E188: 1788.95 | F188: 1712.90 | G188: 1669.80 | H188: 1593.75 | I188: 1832.05 | J188: 1908.10 | K188: 1951.20 | L188: 1865 | M188: 1745.85 | N188: 683000 | O188: 5.24%
A189: 182 | B189: Finance | C189: SRTRANSFIN | D189: 1007.20 | E189: 1034.40 | F189: 972.80 | G189: 938.40 | H189: 876.80 | I189: 1068.80 | J189: 1130.40 | K189: 1164.80 | L189: 1096 | M189: 1000 | N189: 3949800 | O189: -1.23%
A190: 183 | B190: Pharma | C190: STAR | D190: 434.10 | E190: 438.02 | F190: 427.18 | G190: 420.27 | H190: 409.43 | I190: 444.93 | J190: 455.77 | K190: 462.68 | L190: 448.85 | M190: 431.1 | N190: 4389600 | O190: -0.07%
A191: 184 | B191: Pharma | C191: SUNPHARMA | D191: 594.00 | E191: 598.12 | F191: 587.58 | G191: 581.17 | H191: 570.63 | I191: 604.53 | J191: 615.07 | K191: 621.48 | L191: 608.65 | M191: 591.7 | N191: 32793200 | O191: -0.12%
A192: 185 | B192: Media | C192: SUNTV | D192: 653.80 | E192: 659.65 | F192: 642.30 | G192: 630.80 | H192: 613.45 | I192: 671.15 | J192: 688.50 | K192: 700.00 | L192: 677 | M192: 648.15 | N192: 6789000 | O192: -2.50%
A193: 186 | B193: Power | C193: SUZLON | D193: 6.05 | E193: 6.20 | F193: 5.80 | G193: 5.55 | H193: 5.15 | I193: 6.45 | J193: 6.85 | K193: 7.10 | L193: 6.6 | M193: 5.95 | N193: 323685000 | O193: 0.64%
A194: 187 | B194: Banking | C194: SYNDIBANK | D194: 32.35 | E194: 32.78 | F194: 31.67 | G194: 30.98 | H194: 29.87 | I194: 33.47 | J194: 34.58 | K194: 35.27 | L194: 33.9 | M194: 32.1 | N194: 26253000 | O194: -0.95%
A195: 188 | B195: Fertilisers | C195: TATACHEM | D195: 669.05 | E195: 673.27 | F195: 658.83 | G195: 648.62 | H195: 634.18 | I195: 683.48 | J195: 697.92 | K195: 708.13 | L195: 687.7 | M195: 663.05 | N195: 2910750 | O195: -0.69%
A196: 189 | B196: Telecom | C196: TATACOMM | D196: 471.20 | E196: 477.93 | F196: 462.17 | G196: 453.13 | H196: 437.37 | I196: 486.97 | J196: 502.73 | K196: 511.77 | L196: 493.7 | M196: 468.9 | N196: 2984000 | O196: -1.32%
A197: 190 | B197: Technology | C197: TATAELXSI | D197: 990.70 | E197: 1008.80 | F197: 965.75 | G197: 940.80 | H197: 897.75 | I197: 1033.75 | J197: 1076.80 | K197: 1101.75 | L197: 1051.85 | M197: 983.85 | N197: 1918400 | O197: -1.92%
A198: 191 | B198: FMCG | C198: TATAGLOBAL | D198: 230.50 | E198: 233.05 | F198: 226.70 | G198: 222.90 | H198: 216.55 | I198: 236.85 | J198: 243.20 | K198: 247.00 | L198: 239.4 | M198: 229.25 | N198: 10599750 | O198: -2.20%
A199: 192 | B199: Automobile | C199: TATAMOTORS | D199: 179.70 | E199: 182.25 | F199: 176.50 | G199: 173.30 | H199: 167.55 | I199: 185.45 | J199: 191.20 | K199: 194.40 | L199: 188 | M199: 179.05 | N199: 70791000 | O199: -0.74%
A200: 193 | B200: Automobile | C200: TATAMTRDVR | D200: 100.05 | E200: 100.78 | F200: 98.82 | G200: 97.58 | H200: 95.62 | I200: 102.02 | J200: 103.98 | K200: 105.22 | L200: 102.75 | M200: 99.55 | N200: 28778400 | O200: -0.51%
A201: 194 | B201: Power | C201: TATAPOWER | D201: 72.35 | E201: 72.80 | F201: 71.05 | G201: 69.75 | H201: 68.00 | I201: 74.10 | J201: 75.85 | K201: 77.15 | L201: 74.55 | M201: 71.5 | N201: 41670000 | O201: -4.32%
A202: 195 | B202: Metals | C202: TATASTEEL | D202: 554.75 | E202: 562.50 | F202: 545.00 | G202: 535.25 | H202: 517.75 | I202: 572.25 | J202: 589.75 | K202: 599.50 | L202: 580 | M202: 552.75 | N202: 30824172 | O202: 1.75%
A203: 196 | B203: Technology | C203: TCS | D203: 1929.20 | E203: 1945.40 | F203: 1904.15 | G203: 1879.10 | H203: 1837.85 | I203: 1970.45 | J203: 2011.70 | K203: 2036.75 | L203: 1986.65 | M203: 1920.35 | N203: 10212000 | O203: 3.14%
A204: 197 | B204: Technology | C204: TECHM | D204: 719.20 | E204: 720.37 | F204: 707.33 | G204: 695.47 | H204: 682.43 | I204: 732.23 | J204: 745.27 | K204: 757.13 | L204: 733.4 | M204: 708.5 | N204: 14107200 | O204: -3.30%
A205: 198 | B205: FMCG | C205: TITAN | D205: 800.25 | E205: 805.42 | F205: 786.33 | G205: 772.42 | H205: 753.33 | I205: 819.33 | J205: 838.42 | K205: 852.33 | L205: 824.5 | M205: 791.5 | N205: 15677250 | O205: 0.38%
A206: 199 | B206: Pharma | C206: TORNTPHARM | D206: 1563.95 | E206: 1588.60 | F206: 1535.35 | G206: 1506.75 | H206: 1453.50 | I206: 1617.20 | J206: 1670.45 | K206: 1699.05 | L206: 1641.85 | M206: 1560 | N206: 599500 | O206: 12.69%
... 33 more rows

Sheet Cash Intra
M5: Back to Main Page
A6: FOR INTRA DAY TRADING | K6: =Main!B10 -> 2018-10-19
A8: Sr.no | B8: Scrip | C8: CLOSE RATE | D8: Pivot Point | E8: Supports | H8: Resistances
C9: Point | E9: S1 | F9: S2 | G9: S3 | H9: R1 | I9: R2 | J9: R3 | K9: HIGH | L9: LOW | M9: Total Trade Quanity in Lakhs
A10: 1 | B10: Nifty 50 | C10: 10453.05 | D10: 10533.22 | E10: 10356.28 | F10: 10259.52 | G10: 10082.58 | H10: 10629.98 | I10: 10806.92 | J10: 10903.68 | K10: 10710.15 | L10: 10436.45
A11: 2 | B11: Nifty Bank | C11: 25188.6 | D11: 25401.97 | E11: 24888.58 | F11: 24588.57 | G11: 24075.18 | H11: 25701.98 | I11: 26215.37 | J11: 26515.38 | K11: 25915.35 | L11: 25101.95
A12: 3 | B12: Nifty CPSE | C12: 2165 | D12: 2181.27 | E12: 2143.23 | F12: 2121.47 | G12: 2083.43 | H12: 2203.03 | I12: 2241.07 | J12: 2262.83 | K12: 2219.3 | L12: 2159.5
A13: 4 | B13: Nifty Infra | C13: 2867.1 | D13: 2889.50 | E13: 2839.95 | F13: 2812.80 | G13: 2763.25 | H13: 2916.65 | I13: 2966.20 | J13: 2993.35 | K13: 2939.05 | L13: 2862.35
A14: 5 | B14: Nifty IT | C14: 14949.6 | D14: 15014.58 | E14: 14838.52 | F14: 14727.43 | G14: 14551.37 | H14: 15125.67 | I14: 15301.73 | J14: 15412.82 | K14: 15190.65 | L14: 14903.5
A15: 6 | B15: Nifty PSE | C15: 3367.35 | D15: 3391.20 | E15: 3337.10 | F15: 3306.85 | G15: 3252.75 | H15: 3421.45 | I15: 3475.55 | J15: 3505.80 | K15: 3445.3 | L15: 3360.95
A16: 7 | B16: Nifty Midcap 50 | C16: 4538.65 | D16: 4591.35 | E16: 4478.65 | F16: 4418.65 | G16: 4305.95 | H16: 4651.35 | I16: 4764.05 | J16: 4824.05 | K16: 4704.05 | L16: 4531.35
A17: 8 | B17: ABB | C17: 1285.1 | D17: 1292.70 | E17: 1272.40 | F17: 1259.70 | G17: 1239.40 | H17: 1305.40 | I17: 1325.70 | J17: 1338.40 | K17: 1313 | L17: 1280 | M17: 0.29508
A18: 9 | B18: ACC | C18: 1539.7 | D18: 1545.28 | E18: 1512.57 | F18: 1485.43 | G18: 1452.72 | H18: 1572.42 | I18: 1605.13 | J18: 1632.27 | K18: 1578 | L18: 1518.15 | M18: 7.99424
A19: 10 | B19: AIAENG | C19: 1579.2 | D19: 1580.13 | E19: 1555.07 | F19: 1530.93 | G19: 1505.87 | H19: 1604.27 | I19: 1629.33 | J19: 1653.47 | K19: 1605.2 | L19: 1556 | M19: 0.12837
A20: 11 | B20: AUBANK | C20: 596.05 | D20: 608.80 | E20: 579.85 | F20: 563.65 | G20: 534.70 | H20: 625.00 | I20: 653.95 | J20: 670.15 | K20: 637.75 | L20: 592.6 | M20: 2.7596
A21: 12 | B21: ADANIENT | C21: 161.75 | D21: 159.88 | E21: 156.12 | F21: 150.48 | G21: 146.72 | H21: 165.52 | I21: 169.28 | J21: 174.92 | K21: 163.65 | L21: 154.25 | M21: 116.60585
A22: 13 | B22: ADANIPORTS | C22: 313.9 | D22: 320.93 | E22: 302.57 | F22: 291.23 | G22: 272.87 | H22: 332.27 | I22: 350.63 | J22: 361.97 | K22: 339.3 | L22: 309.6 | M22: 33.23311
A23: 14 | B23: ADANIPOWER | C23: 34.45 | D23: 34.87 | E23: 32.68 | F23: 30.92 | G23: 28.73 | H23: 36.63 | I23: 38.82 | J23: 40.58 | K23: 37.05 | L23: 33.1 | M23: 503.18963
A24: 15 | B24: ABFRL | C24: 186.2 | D24: 191.47 | E24: 179.13 | F24: 172.07 | G24: 159.73 | H24: 198.53 | I24: 210.87 | J24: 217.93 | K24: 203.8 | L24: 184.4 | M24: 15.39063
A25: 16 | B25: AJANTPHARM | C25: 1001.1 | D25: 1009.63 | E25: 979.37 | F25: 957.63 | G25: 927.37 | H25: 1031.37 | I25: 1061.63 | J25: 1083.37 | K25: 1039.9 | L25: 987.9 | M25: 2.92286
A26: 17 | B26: ALKEM | C26: 1981.25 | D26: 1967.90 | E26: 1948.85 | F26: 1916.45 | G26: 1897.40 | H26: 2000.30 | I26: 2019.35 | J26: 2051.75 | K26: 1986.95 | L26: 1935.5 | M26: 0.1137
A27: 18 | B27: AMARAJABAT | C27: 745.6 | D27: 752.52 | E27: 735.28 | F27: 724.97 | G27: 707.73 | H27: 762.83 | I27: 780.07 | J27: 790.38 | K27: 769.75 | L27: 742.2 | M27: 2.74982
A28: 19 | B28: AMBUJACEM | C28: 219.3 | D28: 221.52 | E28: 215.18 | F28: 211.07 | G28: 204.73 | H28: 225.63 | I28: 231.97 | J28: 236.08 | K28: 227.85 | L28: 217.4 | M28: 53.46216
A29: 20 | B29: APOLLOHOSP | C29: 1123.7 | D29: 1128.03 | E29: 1108.22 | F29: 1092.73 | G29: 1072.92 | H29: 1143.52 | I29: 1163.33 | J29: 1178.82 | K29: 1147.85 | L29: 1112.55 | M29: 3.49443
A30: 21 | B30: APOLLOTYRE | C30: 209.3 | D30: 213.75 | E30: 203.55 | F30: 197.80 | G30: 187.60 | H30: 219.50 | I30: 229.70 | J30: 235.45 | K30: 223.95 | L30: 208 | M30: 23.46918
A31: 22 | B31: ARVIND | C31: 315.1 | D31: 321.50 | E31: 305.70 | F31: 296.30 | G31: 280.50 | H31: 330.90 | I31: 346.70 | J31: 356.10 | K31: 337.3 | L31: 312.1 | M31: 18.9351
A32: 23 | B32: ASHOKLEY | C32: 114.3 | D32: 116.65 | E32: 110.20 | F32: 106.10 | G32: 99.65 | H32: 120.75 | I32: 127.20 | J32: 131.30 | K32: 123.1 | L32: 112.55 | M32: 238.17952
A33: 24 | B33: ASIANPAINT | C33: 1259 | D33: 1265.42 | E33: 1248.58 | F33: 1238.17 | G33: 1221.33 | H33: 1275.83 | I33: 1292.67 | J33: 1303.08 | K33: 1282.25 | L33: 1255 | M33: 6.98043
A34: 25 | B34: AUROPHARMA | C34: 756.3 | D34: 762.27 | E34: 740.28 | F34: 724.27 | G34: 702.28 | H34: 778.28 | I34: 800.27 | J34: 816.28 | K34: 784.25 | L34: 746.25 | M34: 22.47685
A35: 26 | B35: DMART | C35: 1308.65 | D35: 1320.88 | E35: 1287.77 | F35: 1266.88 | G35: 1233.77 | H35: 1341.77 | I35: 1374.88 | J35: 1395.77 | K35: 1354 | L35: 1300 | M35: 5.49534
A36: 27 | B36: AXISBANK | C36: 576.05 | D36: 580.48 | E36: 562.17 | F36: 548.28 | G36: 529.97 | H36: 594.37 | I36: 612.68 | J36: 626.57 | K36: 598.8 | L36: 566.6 | M36: 96.09195
A37: 28 | B37: BAJAJ-AUTO | C37: 2547.8 | D37: 2578.48 | E37: 2507.32 | F37: 2466.83 | G37: 2395.67 | H37: 2618.97 | I37: 2690.13 | J37: 2730.62 | K37: 2649.65 | L37: 2538 | M37: 2.85116
A38: 29 | B38: BAJFINANCE | C38: 2150.5 | D38: 2217.53 | E38: 2065.82 | F38: 1981.13 | G38: 1829.42 | H38: 2302.22 | I38: 2453.93 | J38: 2538.62 | K38: 2369.25 | L38: 2132.85 | M38: 38.11985
A39: 30 | B39: BAJAJFINSV | C39: 5380.25 | D39: 5490.08 | E39: 5240.17 | F39: 5100.08 | G39: 4850.17 | H39: 5630.17 | I39: 5880.08 | J39: 6020.17 | K39: 5740 | L39: 5350 | M39: 3.01825
A40: 31 | B40: BALKRISIND | C40: 1031.05 | D40: 1038.58 | E40: 1018.17 | F40: 1005.28 | G40: 984.87 | H40: 1051.47 | I40: 1071.88 | J40: 1084.77 | K40: 1059 | L40: 1025.7 | M40: 5.47516
A41: 32 | B41: BANKBARODA | C41: 99.6 | D41: 100.33 | E41: 98.02 | F41: 96.43 | G41: 94.12 | H41: 101.92 | I41: 104.23 | J41: 105.82 | K41: 102.65 | L41: 98.75 | M41: 222.82115
A42: 33 | B42: BANKINDIA | C42: 76.75 | D42: 78.37 | E42: 74.83 | F42: 72.92 | G42: 69.38 | H42: 80.28 | I42: 83.82 | J42: 85.73 | K42: 81.9 | L42: 76.45 | M42: 68.10399
A43: 34 | B43: BATAINDIA | C43: 911.35 | D43: 923.73 | E43: 892.72 | F43: 874.08 | G43: 843.07 | H43: 942.37 | I43: 973.38 | J43: 992.02 | K43: 954.75 | L43: 905.1 | M43: 7.61943
A44: 35 | B44: BERGEPAINT | C44: 292.7 | D44: 291.57 | E44: 288.43 | F44: 284.17 | G44: 281.03 | H44: 295.83 | I44: 298.97 | J44: 303.23 | K44: 294.7 | L44: 287.3 | M44: 7.18073
A45: 36 | B45: BEL | C45: 85.5 | D45: 86.53 | E45: 83.82 | F45: 82.13 | G45: 79.42 | H45: 88.22 | I45: 90.93 | J45: 92.62 | K45: 89.25 | L45: 84.85 | M45: 39.2403
A46: 37 | B46: BHARATFIN | C46: 983.55 | D46: 995.65 | E46: 968.50 | F46: 953.45 | G46: 926.30 | H46: 1010.70 | I46: 1037.85 | J46: 1052.90 | K46: 1022.8 | L46: 980.6 | M46: 15.11775
A47: 38 | B47: BHARATFORG | C47: 560.65 | D47: 568.82 | E47: 550.88 | F47: 541.12 | G47: 523.18 | H47: 578.58 | I47: 596.52 | J47: 606.28 | K47: 586.75 | L47: 559.05 | M47: 8.66039
A48: 39 | B48: BHEL | C48: 74.15 | D48: 75.12 | E48: 72.58 | F48: 71.02 | G48: 68.48 | H48: 76.68 | I48: 79.22 | J48: 80.78 | K48: 77.65 | L48: 73.55 | M48: 79.00337
A49: 40 | B49: BPCL | C49: 285.15 | D49: 290.93 | E49: 277.42 | F49: 269.68 | G49: 256.17 | H49: 298.67 | I49: 312.18 | J49: 319.92 | K49: 304.45 | L49: 283.2 | M49: 65.19818
A50: 41 | B50: BHARTIARTL | C50: 288.5 | D50: 290.50 | E50: 282.65 | F50: 276.80 | G50: 268.95 | H50: 296.35 | I50: 304.20 | J50: 310.05 | K50: 298.35 | L50: 284.65 | M50: 38.777
A51: 42 | B51: INFRATEL | C51: 260 | D51: 262.62 | E51: 255.58 | F51: 251.17 | G51: 244.13 | H51: 267.03 | I51: 274.07 | J51: 278.48 | K51: 269.65 | L51: 258.2 | M51: 16.18929
A52: 43 | B52: BIOCON | C52: 636.55 | D52: 634.80 | E52: 624.60 | F52: 612.65 | G52: 602.45 | H52: 646.75 | I52: 656.95 | J52: 668.90 | K52: 645 | L52: 622.85 | M52: 27.30667
A53: 44 | B53: BOSCHLTD | C53: 18380 | D53: 18611.33 | E53: 18033.67 | F53: 17687.33 | G53: 17109.67 | H53: 18957.67 | I53: 19535.33 | J53: 19881.67 | K53: 19189 | L53: 18265 | M53: 0.15393
A54: 45 | B54: BRITANNIA | C54: 5541.05 | D54: 5607.93 | E54: 5438.22 | F54: 5335.38 | G54: 5165.67 | H54: 5710.77 | I54: 5880.48 | J54: 5983.32 | K54: 5777.65 | L54: 5505.1 | M54: 1.89478
A55: 46 | B55: CRISIL | C55: 1573.25 | D55: 1591.42 | E55: 1532.83 | F55: 1492.42 | G55: 1433.83 | H55: 1631.83 | I55: 1690.42 | J55: 1730.83 | K55: 1650 | L55: 1551 | M55: 0.4396
A56: 47 | B56: CADILAHC | C56: 377.55 | D56: 379.48 | E56: 374.07 | F56: 370.58 | G56: 365.17 | H56: 382.97 | I56: 388.38 | J56: 391.87 | K56: 384.9 | L56: 376 | M56: 8.16462
A57: 48 | B57: CANBK | C57: 220.65 | D57: 226.62 | E57: 212.28 | F57: 203.92 | G57: 189.58 | H57: 234.98 | I57: 249.32 | J57: 257.68 | K57: 240.95 | L57: 218.25 | M57: 71.27914
A58: 49 | B58: CASTROLIND | C58: 139.3 | D58: 140.72 | E58: 137.58 | F58: 135.87 | G58: 132.73 | H58: 142.43 | I58: 145.57 | J58: 147.28 | K58: 143.85 | L58: 139 | M58: 6.26999
A59: 50 | B59: CENTRALBK | C59: 31 | D59: 31.45 | E59: 30.00 | F59: 29.00 | G59: 27.55 | H59: 32.45 | I59: 33.90 | J59: 34.90 | K59: 32.9 | L59: 30.45 | M59: 23.90789
A60: 51 | B60: CENTURYTEX | C60: 783.3 | D60: 800.97 | E60: 760.93 | F60: 738.57 | G60: 698.53 | H60: 823.33 | I60: 863.37 | J60: 885.73 | K60: 841 | L60: 778.6 | M60: 6.84279
A61: 52 | B61: CHOLAFIN | C61: 1130.9 | D61: 1160.17 | E61: 1088.43 | F61: 1045.97 | G61: 974.23 | H61: 1202.63 | I61: 1274.37 | J61: 1316.83 | K61: 1231.9 | L61: 1117.7 | M61: 4.04796
A62: 53 | B62: CIPLA | C62: 640.45 | D62: 641.15 | E62: 636.30 | F62: 632.15 | G62: 627.30 | H62: 645.30 | I62: 650.15 | J62: 654.30 | K62: 646 | L62: 637 | M62: 12.8098
A63: 54 | B63: COALINDIA | C63: 279.9 | D63: 280.32 | E63: 276.78 | F63: 273.67 | G63: 270.13 | H63: 283.43 | I63: 286.97 | J63: 290.08 | K63: 283.85 | L63: 277.2 | M63: 30.81043
A64: 55 | B64: COLPAL | C64: 1084.7 | D64: 1092.40 | E64: 1072.80 | F64: 1060.90 | G64: 1041.30 | H64: 1104.30 | I64: 1123.90 | J64: 1135.80 | K64: 1112 | L64: 1080.5 | M64: 3.15135
A65: 56 | B65: CONCOR | C65: 599.35 | D65: 602.78 | E65: 592.57 | F65: 585.78 | G65: 575.57 | H65: 609.57 | I65: 619.78 | J65: 626.57 | K65: 613 | L65: 596 | M65: 4.4341
A66: 57 | B66: COROMANDEL | C66: 385.2 | D66: 388.03 | E66: 382.17 | F66: 379.13 | G66: 373.27 | H66: 391.07 | I66: 396.93 | J66: 399.97 | K66: 393.9 | L66: 385 | M66: 0.64384
A67: 58 | B67: CROMPTON | C67: 199.05 | D67: 199.63 | E67: 197.27 | F67: 195.48 | G67: 193.12 | H67: 201.42 | I67: 203.78 | J67: 205.57 | K67: 202 | L67: 197.85 | M67: 3.63411
A68: 59 | B68: CUMMINSIND | C68: 684.4 | D68: 691.38 | E68: 671.82 | F68: 659.23 | G68: 639.67 | H68: 703.97 | I68: 723.53 | J68: 736.12 | K68: 710.95 | L68: 678.8 | M68: 1.53319
A69: 60 | B69: DLF | C69: 144.35 | D69: 149.92 | E69: 137.43 | F69: 130.52 | G69: 118.03 | H69: 156.83 | I69: 169.32 | J69: 176.23 | K69: 162.4 | L69: 143 | M69: 119.09786
A70: 61 | B70: DABUR | C70: 403.05 | D70: 408.93 | E70: 394.87 | F70: 386.68 | G70: 372.62 | H70: 417.12 | I70: 431.18 | J70: 439.37 | K70: 423 | L70: 400.75 | M70: 38.09686
A71: 62 | B71: DALMIABHA | C71: 2058.7 | D71: 2076.60 | E71: 2034.20 | F71: 2009.70 | G71: 1967.30 | H71: 2101.10 | I71: 2143.50 | J71: 2168.00 | K71: 2119 | L71: 2052.1 | M71: 0.53011
A72: 63 | B72: DHFL | C72: 235.9 | D72: 248.13 | E72: 221.97 | F72: 208.03 | G72: 181.87 | H72: 262.07 | I72: 288.23 | J72: 302.17 | K72: 274.3 | L72: 234.2 | M72: 411.49209
A73: 64 | B73: DISHTV | C73: 50.25 | D73: 51.42 | E73: 48.83 | F73: 47.42 | G73: 44.83 | H73: 52.83 | I73: 55.42 | J73: 56.83 | K73: 54 | L73: 50 | M73: 47.69632
A74: 65 | B74: DIVISLAB | C74: 1301.2 | D74: 1304.12 | E74: 1288.78 | F74: 1276.37 | G74: 1261.03 | H74: 1316.53 | I74: 1331.87 | J74: 1344.28 | K74: 1319.45 | L74: 1291.7 | M74: 6.93098
A75: 66 | B75: LALPATHLAB | C75: 943.85 | D75: 949.95 | E75: 919.90 | F75: 895.95 | G75: 865.90 | H75: 973.90 | I75: 1003.95 | J75: 1027.90 | K75: 980 | L75: 926 | M75: 0.42504
A76: 67 | B76: DRREDDY | C76: 2565 | D76: 2572.00 | E76: 2545.00 | F76: 2525.00 | G76: 2498.00 | H76: 2592.00 | I76: 2619.00 | J76: 2639.00 | K76: 2599 | L76: 2552 | M76: 4.92009
A77: 68 | B77: EDELWEISS | C77: 167.65 | D77: 175.83 | E77: 159.47 | F77: 151.28 | G77: 134.92 | H77: 184.02 | I77: 200.38 | J77: 208.57 | K77: 192.2 | L77: 167.65 | M77: 90.16373
A78: 69 | B78: EICHERMOT | C78: 21978.1 | D78: 22518.50 | E78: 21309.60 | F78: 20641.10 | G78: 19432.20 | H78: 23187.00 | I78: 24395.90 | J78: 25064.40 | K78: 23727.4 | L78: 21850 | M78: 1.20733
A79: 70 | B79: EMAMILTD | C79: 431.2 | D79: 437.23 | E79: 421.97 | F79: 412.73 | G79: 397.47 | H79: 446.47 | I79: 461.73 | J79: 470.97 | K79: 452.5 | L79: 428 | M79: 1.79059
A80: 71 | B80: ENDURANCE | C80: 1166.15 | D80: 1170.00 | E80: 1134.15 | F80: 1102.15 | G80: 1066.30 | H80: 1202.00 | I80: 1237.85 | J80: 1269.85 | K80: 1205.85 | L80: 1138 | M80: 0.40713
A81: 72 | B81: ENGINERSIN | C81: 114.55 | D81: 116.18 | E81: 112.37 | F81: 110.18 | G81: 106.37 | H81: 118.37 | I81: 122.18 | J81: 124.37 | K81: 120 | L81: 114 | M81: 27.79816
A82: 73 | B82: EXIDEIND | C82: 262.75 | D82: 264.03 | E82: 259.82 | F82: 256.88 | G82: 252.67 | H82: 266.97 | I82: 271.18 | J82: 274.12 | K82: 268.25 | L82: 261.1 | M82: 16.42153
A83: 74 | B83: FEDERALBNK | C83: 78.5 | D83: 80.10 | E83: 76.65 | F83: 74.80 | G83: 71.35 | H83: 81.95 | I83: 85.40 | J83: 87.25 | K83: 83.55 | L83: 78.25 | M83: 227.24327
A84: 75 | B84: GAIL | C84: 345.35 | D84: 351.07 | E84: 337.88 | F84: 330.42 | G84: 317.23 | H84: 358.53 | I84: 371.72 | J84: 379.18 | K84: 364.25 | L84: 343.6 | M84: 46.43833
A85: 76 | B85: GMRINFRA | C85: 15.7 | D85: 16.05 | E85: 15.20 | F85: 14.70 | G85: 13.85 | H85: 16.55 | I85: 17.40 | J85: 17.90 | K85: 16.9 | L85: 15.55 | M85: 259.69831
A86: 77 | B86: GSKCONS | C86: 6970.65 | D86: 6986.22 | E86: 6894.43 | F86: 6818.22 | G86: 6726.43 | H86: 7062.43 | I86: 7154.22 | J86: 7230.43 | K86: 7078 | L86: 6910 | M86: 0.04789
A87: 78 | B87: GLAXO | C87: 1451.5 | D87: 1454.17 | E87: 1425.33 | F87: 1399.17 | G87: 1370.33 | H87: 1480.33 | I87: 1509.17 | J87: 1535.33 | K87: 1483 | L87: 1428 | M87: 0.34877
A88: 79 | B88: GLENMARK | C88: 599.7 | D88: 602.15 | E88: 592.55 | F88: 585.40 | G88: 575.80 | H88: 609.30 | I88: 618.90 | J88: 626.05 | K88: 611.75 | L88: 595 | M88: 5.29012
A89: 80 | B89: GODREJCP | C89: 734.3 | D89: 742.43 | E89: 722.87 | F89: 711.43 | G89: 691.87 | H89: 753.87 | I89: 773.43 | J89: 784.87 | K89: 762 | L89: 731 | M89: 9.17359
A90: 81 | B90: GODREJIND | C90: 470.15 | D90: 478.37 | E90: 458.78 | F90: 447.42 | G90: 427.83 | H90: 489.73 | I90: 509.32 | J90: 520.68 | K90: 497.95 | L90: 467 | M90: 6.74673
A91: 82 | B91: GRUH | C91: 278.75 | D91: 282.13 | E91: 274.27 | F91: 269.78 | G91: 261.92 | H91: 286.62 | I91: 294.48 | J91: 298.97 | K91: 290 | L91: 277.65 | M91: 4.37952
A92: 83 | B92: GPPL | C92: 101.6 | D92: 102.40 | E92: 100.30 | F92: 99.00 | G92: 96.90 | H92: 103.70 | I92: 105.80 | J92: 107.10 | K92: 104.5 | L92: 101.1 | M92: 2.47731
A93: 84 | B93: GSPL | C93: 167.55 | D93: 167.93 | E93: 164.07 | F93: 160.58 | G93: 156.72 | H93: 171.42 | I93: 175.28 | J93: 178.77 | K93: 171.8 | L93: 164.45 | M93: 8.26512
A94: 85 | B94: HCLTECH | C94: 1024.25 | D94: 1022.42 | E94: 1008.83 | F94: 993.42 | G94: 979.83 | H94: 1037.83 | I94: 1051.42 | J94: 1066.83 | K94: 1036 | L94: 1007 | M94: 16.26985
A95: 86 | B95: HDFCBANK | C95: 1974.6 | D95: 1983.70 | E95: 1954.40 | F95: 1934.20 | G95: 1904.90 | H95: 2003.90 | I95: 2033.20 | J95: 2053.40 | K95: 2013 | L95: 1963.5 | M95: 19.85199
A96: 87 | B96: HAVELLS | C96: 586.9 | D96: 595.18 | E96: 570.77 | F96: 554.63 | G96: 530.22 | H96: 611.32 | I96: 635.73 | J96: 651.87 | K96: 619.6 | L96: 579.05 | M96: 33.14282
A97: 88 | B97: HEROMOTOCO | C97: 2807.55 | D97: 2856.27 | E97: 2717.53 | F97: 2627.52 | G97: 2488.78 | H97: 2946.28 | I97: 3085.02 | J97: 3175.03 | K97: 2995 | L97: 2766.25 | M97: 16.25059
A98: 89 | B98: HEXAWARE | C98: 394.7 | D98: 396.23 | E98: 389.47 | F98: 384.23 | G98: 377.47 | H98: 401.47 | I98: 408.23 | J98: 413.47 | K98: 403 | L98: 391 | M98: 6.59454
A99: 90 | B99: HINDALCO | C99: 227.75 | D99: 228.43 | E99: 223.02 | F99: 218.28 | G99: 212.87 | H99: 233.17 | I99: 238.58 | J99: 243.32 | K99: 233.85 | L99: 223.7 | M99: 70.65573
A100: 91 | B100: HINDPETRO | C100: 207.3 | D100: 208.75 | E100: 203.05 | F100: 198.80 | G100: 193.10 | H100: 213.00 | I100: 218.70 | J100: 222.95 | K100: 214.45 | L100: 204.5 | M100: 76.84015
A101: 92 | B101: HINDUNILVR | C101: 1562 | D101: 1561.95 | E101: 1546.10 | F101: 1530.20 | G101: 1514.35 | H101: 1577.85 | I101: 1593.70 | J101: 1609.60 | K101: 1577.8 | L101: 1546.05 | M101: 12.23188
A102: 93 | B102: HINDZINC | C102: 270 | D102: 273.05 | E102: 266.00 | F102: 262.00 | G102: 254.95 | H102: 277.05 | I102: 284.10 | J102: 288.10 | K102: 280.1 | L102: 269.05 | M102: 8.94914
A103: 94 | B103: HUDCO | C103: 42.9 | D103: 43.47 | E103: 42.13 | F103: 41.37 | G103: 40.03 | H103: 44.23 | I103: 45.57 | J103: 46.33 | K103: 44.8 | L103: 42.7 | M103: 7.43116
A104: 95 | B104: HDFC | C104: 1737.8 | D104: 1747.43 | E104: 1719.87 | F104: 1701.93 | G104: 1674.37 | H104: 1765.37 | I104: 1792.93 | J104: 1810.87 | K104: 1775 | L104: 1729.5 | M104: 35.84746
A105: 96 | B105: ITC | C105: 286.45 | D105: 286.55 | E105: 281.45 | F105: 276.45 | G105: 271.35 | H105: 291.55 | I105: 296.65 | J105: 301.65 | K105: 291.65 | L105: 281.55 | M105: 153.07324
A106: 97 | B106: ICICIBANK | C106: 314.8 | D106: 318.20 | E106: 308.25 | F106: 301.70 | G106: 291.75 | H106: 324.75 | I106: 334.70 | J106: 341.25 | K106: 328.15 | L106: 311.65 | M106: 202.03287
A107: 98 | B107: ICICIPRULI | C107: 329.75 | D107: 333.05 | E107: 324.20 | F107: 318.65 | G107: 309.80 | H107: 338.60 | I107: 347.45 | J107: 353.00 | K107: 341.9 | L107: 327.5 | M107: 13.83904
A108: 99 | B108: IDBI | C108: 59.2 | D108: 59.33 | E108: 58.87 | F108: 58.53 | G108: 58.07 | H108: 59.67 | I108: 60.13 | J108: 60.47 | K108: 59.8 | L108: 59 | M108: 34.12915
A109: 100 | B109: IDFCBANK | C109: 35.1 | D109: 35.62 | E109: 34.33 | F109: 33.57 | G109: 32.28 | H109: 36.38 | I109: 37.67 | J109: 38.43 | K109: 36.9 | L109: 34.85 | M109: 117.19302
A110: 101 | B110: IDFC | C110: 37.65 | D110: 38.25 | E110: 36.50 | F110: 35.35 | G110: 33.60 | H110: 39.40 | I110: 41.15 | J110: 42.30 | K110: 40 | L110: 37.1 | M110: 30.85392
A111: 102 | B111: IRB | C111: 125.6 | D111: 127.72 | E111: 122.43 | F111: 119.27 | G111: 113.98 | H111: 130.88 | I111: 136.17 | J111: 139.33 | K111: 133 | L111: 124.55 | M111: 14.88984
A112: 103 | B112: IDEA | C112: 37.8 | D112: 37.55 | E112: 37.10 | F112: 36.40 | G112: 35.95 | H112: 38.25 | I112: 38.70 | J112: 39.40 | K112: 38 | L112: 36.85 | M112: 125.18731
A113: 104 | B113: IBULHSGFIN | C113: 788.65 | D113: 828.62 | E113: 737.23 | F113: 685.82 | G113: 594.43 | H113: 880.03 | I113: 971.42 | J113: 1022.83 | K113: 920 | L113: 777.2 | M113: 191.01381
A114: 105 | B114: INDIANB | C114: 226.05 | D114: 232.53 | E114: 217.52 | F114: 208.98 | G114: 193.97 | H114: 241.07 | I114: 256.08 | J114: 264.62 | K114: 247.55 | L114: 224 | M114: 17.92394
A115: 106 | B115: INDHOTEL | C115: 125.45 | D115: 125.68 | E115: 124.57 | F115: 123.68 | G115: 122.57 | H115: 126.57 | I115: 127.68 | J115: 128.57 | K115: 126.8 | L115: 124.8 | M115: 5.63336
A116: 107 | B116: IOC | C116: 132.3 | D116: 133.52 | E116: 130.53 | F116: 128.77 | G116: 125.78 | H116: 135.28 | I116: 138.27 | J116: 140.03 | K116: 136.5 | L116: 131.75 | M116: 65.07467
A117: 108 | B117: IGL | C117: 242.25 | D117: 244.90 | E117: 238.40 | F117: 234.55 | G117: 228.05 | H117: 248.75 | I117: 255.25 | J117: 259.10 | K117: 251.4 | L117: 241.05 | M117: 8.09399
A118: 109 | B118: INDUSINDBK | C118: 1603.9 | D118: 1618.82 | E118: 1585.08 | F118: 1566.27 | G118: 1532.53 | H118: 1637.63 | I118: 1671.37 | J118: 1690.18 | K118: 1652.55 | L118: 1600 | M118: 35.32784
A119: 110 | B119: NAUKRI | C119: 1501.4 | D119: 1525.03 | E119: 1451.07 | F119: 1400.73 | G119: 1326.77 | H119: 1575.37 | I119: 1649.33 | J119: 1699.67 | K119: 1599 | L119: 1474.7 | M119: 0.92451
A120: 111 | B120: INFY | C120: 705.35 | D120: 709.50 | E120: 697.20 | F120: 689.05 | G120: 676.75 | H120: 717.65 | I120: 729.95 | J120: 738.10 | K120: 721.8 | L120: 701.35 | M120: 203.60697
A121: 112 | B121: INDIGO | C121: 837.15 | D121: 848.17 | E121: 818.98 | F121: 800.82 | G121: 771.63 | H121: 866.33 | I121: 895.52 | J121: 913.68 | K121: 877.35 | L121: 830 | M121: 11.52038
A122: 113 | B122: IPCALAB | C122: 671.85 | D122: 677.67 | E122: 663.23 | F122: 654.62 | G122: 640.18 | H122: 686.28 | I122: 700.72 | J122: 709.33 | K122: 692.1 | L122: 669.05 | M122: 0.3277
A123: 114 | B123: JSWENERGY | C123: 64.35 | D123: 64.33 | E123: 62.52 | F123: 60.68 | G123: 58.87 | H123: 66.17 | I123: 67.98 | J123: 69.82 | K123: 66.15 | L123: 62.5 | M123: 8.05314
A124: 115 | B124: JSWSTEEL | C124: 361.65 | D124: 366.42 | E124: 354.38 | F124: 347.12 | G124: 335.08 | H124: 373.68 | I124: 385.72 | J124: 392.98 | K124: 378.45 | L124: 359.15 | M124: 40.61725
A125: 116 | B125: JINDALSTEL | C125: 168.55 | D125: 173.02 | E125: 163.53 | F125: 158.52 | G125: 149.03 | H125: 178.03 | I125: 187.52 | J125: 192.53 | K125: 182.5 | L125: 168 | M125: 109.26989
A126: 117 | B126: JUBLFOOD | C126: 1208 | D126: 1222.53 | E126: 1181.07 | F126: 1154.13 | G126: 1112.67 | H126: 1249.47 | I126: 1290.93 | J126: 1317.87 | K126: 1264 | L126: 1195.6 | M126: 14.53993
A127: 118 | B127: JUBILANT | C127: 680.4 | D127: 686.72 | E127: 669.73 | F127: 659.07 | G127: 642.08 | H127: 697.38 | I127: 714.37 | J127: 725.03 | K127: 703.7 | L127: 676.05 | M127: 1.20536
A128: 119 | B128: KARURVYSYA | C128: 77.35 | D128: 77.95 | E128: 76.40 | F128: 75.45 | G128: 73.90 | H128: 78.90 | I128: 80.45 | J128: 81.40 | K128: 79.5 | L128: 77 | M128: 15.9912
A129: 120 | B129: KOTAKBANK | C129: 1176 | D129: 1178.97 | E129: 1169.28 | F129: 1162.57 | G129: 1152.88 | H129: 1185.68 | I129: 1195.37 | J129: 1202.08 | K129: 1188.65 | L129: 1172.25 | M129: 47.92844
A130: 121 | B130: L&TFH | C130: 120.35 | D130: 124.43 | E130: 114.87 | F130: 109.38 | G130: 99.82 | H130: 129.92 | I130: 139.48 | J130: 144.97 | K130: 134 | L130: 118.95 | M130: 168.69085
A131: 122 | B131: LICHSGFIN | C131: 434.05 | D131: 438.93 | E131: 423.82 | F131: 413.58 | G131: 398.47 | H131: 449.17 | I131: 464.28 | J131: 474.52 | K131: 454.05 | L131: 428.7 | M131: 26.6532
A132: 123 | B132: LT | C132: 1211.9 | D132: 1219.53 | E132: 1201.07 | F132: 1190.23 | G132: 1171.77 | H132: 1230.37 | I132: 1248.83 | J132: 1259.67 | K132: 1238 | L132: 1208.7 | M132: 17.46801
A133: 124 | B133: LUPIN | C133: 896.65 | D133: 897.00 | E133: 884.65 | F133: 872.65 | G133: 860.30 | H133: 909.00 | I133: 921.35 | J133: 933.35 | K133: 909.35 | L133: 885 | M133: 16.09068
A134: 125 | B134: MRF | C134: 62101.85 | D134: 62755.20 | E134: 61246.65 | F134: 60391.45 | G134: 58882.90 | H134: 63610.40 | I134: 65118.95 | J134: 65974.15 | K134: 64263.75 | L134: 61900 | M134: 0.0638
A135: 126 | B135: MGL | C135: 821.15 | D135: 827.68 | E135: 807.47 | F135: 793.78 | G135: 773.57 | H135: 841.37 | I135: 861.58 | J135: 875.27 | K135: 847.9 | L135: 814 | M135: 2.92583
A136: 127 | B136: M&MFIN | C136: 366.05 | D136: 377.97 | E136: 351.38 | F136: 336.72 | G136: 310.13 | H136: 392.63 | I136: 419.22 | J136: 433.88 | K136: 404.55 | L136: 363.3 | M136: 28.70976
A137: 128 | B137: M&M | C137: 759.4 | D137: 767.12 | E137: 743.48 | F137: 727.57 | G137: 703.93 | H137: 783.03 | I137: 806.67 | J137: 822.58 | K137: 790.75 | L137: 751.2 | M137: 26.34539
A138: 129 | B138: MANAPPURAM | C138: 71.05 | D138: 72.62 | E138: 68.98 | F138: 66.92 | G138: 63.28 | H138: 74.68 | I138: 78.32 | J138: 80.38 | K138: 76.25 | L138: 70.55 | M138: 24.20854
A139: 130 | B139: MRPL | C139: 81.2 | D139: 82.65 | E139: 78.80 | F139: 76.40 | G139: 72.55 | H139: 85.05 | I139: 88.90 | J139: 91.30 | K139: 86.5 | L139: 80.25 | M139: 18.63195
A140: 131 | B140: MARICO | C140: 314.8 | D140: 317.43 | E140: 309.37 | F140: 303.93 | G140: 295.87 | H140: 322.87 | I140: 330.93 | J140: 336.37 | K140: 325.5 | L140: 312 | M140: 24.26967
A141: 132 | B141: MARUTI | C141: 6885.6 | D141: 6994.68 | E141: 6744.37 | F141: 6603.13 | G141: 6352.82 | H141: 7135.92 | I141: 7386.23 | J141: 7527.47 | K141: 7245 | L141: 6853.45 | M141: 10.21019
A142: 133 | B142: MFSL | C142: 384.95 | D142: 389.63 | E142: 376.97 | F142: 368.98 | G142: 356.32 | H142: 397.62 | I142: 410.28 | J142: 418.27 | K142: 402.3 | L142: 381.65 | M142: 5.32025
A143: 134 | B143: MINDTREE | C143: 977.95 | D143: 976.72 | E143: 953.48 | F143: 929.02 | G143: 905.78 | H143: 1001.18 | I143: 1024.42 | J143: 1048.88 | K143: 999.95 | L143: 952.25 | M143: 15.12677
A144: 135 | B144: MOTHERSUMI | C144: 250.25 | D144: 249.50 | E144: 244.75 | F144: 239.25 | G144: 234.50 | H144: 255.00 | I144: 259.75 | J144: 265.25 | K144: 254.25 | L144: 244 | M144: 40.09595
A145: 136 | B145: MPHASIS | C145: 1123.75 | D145: 1124.08 | E145: 1102.77 | F145: 1081.78 | G145: 1060.47 | H145: 1145.07 | I145: 1166.38 | J145: 1187.37 | K145: 1145.4 | L145: 1103.1 | M145: 4.41741
A146: 137 | B146: MUTHOOTFIN | C146: 402.6 | D146: 404.13 | E146: 396.07 | F146: 389.53 | G146: 381.47 | H146: 410.67 | I146: 418.73 | J146: 425.27 | K146: 412.2 | L146: 397.6 | M146: 4.82188
A147: 138 | B147: NATCOPHARM | C147: 717.4 | D147: 725.88 | E147: 701.87 | F147: 686.33 | G147: 662.32 | H147: 741.42 | I147: 765.43 | J147: 780.97 | K147: 749.9 | L147: 710.35 | M147: 1.23832
A148: 139 | B148: NBCC | C148: 56.3 | D148: 57.05 | E148: 54.80 | F148: 53.30 | G148: 51.05 | H148: 58.55 | I148: 60.80 | J148: 62.30 | K148: 59.3 | L148: 55.55 | M148: 105.79394
A149: 140 | B149: NHPC | C149: 23.7 | D149: 23.92 | E149: 23.38 | F149: 23.07 | G149: 22.53 | H149: 24.23 | I149: 24.77 | J149: 25.08 | K149: 24.45 | L149: 23.6 | M149: 24.20256
A150: 141 | B150: NMDC | C150: 110.45 | D150: 111.10 | E150: 107.60 | F150: 104.75 | G150: 101.25 | H150: 113.95 | I150: 117.45 | J150: 120.30 | K150: 114.6 | L150: 108.25 | M150: 16.37468
A151: 142 | B151: NTPC | C151: 162.9 | D151: 163.60 | E151: 161.50 | F151: 160.10 | G151: 158.00 | H151: 165.00 | I151: 167.10 | J151: 168.50 | K151: 165.7 | L151: 162.2 | M151: 44.74191
A152: 143 | B152: NATIONALUM | C152: 65.9 | D152: 66.47 | E152: 64.93 | F152: 63.97 | G152: 62.43 | H152: 67.43 | I152: 68.97 | J152: 69.93 | K152: 68 | L152: 65.5 | M152: 89.83022
A153: 144 | B153: OBEROIRLTY | C153: 375.15 | D153: 376.80 | E153: 371.60 | F153: 368.05 | G153: 362.85 | H153: 380.35 | I153: 385.55 | J153: 389.10 | K153: 382 | L153: 373.25 | M153: 13.22576
A154: 145 | B154: ONGC | C154: 162.1 | D154: 163.32 | E154: 159.33 | F154: 156.57 | G154: 152.58 | H154: 166.08 | I154: 170.07 | J154: 172.83 | K154: 167.3 | L154: 160.55 | M154: 53.47724
A155: 146 | B155: OIL | C155: 201.85 | D155: 204.78 | E155: 197.57 | F155: 193.28 | G155: 186.07 | H155: 209.07 | I155: 216.28 | J155: 220.57 | K155: 212 | L155: 200.5 | M155: 8.52091
A156: 147 | B156: OFSS | C156: 3908.05 | D156: 3941.02 | E156: 3857.03 | F156: 3806.02 | G156: 3722.03 | H156: 3992.03 | I156: 4076.02 | J156: 4127.03 | K156: 4025 | L156: 3890 | M156: 0.18872
A157: 148 | B157: PCJEWELLER | C157: 56.4 | D157: 56.75 | E157: 55.15 | F157: 53.90 | G157: 52.30 | H157: 58.00 | I157: 59.60 | J157: 60.85 | K157: 58.35 | L157: 55.5 | M157: 71.3321
A158: 149 | B158: PIIND | C158: 771.05 | D158: 776.80 | E158: 756.35 | F158: 741.65 | G158: 721.20 | H158: 791.50 | I158: 811.95 | J158: 826.65 | K158: 797.25 | L158: 762.1 | M158: 0.43391
A159: 150 | B159: PNBHOUSING | C159: 864.95 | D159: 884.32 | E159: 840.63 | F159: 816.32 | G159: 772.63 | H159: 908.63 | I159: 952.32 | J159: 976.63 | K159: 928 | L159: 860 | M159: 1.53938
A160: 151 | B160: PAGEIND | C160: 28066.3 | D160: 28332.75 | E160: 27533.55 | F160: 27000.80 | G160: 26201.60 | H160: 28865.50 | I160: 29664.70 | J160: 30197.45 | K160: 29131.95 | L160: 27800 | M160: 0.199
A161: 152 | B161: PETRONET | C161: 216.9 | D161: 219.28 | E161: 211.57 | F161: 206.23 | G161: 198.52 | H161: 224.62 | I161: 232.33 | J161: 237.67 | K161: 227 | L161: 213.95 | M161: 14.64497
A162: 153 | B162: PIDILITIND | C162: 962.15 | D162: 975.32 | E162: 945.73 | F162: 929.32 | G162: 899.73 | H162: 991.73 | I162: 1021.32 | J162: 1037.73 | K162: 1004.9 | L162: 958.9 | M162: 3.25087
A163: 154 | B163: PEL | C163: 2098.75 | D163: 2183.90 | E163: 1996.85 | F163: 1894.95 | G163: 1707.90 | H163: 2285.80 | I163: 2472.85 | J163: 2574.75 | K163: 2370.95 | L163: 2082 | M163: 14.14773
A164: 155 | B164: PFC | C164: 80.05 | D164: 81.17 | E164: 78.33 | F164: 76.62 | G164: 73.78 | H164: 82.88 | I164: 85.72 | J164: 87.43 | K164: 84 | L164: 79.45 | M164: 47.84941
A165: 156 | B165: POWERGRID | C165: 189.1 | D165: 189.07 | E165: 188.03 | F165: 186.97 | G165: 185.93 | H165: 190.13 | I165: 191.17 | J165: 192.23 | K165: 190.1 | L165: 188 | M165: 23.35081
A166: 157 | B166: PRESTIGE | C166: 196.9 | D166: 196.37 | E166: 187.73 | F166: 178.57 | G166: 169.93 | H166: 205.53 | I166: 214.17 | J166: 223.33 | K166: 205 | L166: 187.2 | M166: 2.01463
A167: 158 | B167: PGHH | C167: 9146.25 | D167: 9192.37 | E167: 9089.08 | F167: 9031.92 | G167: 8928.63 | H167: 9249.53 | I167: 9352.82 | J167: 9409.98 | K167: 9295.65 | L167: 9135.2 | M167: 0.01252
A168: 159 | B168: PNB | C168: 66.5 | D168: 67.92 | E168: 64.68 | F168: 62.87 | G168: 59.63 | H168: 69.73 | I168: 72.97 | J168: 74.78 | K168: 71.15 | L168: 66.1 | M168: 248.01387
A169: 160 | B169: RBLBANK | C169: 537.9 | D169: 540.35 | E169: 529.70 | F169: 521.50 | G169: 510.85 | H169: 548.55 | I169: 559.20 | J169: 567.40 | K169: 551 | L169: 532.15 | M169: 17.10098
A170: 161 | B170: RAJESHEXPO | C170: 558 | D170: 561.33 | E170: 553.67 | F170: 549.33 | G170: 541.67 | H170: 565.67 | I170: 573.33 | J170: 577.67 | K170: 569 | L170: 557 | M170: 2.18025
A171: 162 | B171: RELCAPITAL | C171: 248.15 | D171: 256.38 | E171: 237.77 | F171: 227.38 | G171: 208.77 | H171: 266.77 | I171: 285.38 | J171: 295.77 | K171: 275 | L171: 246 | M171: 84.77697
A172: 163 | B172: RCOM | C172: 11.35 | D172: 11.57 | E172: 11.03 | F172: 10.72 | G172: 10.18 | H172: 11.88 | I172: 12.42 | J172: 12.73 | K172: 12.1 | L172: 11.25 | M172: 431.63846
A173: 164 | B173: RELIANCE | C173: 1151.3 | D173: 1156.88 | E173: 1134.42 | F173: 1117.53 | G173: 1095.07 | H173: 1173.77 | I173: 1196.23 | J173: 1213.12 | K173: 1179.35 | L173: 1140 | M173: 127.85646
A174: 165 | B174: RELINFRA | C174: 316.55 | D174: 324.10 | E174: 305.10 | F174: 293.65 | G174: 274.65 | H174: 335.55 | I174: 354.55 | J174: 366.00 | K174: 343.1 | L174: 312.65 | M174: 34.26625
A175: 166 | B175: RPOWER | C175: 27.35 | D175: 27.83 | E175: 26.67 | F175: 25.98 | G175: 24.82 | H175: 28.52 | I175: 29.68 | J175: 30.37 | K175: 29 | L175: 27.15 | M175: 77.27726
A176: 167 | B176: RECLTD | C176: 102.7 | D176: 103.55 | E176: 99.70 | F176: 96.70 | G176: 92.85 | H176: 106.55 | I176: 110.40 | J176: 113.40 | K176: 107.4 | L176: 100.55 | M176: 53.59848
A177: 168 | B177: SRF | C177: 1754.15 | D177: 1788.28 | E177: 1709.57 | F177: 1664.98 | G177: 1586.27 | H177: 1832.87 | I177: 1911.58 | J177: 1956.17 | K177: 1867 | L177: 1743.7 | M177: 7.73977
A178: 169 | B178: SHREECEM | C178: 15126 | D178: 15297.20 | E178: 14882.35 | F178: 14638.70 | G178: 14223.85 | H178: 15540.85 | I178: 15955.70 | J178: 16199.35 | K178: 15712.05 | L178: 15053.55 | M178: 0.0718
A179: 170 | B179: SRTRANSFIN | C179: 1006.25 | D179: 1034.13 | E179: 970.12 | F179: 933.98 | G179: 869.97 | H179: 1070.27 | I179: 1134.28 | J179: 1170.42 | K179: 1098.15 | L179: 998 | M179: 14.15378
A180: 171 | B180: SIEMENS | C180: 932.65 | D180: 935.00 | E180: 924.00 | F180: 915.35 | G180: 904.35 | H180: 943.65 | I180: 954.65 | J180: 963.30 | K180: 946 | L180: 926.35 | M180: 0.98692
A181: 172 | B181: SBIN | C181: 261.15 | D181: 265.38 | E181: 255.77 | F181: 250.38 | G181: 240.77 | H181: 270.77 | I181: 280.38 | J181: 285.77 | K181: 275 | L181: 260 | M181: 216.31573
A182: 173 | B182: SAIL | C182: 65.35 | D182: 66.35 | E182: 64.00 | F182: 62.65 | G182: 60.30 | H182: 67.70 | I182: 70.05 | J182: 71.40 | K182: 68.7 | L182: 65 | M182: 72.4619
A183: 174 | B183: SPARC | C183: 306.8 | D183: 311.80 | E183: 300.10 | F183: 293.40 | G183: 281.70 | H183: 318.50 | I183: 330.20 | J183: 336.90 | K183: 323.5 | L183: 305.1 | M183: 1.00762
A184: 175 | B184: SUNPHARMA | C184: 593.45 | D184: 597.95 | E184: 586.50 | F184: 579.55 | G184: 568.10 | H184: 604.90 | I184: 616.35 | J184: 623.30 | K184: 609.4 | L184: 591 | M184: 26.29035
A185: 176 | B185: SUNTV | C185: 654.1 | D185: 659.62 | E185: 643.83 | F185: 633.57 | G185: 617.78 | H185: 669.88 | I185: 685.67 | J185: 695.93 | K185: 675.4 | L185: 649.35 | M185: 10.51869
A186: 177 | B186: SUZLON | C186: 6.05 | D186: 6.22 | E186: 5.78 | F186: 5.52 | G186: 5.08 | H186: 6.48 | I186: 6.92 | J186: 7.18 | K186: 6.65 | L186: 5.95 | M186: 396.29658
A187: 178 | B187: SYNDIBANK | C187: 32.35 | D187: 32.85 | E187: 31.60 | F187: 30.85 | G187: 29.60 | H187: 33.60 | I187: 34.85 | J187: 35.60 | K187: 34.1 | L187: 32.1 | M187: 35.99353
A188: 179 | B188: SYNGENE | C188: 588 | D188: 588.38 | E188: 582.77 | F188: 577.53 | G188: 571.92 | H188: 593.62 | I188: 599.23 | J188: 604.47 | K188: 594 | L188: 583.15 | M188: 0.2106
A189: 180 | B189: TV18BRDCST | C189: 37 | D189: 37.98 | E189: 35.77 | F189: 34.53 | G189: 32.32 | H189: 39.22 | I189: 41.43 | J189: 42.67 | K189: 40.2 | L189: 36.75 | M189: 72.7527
A190: 181 | B190: TVSMOTOR | C190: 532.9 | D190: 539.97 | E190: 520.93 | F190: 508.97 | G190: 489.93 | H190: 551.93 | I190: 570.97 | J190: 582.93 | K190: 559 | L190: 528 | M190: 13.08785
A191: 182 | B191: TATACHEM | C191: 670.1 | D191: 673.48 | E191: 660.37 | F191: 650.63 | G191: 637.52 | H191: 683.22 | I191: 696.33 | J191: 706.07 | K191: 686.6 | L191: 663.75 | M191: 4.08332
A192: 183 | B192: TATACOMM | C192: 470.8 | D192: 477.47 | E192: 462.03 | F192: 453.27 | G192: 437.83 | H192: 486.23 | I192: 501.67 | J192: 510.43 | K192: 492.9 | L192: 468.7 | M192: 11.07415
A193: 184 | B193: TCS | C193: 1929.4 | D193: 1946.13 | E193: 1903.27 | F193: 1877.13 | G193: 1834.27 | H193: 1972.27 | I193: 2015.13 | J193: 2041.27 | K193: 1989 | L193: 1920 | M193: 27.79207
A194: 185 | B194: TATAGLOBAL | C194: 231.1 | D194: 233.78 | E194: 226.77 | F194: 222.43 | G194: 215.42 | H194: 238.12 | I194: 245.13 | J194: 249.47 | K194: 240.8 | L194: 229.45 | M194: 29.45914
A195: 186 | B195: TATAMTRDVR | C195: 100.15 | D195: 100.88 | E195: 98.97 | F195: 97.78 | G195: 95.87 | H195: 102.07 | I195: 103.98 | J195: 105.17 | K195: 102.8 | L195: 99.7 | M195: 41.91428
A196: 187 | B196: TATAMOTORS | C196: 179.95 | D196: 182.28 | E196: 176.77 | F196: 173.58 | G196: 168.07 | H196: 185.47 | I196: 190.98 | J196: 194.17 | K196: 187.8 | L196: 179.1 | M196: 120.04524
A197: 188 | B197: TATAPOWER | C197: 72.55 | D197: 72.95 | E197: 71.30 | F197: 70.05 | G197: 68.40 | H197: 74.20 | I197: 75.85 | J197: 77.10 | K197: 74.6 | L197: 71.7 | M197: 108.6242
A198: 189 | B198: TATASTEEL | C198: 554.65 | D198: 562.08 | E198: 544.67 | F198: 534.68 | G198: 517.27 | H198: 572.07 | I198: 589.48 | J198: 599.47 | K198: 579.5 | L198: 552.1 | M198: 50.20576
A199: 190 | B199: TECHM | C199: 720.5 | D199: 724.37 | E199: 713.73 | F199: 706.97 | G199: 696.33 | H199: 731.13 | I199: 741.77 | J199: 748.53 | K199: 735 | L199: 717.6 | M199: 33.20857
A200: 191 | B200: RAMCOCEM | C200: 577.55 | D200: 582.87 | E200: 569.73 | F200: 561.92 | G200: 548.78 | H200: 590.68 | I200: 603.82 | J200: 611.63 | K200: 596 | L200: 575.05 | M200: 1.00594
A201: 192 | B201: TITAN | C201: 800.1 | D201: 805.32 | E201: 787.33 | F201: 774.57 | G201: 756.58 | H201: 818.08 | I201: 836.07 | J201: 848.83 | K201: 823.3 | L201: 792.55 | M201: 29.75579
A202: 193 | B202: TORNTPHARM | C202: 1560.85 | D202: 1586.62 | E202: 1528.93 | F202: 1497.02 | G202: 1439.33 | H202: 1618.53 | I202: 1676.22 | J202: 1708.13 | K202: 1644.3 | L202: 1554.7 | M202: 1.95655
A203: 194 | B203: TORNTPOWER | C203: 234 | D203: 238.30 | E203: 226.70 | F203: 219.40 | G203: 207.80 | H203: 245.60 | I203: 257.20 | J203: 264.50 | K203: 249.9 | L203: 231 | M203: 9.97862
A204: 195 | B204: UPL | C204: 638.25 | D204: 644.98 | E204: 624.97 | F204: 611.68 | G204: 591.67 | H204: 658.27 | I204: 678.28 | J204: 691.57 | K204: 665 | L204: 631.7 | M204: 17.06506
A205: 196 | B205: ULTRACEMCO | C205: 3723 | D205: 3742.83 | E205: 3695.17 | F205: 3667.33 | G205: 3619.67 | H205: 3770.67 | I205: 3818.33 | J205: 3846.17 | K205: 3790.5 | L205: 3715 | M205: 1.66654
... 30 more rows

Sheet MidCap Intra
L5: Back To Main Page
A6: FOR INTRA DAY TRADING | K6: =Main!B10 -> 2018-10-19
A9: Sr.no | B9: Scrip | C9: CLOSE RATE | D9: Pivot Point | E9: Supports | H9: Resistances
C10: Point | E10: S1 | F10: S2 | G10: S3 | H10: R1 | I10: R2 | J10: R3 | K10: HIGH | L10: LOW | M10: Total Trade Quanity in Lakhs
A11: 1 | B11: 3MINDIA | C11: 21776.9 | D11: 22117.28 | E11: 21259.57 | F11: 20742.23 | G11: 19884.52 | H11: 22634.62 | I11: 23492.33 | J11: 24009.67 | K11: 22975 | L11: 21599.95 | M11: 0.02056
A12: 2 | B12: 8KMILES | C12: 114.15 | D12: 114.15 | E12: 114.15 | F12: 114.15 | G12: 114.15 | H12: 114.15 | I12: 114.15 | J12: 114.15 | K12: 114.15 | L12: 114.15 | M12: 0.20231
A13: 3 | B13: AARTIIND | C13: 1252.45 | D13: 1268.20 | E13: 1230.00 | F13: 1207.55 | G13: 1169.35 | H13: 1290.65 | I13: 1328.85 | J13: 1351.30 | K13: 1306.4 | L13: 1245.75 | M13: 1.12657
A14: 4 | B14: ABAN | C14: 81.5 | D14: 82.70 | E14: 79.00 | F14: 76.50 | G14: 72.80 | H14: 85.20 | I14: 88.90 | J14: 91.40 | K14: 86.4 | L14: 80.2 | M14: 6.01394
A15: 5 | B15: ABB | C15: 1285.1 | D15: 1292.70 | E15: 1272.40 | F15: 1259.70 | G15: 1239.40 | H15: 1305.40 | I15: 1325.70 | J15: 1338.40 | K15: 1313 | L15: 1280 | M15: 0.29508
A16: 6 | B16: ABCAPITAL | C16: 104.55 | D16: 106.48 | E16: 102.07 | F16: 99.58 | G16: 95.17 | H16: 108.97 | I16: 113.38 | J16: 115.87 | K16: 110.9 | L16: 104 | M16: 13.84807
A17: 7 | B17: ABFRL | C17: 186.2 | D17: 191.47 | E17: 179.13 | F17: 172.07 | G17: 159.73 | H17: 198.53 | I17: 210.87 | J17: 217.93 | K17: 203.8 | L17: 184.4 | M17: 15.39063
A18: 8 | B18: ACC | C18: 1539.7 | D18: 1545.28 | E18: 1512.57 | F18: 1485.43 | G18: 1452.72 | H18: 1572.42 | I18: 1605.13 | J18: 1632.27 | K18: 1578 | L18: 1518.15 | M18: 7.99424
A19: 9 | B19: ADANIPORTS | C19: 313.9 | D19: 320.93 | E19: 302.57 | F19: 291.23 | G19: 272.87 | H19: 332.27 | I19: 350.63 | J19: 361.97 | K19: 339.3 | L19: 309.6 | M19: 33.23311
A20: 10 | B20: ADANIPOWER | C20: 34.45 | D20: 34.87 | E20: 32.68 | F20: 30.92 | G20: 28.73 | H20: 36.63 | I20: 38.82 | J20: 40.58 | K20: 37.05 | L20: 33.1 | M20: 503.18963
A21: 11 | B21: ADANITRANS | C21: 163.1 | D21: 165.03 | E21: 160.07 | F21: 157.03 | G21: 152.07 | H21: 168.07 | I21: 173.03 | J21: 176.07 | K21: 170 | L21: 162 | M21: 0.34124
A22: 12 | B22: ADVENZYMES | C22: 196.1 | D22: 198.17 | E22: 192.63 | F22: 189.17 | G22: 183.63 | H22: 201.63 | I22: 207.17 | J22: 210.63 | K22: 203.7 | L22: 194.7 | M22: 0.88778
A23: 13 | B23: AEGISCHEM | C23: 219.2 | D23: 219.22 | E23: 214.98 | F23: 210.77 | G23: 206.53 | H23: 223.43 | I23: 227.67 | J23: 231.88 | K23: 223.45 | L23: 215 | M23: 1.77923
A24: 14 | B24: AIAENG | C24: 1579.2 | D24: 1580.13 | E24: 1555.07 | F24: 1530.93 | G24: 1505.87 | H24: 1604.27 | I24: 1629.33 | J24: 1653.47 | K24: 1605.2 | L24: 1556 | M24: 0.12837
A25: 15 | B25: AJANTPHARM | C25: 1001.1 | D25: 1009.63 | E25: 979.37 | F25: 957.63 | G25: 927.37 | H25: 1031.37 | I25: 1061.63 | J25: 1083.37 | K25: 1039.9 | L25: 987.9 | M25: 2.92286
A26: 16 | B26: AKZOINDIA | C26: 1594.75 | D26: 1605.42 | E26: 1572.08 | F26: 1549.42 | G26: 1516.08 | H26: 1628.08 | I26: 1661.42 | J26: 1684.08 | K26: 1638.75 | L26: 1582.75 | M26: 0.10527
A27: 17 | B27: ALBK | C27: 37.85 | D27: 38.25 | E27: 37.00 | F27: 36.15 | G27: 34.90 | H27: 39.10 | I27: 40.35 | J27: 41.20 | K27: 39.5 | L27: 37.4 | M27: 31.30121
A28: 18 | B28: ALKEM | C28: 1981.25 | D28: 1967.90 | E28: 1948.85 | F28: 1916.45 | G28: 1897.40 | H28: 2000.30 | I28: 2019.35 | J28: 2051.75 | K28: 1986.95 | L28: 1935.5 | M28: 0.1137
A29: 19 | B29: ALLCARGO | C29: 96.6 | D29: 98.02 | E29: 94.58 | F29: 92.57 | G29: 89.13 | H29: 100.03 | I29: 103.47 | J29: 105.48 | K29: 101.45 | L29: 96 | M29: 6.25086
A30: 20 | B30: AMARAJABAT | C30: 745.6 | D30: 752.52 | E30: 735.28 | F30: 724.97 | G30: 707.73 | H30: 762.83 | I30: 780.07 | J30: 790.38 | K30: 769.75 | L30: 742.2 | M30: 2.74982
A31: 21 | B31: AMBUJACEM | C31: 219.3 | D31: 221.52 | E31: 215.18 | F31: 211.07 | G31: 204.73 | H31: 225.63 | I31: 231.97 | J31: 236.08 | K31: 227.85 | L31: 217.4 | M31: 53.46216
A32: 22 | B32: ANDHRABANK | C32: 26.4 | D32: 26.70 | E32: 25.80 | F32: 25.20 | G32: 24.30 | H32: 27.30 | I32: 28.20 | J32: 28.80 | K32: 27.6 | L32: 26.1 | M32: 10.4988
A33: 23 | B33: APLAPOLLO | C33: 1365.1 | D33: 1376.57 | E33: 1323.13 | F33: 1281.17 | G33: 1227.73 | H33: 1418.53 | I33: 1471.97 | J33: 1513.93 | K33: 1430 | L33: 1334.6 | M33: 0.81484
A34: 24 | B34: APLLTD | C34: 606.8 | D34: 608.43 | E34: 600.57 | F34: 594.33 | G34: 586.47 | H34: 614.67 | I34: 622.53 | J34: 628.77 | K34: 616.3 | L34: 602.2 | M34: 0.23401
A35: 25 | B35: APOLLOHOSP | C35: 1123.7 | D35: 1128.03 | E35: 1108.22 | F35: 1092.73 | G35: 1072.92 | H35: 1143.52 | I35: 1163.33 | J35: 1178.82 | K35: 1147.85 | L35: 1112.55 | M35: 3.49443
A36: 26 | B36: APOLLOTYRE | C36: 209.3 | D36: 213.75 | E36: 203.55 | F36: 197.80 | G36: 187.60 | H36: 219.50 | I36: 229.70 | J36: 235.45 | K36: 223.95 | L36: 208 | M36: 23.46918
A37: 27 | B37: ARVIND | C37: 315.1 | D37: 321.50 | E37: 305.70 | F37: 296.30 | G37: 280.50 | H37: 330.90 | I37: 346.70 | J37: 356.10 | K37: 337.3 | L37: 312.1 | M37: 18.9351
A38: 28 | B38: ASAHIINDIA | C38: 294.9 | D38: 296.17 | E38: 289.33 | F38: 283.77 | G38: 276.93 | H38: 301.73 | I38: 308.57 | J38: 314.13 | K38: 303 | L38: 290.6 | M38: 0.06279
A39: 29 | B39: ASHOKA | C39: 113.95 | D39: 114.97 | E39: 111.98 | F39: 110.02 | G39: 107.03 | H39: 116.93 | I39: 119.92 | J39: 121.88 | K39: 117.95 | L39: 113 | M39: 3.52767
A40: 30 | B40: ASHOKLEY | C40: 114.3 | D40: 116.65 | E40: 110.20 | F40: 106.10 | G40: 99.65 | H40: 120.75 | I40: 127.20 | J40: 131.30 | K40: 123.1 | L40: 112.55 | M40: 238.17952
A41: 31 | B41: ASIANPAINT | C41: 1259 | D41: 1265.42 | E41: 1248.58 | F41: 1238.17 | G41: 1221.33 | H41: 1275.83 | I41: 1292.67 | J41: 1303.08 | K41: 1282.25 | L41: 1255 | M41: 6.98043
A42: 32 | B42: ASTRAL | C42: 961.45 | D42: 956.98 | E42: 936.97 | F42: 912.48 | G42: 892.47 | H42: 981.47 | I42: 1001.48 | J42: 1025.97 | K42: 977 | L42: 932.5 | M42: 0.25193
A43: 33 | B43: ATUL | C43: 3227.5 | D43: 3278.83 | E43: 3157.67 | F43: 3087.83 | G43: 2966.67 | H43: 3348.67 | I43: 3469.83 | J43: 3539.67 | K43: 3400 | L43: 3209 | M43: 0.12
A44: 34 | B44: AUBANK | C44: 596.05 | D44: 608.80 | E44: 579.85 | F44: 563.65 | G44: 534.70 | H44: 625.00 | I44: 653.95 | J44: 670.15 | K44: 637.75 | L44: 592.6 | M44: 2.7596
A45: 35 | B45: AUROPHARMA | C45: 756.3 | D45: 762.27 | E45: 740.28 | F45: 724.27 | G45: 702.28 | H45: 778.28 | I45: 800.27 | J45: 816.28 | K45: 784.25 | L45: 746.25 | M45: 22.47685
A46: 36 | B46: AVANTIFEED | C46: 418.35 | D46: 422.85 | E46: 410.50 | F46: 402.65 | G46: 390.30 | H46: 430.70 | I46: 443.05 | J46: 450.90 | K46: 435.2 | L46: 415 | M46: 3.48308
A47: 37 | B47: AXISBANK | C47: 576.05 | D47: 580.48 | E47: 562.17 | F47: 548.28 | G47: 529.97 | H47: 594.37 | I47: 612.68 | J47: 626.57 | K47: 598.8 | L47: 566.6 | M47: 96.09195
A48: 38 | B48: BAJAJ-AUTO | C48: 2547.8 | D48: 2578.48 | E48: 2507.32 | F48: 2466.83 | G48: 2395.67 | H48: 2618.97 | I48: 2690.13 | J48: 2730.62 | K48: 2649.65 | L48: 2538 | M48: 2.85116
A49: 39 | B49: BAJAJCORP | C49: 387.85 | D49: 389.93 | E49: 381.92 | F49: 375.98 | G49: 367.97 | H49: 395.87 | I49: 403.88 | J49: 409.82 | K49: 397.95 | L49: 384 | M49: 0.19443
A50: 40 | B50: BAJAJELEC | C50: 515.15 | D50: 523.05 | E50: 502.10 | F50: 489.05 | G50: 468.10 | H50: 536.10 | I50: 557.05 | J50: 570.10 | K50: 544 | L50: 510 | M50: 2.20357
A51: 41 | B51: BAJAJFINSV | C51: 5380.25 | D51: 5490.08 | E51: 5240.17 | F51: 5100.08 | G51: 4850.17 | H51: 5630.17 | I51: 5880.08 | J51: 6020.17 | K51: 5740 | L51: 5350 | M51: 3.01825
A52: 42 | B52: BAJAJHIND | C52: 10.05 | D52: 10.25 | E52: 9.65 | F52: 9.25 | G52: 8.65 | H52: 10.65 | I52: 11.25 | J52: 11.65 | K52: 10.85 | L52: 9.85 | M52: 66.81476
A53: 43 | B53: BAJAJHLDNG | C53: 2576.9 | D53: 2593.95 | E53: 2542.95 | F53: 2509.00 | G53: 2458.00 | H53: 2627.90 | I53: 2678.90 | J53: 2712.85 | K53: 2644.95 | L53: 2560 | M53: 0.0505
A54: 44 | B54: BAJFINANCE | C54: 2150.5 | D54: 2217.53 | E54: 2065.82 | F54: 1981.13 | G54: 1829.42 | H54: 2302.22 | I54: 2453.93 | J54: 2538.62 | K54: 2369.25 | L54: 2132.85 | M54: 38.11985
A55: 45 | B55: BALKRISIND | C55: 1031.05 | D55: 1038.58 | E55: 1018.17 | F55: 1005.28 | G55: 984.87 | H55: 1051.47 | I55: 1071.88 | J55: 1084.77 | K55: 1059 | L55: 1025.7 | M55: 5.47516
A56: 46 | B56: BALLARPUR | C56: 6.35 | D56: 6.40 | E56: 6.20 | F56: 6.05 | G56: 5.85 | H56: 6.55 | I56: 6.75 | J56: 6.90 | K56: 6.6 | L56: 6.25 | M56: 14.71744
A57: 47 | B57: BALMLAWRIE | C57: 192.15 | D57: 193.38 | E57: 190.22 | F57: 188.28 | G57: 185.12 | H57: 195.32 | I57: 198.48 | J57: 200.42 | K57: 196.55 | L57: 191.45 | M57: 0.37277
A58: 48 | B58: BALRAMCHIN | C58: 93.35 | D58: 93.22 | E58: 85.23 | F58: 77.12 | G58: 69.13 | H58: 101.33 | I58: 109.32 | J58: 117.43 | K58: 101.2 | L58: 85.1 | M58: 100.89337
A59: 49 | B59: BANKBARODA | C59: 99.6 | D59: 100.33 | E59: 98.02 | F59: 96.43 | G59: 94.12 | H59: 101.92 | I59: 104.23 | J59: 105.82 | K59: 102.65 | L59: 98.75 | M59: 222.82115
A60: 50 | B60: BANKINDIA | C60: 76.75 | D60: 78.37 | E60: 74.83 | F60: 72.92 | G60: 69.38 | H60: 80.28 | I60: 83.82 | J60: 85.73 | K60: 81.9 | L60: 76.45 | M60: 68.10399
A61: 51 | B61: BASF | C61: 1665.45 | D61: 1681.15 | E61: 1642.30 | F61: 1619.15 | G61: 1580.30 | H61: 1704.30 | I61: 1743.15 | J61: 1766.30 | K61: 1720 | L61: 1658 | M61: 0.11518
A62: 52 | B62: BATAINDIA | C62: 911.35 | D62: 923.73 | E62: 892.72 | F62: 874.08 | G62: 843.07 | H62: 942.37 | I62: 973.38 | J62: 992.02 | K62: 954.75 | L62: 905.1 | M62: 7.61943
A63: 53 | B63: BBTC | C63: 1262 | D63: 1283.33 | E63: 1230.67 | F63: 1199.33 | G63: 1146.67 | H63: 1314.67 | I63: 1367.33 | J63: 1398.67 | K63: 1336 | L63: 1252 | M63: 1.43037
A64: 54 | B64: BEL | C64: 85.5 | D64: 86.53 | E64: 83.82 | F64: 82.13 | G64: 79.42 | H64: 88.22 | I64: 90.93 | J64: 92.62 | K64: 89.25 | L64: 84.85 | M64: 39.2403
A65: 55 | B65: BEML | C65: 588.55 | D65: 602.77 | E65: 566.33 | F65: 544.12 | G65: 507.68 | H65: 624.98 | I65: 661.42 | J65: 683.63 | K65: 639.2 | L65: 580.55 | M65: 11.9221
A66: 56 | B66: BERGEPAINT | C66: 292.7 | D66: 291.57 | E66: 288.43 | F66: 284.17 | G66: 281.03 | H66: 295.83 | I66: 298.97 | J66: 303.23 | K66: 294.7 | L66: 287.3 | M66: 7.18073
A67: 57 | B67: BFUTILITIE | C67: 211.45 | D67: 216.48 | E67: 204.97 | F67: 198.48 | G67: 186.97 | H67: 222.97 | I67: 234.48 | J67: 240.97 | K67: 228 | L67: 210 | M67: 2.08987
A68: 58 | B68: BGRENERGY | C68: 58.6 | D68: 60.55 | E68: 56.30 | F68: 54.00 | G68: 49.75 | H68: 62.85 | I68: 67.10 | J68: 69.40 | K68: 64.8 | L68: 58.25 | M68: 1.65178
A69: 59 | B69: BHARATFIN | C69: 983.55 | D69: 995.65 | E69: 968.50 | F69: 953.45 | G69: 926.30 | H69: 1010.70 | I69: 1037.85 | J69: 1052.90 | K69: 1022.8 | L69: 980.6 | M69: 15.11775
A70: 60 | B70: BHARATFORG | C70: 560.65 | D70: 568.82 | E70: 550.88 | F70: 541.12 | G70: 523.18 | H70: 578.58 | I70: 596.52 | J70: 606.28 | K70: 586.75 | L70: 559.05 | M70: 8.66039
A71: 61 | B71: BHARTIARTL | C71: 288.5 | D71: 290.50 | E71: 282.65 | F71: 276.80 | G71: 268.95 | H71: 296.35 | I71: 304.20 | J71: 310.05 | K71: 298.35 | L71: 284.65 | M71: 38.777
A72: 62 | B72: BHEL | C72: 74.15 | D72: 75.12 | E72: 72.58 | F72: 71.02 | G72: 68.48 | H72: 76.68 | I72: 79.22 | J72: 80.78 | K72: 77.65 | L72: 73.55 | M72: 79.00337
A73: 63 | B73: BHUSANSTL | C73: 28.35 | D73: 28.82 | E73: 27.63 | F73: 26.92 | G73: 25.73 | H73: 29.53 | I73: 30.72 | J73: 31.43 | K73: 30 | L73: 28.1 | M73: 6.74558
A74: 64 | B74: BIOCON | C74: 636.55 | D74: 634.80 | E74: 624.60 | F74: 612.65 | G74: 602.45 | H74: 646.75 | I74: 656.95 | J74: 668.90 | K74: 645 | L74: 622.85 | M74: 27.30667
A75: 65 | B75: BIRLACORPN | C75: 572.05 | D75: 577.92 | E75: 560.48 | F75: 548.92 | G75: 531.48 | H75: 589.48 | I75: 606.92 | J75: 618.48 | K75: 595.35 | L75: 566.35 | M75: 0.2477
A76: 66 | B76: BLISSGVS | C76: 170.2 | D76: 171.70 | E76: 166.65 | F76: 163.10 | G76: 158.05 | H76: 175.25 | I76: 180.30 | J76: 183.85 | K76: 176.75 | L76: 168.15 | M76: 0.56475
A77: 67 | B77: BLUEDART | C77: 2782.85 | D77: 2800.17 | E77: 2749.68 | F77: 2716.52 | G77: 2666.03 | H77: 2833.33 | I77: 2883.82 | J77: 2916.98 | K77: 2850.65 | L77: 2767 | M77: 0.03118
A78: 68 | B78: BLUESTARCO | C78: 564.4 | D78: 571.92 | E78: 549.03 | F78: 533.67 | G78: 510.78 | H78: 587.28 | I78: 610.17 | J78: 625.53 | K78: 594.8 | L78: 556.55 | M78: 0.26766
A79: 69 | B79: BOMDYEING | C79: 111.9 | D79: 114.57 | E79: 109.23 | F79: 106.57 | G79: 101.23 | H79: 117.23 | I79: 122.57 | J79: 125.23 | K79: 119.9 | L79: 111.9 | M79: 18.27305
A80: 70 | B80: BOSCHLTD | C80: 18380 | D80: 18611.33 | E80: 18033.67 | F80: 17687.33 | G80: 17109.67 | H80: 18957.67 | I80: 19535.33 | J80: 19881.67 | K80: 19189 | L80: 18265 | M80: 0.15393
A81: 71 | B81: BPCL | C81: 285.15 | D81: 290.93 | E81: 277.42 | F81: 269.68 | G81: 256.17 | H81: 298.67 | I81: 312.18 | J81: 319.92 | K81: 304.45 | L81: 283.2 | M81: 65.19818
A82: 72 | B82: BRFL | C82: 17.9 | D82: 17.97 | E82: 17.28 | F82: 16.67 | G82: 15.98 | H82: 18.58 | I82: 19.27 | J82: 19.88 | K82: 18.65 | L82: 17.35 | M82: 0.2802
A83: 73 | B83: BRIGADE | C83: 191.6 | D83: 193.45 | E83: 187.90 | F83: 184.20 | G83: 178.65 | H83: 197.15 | I83: 202.70 | J83: 206.40 | K83: 199 | L83: 189.75 | M83: 0.14375
A84: 74 | B84: BRITANNIA | C84: 5541.05 | D84: 5607.93 | E84: 5438.22 | F84: 5335.38 | G84: 5165.67 | H84: 5710.77 | I84: 5880.48 | J84: 5983.32 | K84: 5777.65 | L84: 5505.1 | M84: 1.89478
A85: 75 | B85: BSE | C85: 637.75 | D85: 641.07 | E85: 632.28 | F85: 626.82 | G85: 618.03 | H85: 646.53 | I85: 655.32 | J85: 660.78 | K85: 649.85 | L85: 635.6 | M85: 0.61155
A86: 77 | B86: CADILAHC | C86: 377.55 | D86: 379.48 | E86: 374.07 | F86: 370.58 | G86: 365.17 | H86: 382.97 | I86: 388.38 | J86: 391.87 | K86: 384.9 | L86: 376 | M86: 8.16462
A87: 78 | B87: CANBK | C87: 220.65 | D87: 226.62 | E87: 212.28 | F87: 203.92 | G87: 189.58 | H87: 234.98 | I87: 249.32 | J87: 257.68 | K87: 240.95 | L87: 218.25 | M87: 71.27914
A88: 79 | B88: CANFINHOME | C88: 231.8 | D88: 235.62 | E88: 224.28 | F88: 216.77 | G88: 205.43 | H88: 243.13 | I88: 254.47 | J88: 261.98 | K88: 246.95 | L88: 228.1 | M88: 22.00201
A89: 80 | B89: CAPF | C89: 472.1 | D89: 479.97 | E89: 462.13 | F89: 452.17 | G89: 434.33 | H89: 489.93 | I89: 507.77 | J89: 517.73 | K89: 497.8 | L89: 470 | M89: 8.72862
A90: 81 | B90: CAPLIPOINT | C90: 426.45 | D90: 432.47 | E90: 418.98 | F90: 411.52 | G90: 398.03 | H90: 439.93 | I90: 453.42 | J90: 460.88 | K90: 445.95 | L90: 425 | M90: 0.18317
A91: 82 | B91: CARBORUNIV | C91: 365 | D91: 366.63 | E91: 363.37 | F91: 361.73 | G91: 358.47 | H91: 368.27 | I91: 371.53 | J91: 373.17 | K91: 369.9 | L91: 365 | M91: 0.1724
A92: 83 | B92: CARERATING | C92: 1103.75 | D92: 1112.43 | E92: 1089.87 | F92: 1075.98 | G92: 1053.42 | H92: 1126.32 | I92: 1148.88 | J92: 1162.77 | K92: 1135 | L92: 1098.55 | M92: 0.22829
A93: 84 | B93: CASTROLIND | C93: 139.3 | D93: 140.72 | E93: 137.58 | F93: 135.87 | G93: 132.73 | H93: 142.43 | I93: 145.57 | J93: 147.28 | K93: 143.85 | L93: 139 | M93: 6.26999
A94: 85 | B94: CCL | C94: 239.9 | D94: 241.70 | E94: 237.20 | F94: 234.50 | G94: 230.00 | H94: 244.40 | I94: 248.90 | J94: 251.60 | K94: 246.2 | L94: 239 | M94: 0.35634
A95: 86 | B95: CDSL | C95: 239.35 | D95: 240.55 | E95: 236.80 | F95: 234.25 | G95: 230.50 | H95: 243.10 | I95: 246.85 | J95: 249.40 | K95: 244.3 | L95: 238 | M95: 1.02499
A96: 87 | B96: CEATLTD | C96: 1098.8 | D96: 1112.62 | E96: 1066.18 | F96: 1033.57 | G96: 987.13 | H96: 1145.23 | I96: 1191.67 | J96: 1224.28 | K96: 1159.05 | L96: 1080 | M96: 3.82961
A97: 88 | B97: CENTRALBK | C97: 31 | D97: 31.45 | E97: 30.00 | F97: 29.00 | G97: 27.55 | H97: 32.45 | I97: 33.90 | J97: 34.90 | K97: 32.9 | L97: 30.45 | M97: 23.90789
A98: 89 | B98: CENTURYPLY | C98: 187.1 | D98: 195.40 | E98: 176.70 | F98: 166.30 | G98: 147.60 | H98: 205.80 | I98: 224.50 | J98: 234.90 | K98: 214.1 | L98: 185 | M98: 12.58306
A99: 90 | B99: CENTURYTEX | C99: 783.3 | D99: 800.97 | E99: 760.93 | F99: 738.57 | G99: 698.53 | H99: 823.33 | I99: 863.37 | J99: 885.73 | K99: 841 | L99: 778.6 | M99: 6.84279
A100: 91 | B100: CERA | C100: 2410.8 | D100: 2422.70 | E100: 2393.40 | F100: 2376.00 | G100: 2346.70 | H100: 2440.10 | I100: 2469.40 | J100: 2486.80 | K100: 2452 | L100: 2405.3 | M100: 0.03341
A101: 92 | B101: CGPOWER | C101: 38.95 | D101: 39.77 | E101: 37.83 | F101: 36.72 | G101: 34.78 | H101: 40.88 | I101: 42.82 | J101: 43.93 | K101: 41.7 | L101: 38.65 | M101: 39.76084
A102: 93 | B102: CHAMBLFERT | C102: 145.15 | D102: 145.67 | E102: 143.83 | F102: 142.52 | G102: 140.68 | H102: 146.98 | I102: 148.82 | J102: 150.13 | K102: 147.5 | L102: 144.35 | M102: 1.34068
A103: 94 | B103: CHENNPETRO | C103: 256.1 | D103: 260.25 | E103: 249.35 | F103: 242.60 | G103: 231.70 | H103: 267.00 | I103: 277.90 | J103: 284.65 | K103: 271.15 | L103: 253.5 | M103: 5.26518
A104: 95 | B104: CHOLAFIN | C104: 1130.9 | D104: 1160.17 | E104: 1088.43 | F104: 1045.97 | G104: 974.23 | H104: 1202.63 | I104: 1274.37 | J104: 1316.83 | K104: 1231.9 | L104: 1117.7 | M104: 4.04796
A105: 96 | B105: CIPLA | C105: 640.45 | D105: 641.15 | E105: 636.30 | F105: 632.15 | G105: 627.30 | H105: 645.30 | I105: 650.15 | J105: 654.30 | K105: 646 | L105: 637 | M105: 12.8098
A106: 97 | B106: COALINDIA | C106: 279.9 | D106: 280.32 | E106: 276.78 | F106: 273.67 | G106: 270.13 | H106: 283.43 | I106: 286.97 | J106: 290.08 | K106: 283.85 | L106: 277.2 | M106: 30.81043
A107: 98 | B107: COCHINSHIP | C107: 387.75 | D107: 392.25 | E107: 380.50 | F107: 373.25 | G107: 361.50 | H107: 399.50 | I107: 411.25 | J107: 418.50 | K107: 404 | L107: 385 | M107: 5.29391
A108: 99 | B108: COFFEEDAY | C108: 268.15 | D108: 267.53 | E108: 258.12 | F108: 248.08 | G108: 238.67 | H108: 277.57 | I108: 286.98 | J108: 297.02 | K108: 276.95 | L108: 257.5 | M108: 1.76097
A109: 100 | B109: COLPAL | C109: 1084.7 | D109: 1092.40 | E109: 1072.80 | F109: 1060.90 | G109: 1041.30 | H109: 1104.30 | I109: 1123.90 | J109: 1135.80 | K109: 1112 | L109: 1080.5 | M109: 3.15135
A110: 101 | B110: CONCOR | C110: 599.35 | D110: 602.78 | E110: 592.57 | F110: 585.78 | G110: 575.57 | H110: 609.57 | I110: 619.78 | J110: 626.57 | K110: 613 | L110: 596 | M110: 4.4341
A111: 102 | B111: COROMANDEL | C111: 385.2 | D111: 388.03 | E111: 382.17 | F111: 379.13 | G111: 373.27 | H111: 391.07 | I111: 396.93 | J111: 399.97 | K111: 393.9 | L111: 385 | M111: 0.64384
A112: 103 | B112: COX&KINGS | C112: 197.6 | D112: 202.63 | E112: 190.47 | F112: 183.33 | G112: 171.17 | H112: 209.77 | I112: 221.93 | J112: 229.07 | K112: 214.8 | L112: 195.5 | M112: 1.19297
A113: 104 | B113: CRISIL | C113: 1573.25 | D113: 1591.42 | E113: 1532.83 | F113: 1492.42 | G113: 1433.83 | H113: 1631.83 | I113: 1690.42 | J113: 1730.83 | K113: 1650 | L113: 1551 | M113: 0.4396
A114: 105 | B114: CROMPTON | C114: 199.05 | D114: 199.63 | E114: 197.27 | F114: 195.48 | G114: 193.12 | H114: 201.42 | I114: 203.78 | J114: 205.57 | K114: 202 | L114: 197.85 | M114: 3.63411
A115: 106 | B115: CUB | C115: 169.8 | D115: 168.93 | E115: 165.12 | F115: 160.43 | G115: 156.62 | H115: 173.62 | I115: 177.43 | J115: 182.12 | K115: 172.75 | L115: 164.25 | M115: 8.83284
A116: 107 | B116: CUMMINSIND | C116: 684.4 | D116: 691.38 | E116: 671.82 | F116: 659.23 | G116: 639.67 | H116: 703.97 | I116: 723.53 | J116: 736.12 | K116: 710.95 | L116: 678.8 | M116: 1.53319
A117: 108 | B117: CYIENT | C117: 669.3 | D117: 673.77 | E117: 660.53 | F117: 651.77 | G117: 638.53 | H117: 682.53 | I117: 695.77 | J117: 704.53 | K117: 687 | L117: 665 | M117: 1.21884
A118: 109 | B118: DABUR | C118: 403.05 | D118: 408.93 | E118: 394.87 | F118: 386.68 | G118: 372.62 | H118: 417.12 | I118: 431.18 | J118: 439.37 | K118: 423 | L118: 400.75 | M118: 38.09686
A119: 110 | B119: DBCORP | C119: 186.9 | D119: 188.98 | E119: 182.97 | F119: 179.03 | G119: 173.02 | H119: 192.92 | I119: 198.93 | J119: 202.87 | K119: 195 | L119: 185.05 | M119: 0.25731
A120: 111 | B120: DBL | C120: 468.75 | D120: 490.58 | E120: 436.17 | F120: 403.58 | G120: 349.17 | H120: 523.17 | I120: 577.58 | J120: 610.17 | K120: 545 | L120: 458 | M120: 18.65154
A121: 112 | B121: DBREALTY | C121: 20.05 | D121: 20.57 | E121: 19.38 | F121: 18.72 | G121: 17.53 | H121: 21.23 | I121: 22.42 | J121: 23.08 | K121: 21.75 | L121: 19.9 | M121: 3.71239
A122: 113 | B122: DCAL | C122: 230.2 | D122: 234.63 | E122: 224.57 | F122: 218.93 | G122: 208.87 | H122: 240.27 | I122: 250.33 | J122: 255.97 | K122: 244.7 | L122: 229 | M122: 3.19345
A123: 114 | B123: DCBBANK | C123: 160 | D123: 163.83 | E123: 154.17 | F123: 148.33 | G123: 138.67 | H123: 169.67 | I123: 179.33 | J123: 185.17 | K123: 173.5 | L123: 158 | M123: 43.49002
A124: 115 | B124: DCMSHRIRAM | C124: 383.55 | D124: 399.67 | E124: 354.33 | F124: 325.12 | G124: 279.78 | H124: 428.88 | I124: 474.22 | J124: 503.43 | K124: 445 | L124: 370.45 | M124: 4.7988
A125: 116 | B125: DEEPAKFERT | C125: 219.05 | D125: 223.80 | E125: 211.60 | F125: 204.15 | G125: 191.95 | H125: 231.25 | I125: 243.45 | J125: 250.90 | K125: 236 | L125: 216.35 | M125: 3.06139
A126: 117 | B126: DELTACORP | C126: 226.55 | D126: 232.68 | E126: 218.37 | F126: 210.18 | G126: 195.87 | H126: 240.87 | I126: 255.18 | J126: 263.37 | K126: 247 | L126: 224.5 | M126: 42.43171
A127: 118 | B127: DEN | C127: 76.05 | D127: 75.32 | E127: 73.23 | F127: 70.42 | G127: 68.33 | H127: 78.13 | I127: 80.22 | J127: 83.03 | K127: 77.4 | L127: 72.5 | M127: 10.25978
A128: 119 | B128: DENABANK | C128: 15.1 | D128: 15.28 | E128: 14.82 | F128: 14.53 | G128: 14.07 | H128: 15.57 | I128: 16.03 | J128: 16.32 | K128: 15.75 | L128: 15 | M128: 8.52982
A129: 120 | B129: DHFL | C129: 235.9 | D129: 248.13 | E129: 221.97 | F129: 208.03 | G129: 181.87 | H129: 262.07 | I129: 288.23 | J129: 302.17 | K129: 274.3 | L129: 234.2 | M129: 411.49209
A130: 121 | B130: DISHTV | C130: 50.25 | D130: 51.42 | E130: 48.83 | F130: 47.42 | G130: 44.83 | H130: 52.83 | I130: 55.42 | J130: 56.83 | K130: 54 | L130: 50 | M130: 47.69632
A131: 122 | B131: DIVISLAB | C131: 1301.2 | D131: 1304.12 | E131: 1288.78 | F131: 1276.37 | G131: 1261.03 | H131: 1316.53 | I131: 1331.87 | J131: 1344.28 | K131: 1319.45 | L131: 1291.7 | M131: 6.93098
A132: 123 | B132: DIXON | C132: 2329.15 | D132: 2348.48 | E132: 2278.97 | F132: 2228.78 | G132: 2159.27 | H132: 2398.67 | I132: 2468.18 | J132: 2518.37 | K132: 2418 | L132: 2298.3 | M132: 0.24081
A133: 124 | B133: DLF | C133: 144.35 | D133: 149.92 | E133: 137.43 | F133: 130.52 | G133: 118.03 | H133: 156.83 | I133: 169.32 | J133: 176.23 | K133: 162.4 | L133: 143 | M133: 119.09786
A134: 125 | B134: DMART | C134: 1308.65 | D134: 1320.88 | E134: 1287.77 | F134: 1266.88 | G134: 1233.77 | H134: 1341.77 | I134: 1374.88 | J134: 1395.77 | K134: 1354 | L134: 1300 | M134: 5.49534
A135: 126 | B135: DREDGECORP | C135: 330 | D135: 337.35 | E135: 320.00 | F135: 310.00 | G135: 292.65 | H135: 347.35 | I135: 364.70 | J135: 374.70 | K135: 354.7 | L135: 327.35 | M135: 0.8539
A136: 127 | B136: DRREDDY | C136: 2565 | D136: 2572.00 | E136: 2545.00 | F136: 2525.00 | G136: 2498.00 | H136: 2592.00 | I136: 2619.00 | J136: 2639.00 | K136: 2599 | L136: 2552 | M136: 4.92009
A137: 128 | B137: ECLERX | C137: 1072.95 | D137: 1083.93 | E137: 1056.87 | F137: 1040.78 | G137: 1013.72 | H137: 1100.02 | I137: 1127.08 | J137: 1143.17 | K137: 1111 | L137: 1067.85 | M137: 0.07933
A138: 129 | B138: EDELWEISS | C138: 167.65 | D138: 175.83 | E138: 159.47 | F138: 151.28 | G138: 134.92 | H138: 184.02 | I138: 200.38 | J138: 208.57 | K138: 192.2 | L138: 167.65 | M138: 90.16373
A139: 130 | B139: EICHERMOT | C139: 21978.1 | D139: 22518.50 | E139: 21309.60 | F139: 20641.10 | G139: 19432.20 | H139: 23187.00 | I139: 24395.90 | J139: 25064.40 | K139: 23727.4 | L139: 21850 | M139: 1.20733
A140: 131 | B140: EIDPARRY | C140: 194.7 | D140: 198.43 | E140: 188.87 | F140: 183.03 | G140: 173.47 | H140: 204.27 | I140: 213.83 | J140: 219.67 | K140: 208 | L140: 192.6 | M140: 2.22159
A141: 132 | B141: EIHOTEL | C141: 155.1 | D141: 155.52 | E141: 151.53 | F141: 147.97 | G141: 143.98 | H141: 159.08 | I141: 163.07 | J141: 166.63 | K141: 159.5 | L141: 151.95 | M141: 1.09593
A142: 133 | B142: EMAMILTD | C142: 431.2 | D142: 437.23 | E142: 421.97 | F142: 412.73 | G142: 397.47 | H142: 446.47 | I142: 461.73 | J142: 470.97 | K142: 452.5 | L142: 428 | M142: 1.79059
A143: 134 | B143: ENDURANCE | C143: 1166.15 | D143: 1170.00 | E143: 1134.15 | F143: 1102.15 | G143: 1066.30 | H143: 1202.00 | I143: 1237.85 | J143: 1269.85 | K143: 1205.85 | L143: 1138 | M143: 0.40713
A144: 135 | B144: ENGINERSIN | C144: 114.55 | D144: 116.18 | E144: 112.37 | F144: 110.18 | G144: 106.37 | H144: 118.37 | I144: 122.18 | J144: 124.37 | K144: 120 | L144: 114 | M144: 27.79816
A145: 136 | B145: EQUITAS | C145: 125.6 | D145: 128.22 | E145: 121.88 | F145: 118.17 | G145: 111.83 | H145: 131.93 | I145: 138.27 | J145: 141.98 | K145: 134.55 | L145: 124.5 | M145: 21.46944
A146: 137 | B146: ERIS | C146: 703.7 | D146: 702.52 | E146: 695.18 | F146: 686.67 | G146: 679.33 | H146: 711.03 | I146: 718.37 | J146: 726.88 | K146: 709.85 | L146: 694 | M146: 0.05876
A147: 138 | B147: EROSMEDIA | C147: 77.4 | D147: 79.00 | E147: 75.40 | F147: 73.40 | G147: 69.80 | H147: 81.00 | I147: 84.60 | J147: 86.60 | K147: 82.6 | L147: 77 | M147: 3.04474
A148: 139 | B148: ESCORTS | C148: 617.95 | D148: 627.60 | E148: 605.60 | F148: 593.25 | G148: 571.25 | H148: 639.95 | I148: 661.95 | J148: 674.30 | K148: 649.6 | L148: 615.25 | M148: 24.45573
A149: 140 | B149: EVEREADY | C149: 199.85 | D149: 201.95 | E149: 194.00 | F149: 188.15 | G149: 180.20 | H149: 207.80 | I149: 215.75 | J149: 221.60 | K149: 209.9 | L149: 196.1 | M149: 0.35883
A150: 141 | B150: EXIDEIND | C150: 262.75 | D150: 264.03 | E150: 259.82 | F150: 256.88 | G150: 252.67 | H150: 266.97 | I150: 271.18 | J150: 274.12 | K150: 268.25 | L150: 261.1 | M150: 16.42153
A151: 142 | B151: FCONSUMER | C151: 41.35 | D151: 42.32 | E151: 39.83 | F151: 38.32 | G151: 35.83 | H151: 43.83 | I151: 46.32 | J151: 47.83 | K151: 44.8 | L151: 40.8 | M151: 48.72645
A152: 143 | B152: FEDERALBNK | C152: 78.5 | D152: 80.10 | E152: 76.65 | F152: 74.80 | G152: 71.35 | H152: 81.95 | I152: 85.40 | J152: 87.25 | K152: 83.55 | L152: 78.25 | M152: 227.24327
A153: 144 | B153: FINCABLES | C153: 526.85 | D153: 529.92 | E153: 515.03 | F153: 503.22 | G153: 488.33 | H153: 541.73 | I153: 556.62 | J153: 568.43 | K153: 544.8 | L153: 518.1 | M153: 0.36717
A154: 145 | B154: FINPIPE | C154: 481.4 | D154: 487.12 | E154: 474.28 | F154: 467.17 | G154: 454.33 | H154: 494.23 | I154: 507.07 | J154: 514.18 | K154: 499.95 | L154: 480 | M154: 0.45615
A155: 146 | B155: FLFL | C155: 397.45 | D155: 397.72 | E155: 392.38 | F155: 387.32 | G155: 381.98 | H155: 402.78 | I155: 408.12 | J155: 413.18 | K155: 403.05 | L155: 392.65 | M155: 0.21424
A156: 147 | B156: FSL | C156: 62.15 | D156: 62.63 | E156: 61.02 | F156: 59.88 | G156: 58.27 | H156: 63.77 | I156: 65.38 | J156: 66.52 | K156: 64.25 | L156: 61.5 | M156: 32.0176
A157: 148 | B157: GAIL | C157: 345.35 | D157: 351.07 | E157: 337.88 | F157: 330.42 | G157: 317.23 | H157: 358.53 | I157: 371.72 | J157: 379.18 | K157: 364.25 | L157: 343.6 | M157: 46.43833
A158: 149 | B158: GATI | C158: 77.2 | D158: 78.00 | E158: 74.20 | F158: 71.20 | G158: 67.40 | H158: 81.00 | I158: 84.80 | J158: 87.80 | K158: 81.8 | L158: 75 | M158: 4.45925
A159: 150 | B159: GDL | C159: 159.9 | D159: 161.30 | E159: 157.05 | F159: 154.20 | G159: 149.95 | H159: 164.15 | I159: 168.40 | J159: 171.25 | K159: 165.55 | L159: 158.45 | M159: 0.20586
A160: 151 | B160: GEPIL | C160: 794.8 | D160: 788.63 | E160: 777.32 | F160: 759.83 | G160: 748.52 | H160: 806.12 | I160: 817.43 | J160: 834.92 | K160: 799.95 | L160: 771.15 | M160: 0.20291
A161: 152 | B161: GESHIP | C161: 283.05 | D161: 284.67 | E161: 280.88 | F161: 278.72 | G161: 274.93 | H161: 286.83 | I161: 290.62 | J161: 292.78 | K161: 288.45 | L161: 282.5 | M161: 0.12285
A162: 153 | B162: GET&D | C162: 255.4 | D162: 259.68 | E162: 249.37 | F162: 243.33 | G162: 233.02 | H162: 265.72 | I162: 276.03 | J162: 282.07 | K162: 270 | L162: 253.65 | M162: 0.31264
A163: 154 | B163: GHCL | C163: 212.7 | D163: 217.00 | E163: 206.00 | F163: 199.30 | G163: 188.30 | H163: 223.70 | I163: 234.70 | J163: 241.40 | K163: 228 | L163: 210.3 | M163: 0.71634
A164: 155 | B164: GICRE | C164: 310.3 | D164: 312.45 | E164: 303.95 | F164: 297.60 | G164: 289.10 | H164: 318.80 | I164: 327.30 | J164: 333.65 | K164: 320.95 | L164: 306.1 | M164: 0.65322
A165: 156 | B165: GILLETTE | C165: 6600.65 | D165: 6603.55 | E165: 6509.10 | F165: 6417.55 | G165: 6323.10 | H165: 6695.10 | I165: 6789.55 | J165: 6881.10 | K165: 6698 | L165: 6512 | M165: 0.06276
A166: 157 | B166: GLAXO | C166: 1451.5 | D166: 1454.17 | E166: 1425.33 | F166: 1399.17 | G166: 1370.33 | H166: 1480.33 | I166: 1509.17 | J166: 1535.33 | K166: 1483 | L166: 1428 | M166: 0.34877
A167: 158 | B167: GLENMARK | C167: 599.7 | D167: 602.15 | E167: 592.55 | F167: 585.40 | G167: 575.80 | H167: 609.30 | I167: 618.90 | J167: 626.05 | K167: 611.75 | L167: 595 | M167: 5.29012
A168: 159 | B168: GMDCLTD | C168: 95.8 | D168: 96.48 | E168: 94.52 | F168: 93.23 | G168: 91.27 | H168: 97.77 | I168: 99.73 | J168: 101.02 | K168: 98.45 | L168: 95.2 | M168: 0.94322
A169: 160 | B169: GMRINFRA | C169: 15.7 | D169: 16.05 | E169: 15.20 | F169: 14.70 | G169: 13.85 | H169: 16.55 | I169: 17.40 | J169: 17.90 | K169: 16.9 | L169: 15.55 | M169: 259.69831
A170: 161 | B170: GNFC | C170: 338 | D170: 341.80 | E170: 333.20 | F170: 328.40 | G170: 319.80 | H170: 346.60 | I170: 355.20 | J170: 360.00 | K170: 350.4 | L170: 337 | M170: 3.61795
A171: 162 | B171: GODFRYPHLP | C171: 737.65 | D171: 743.45 | E171: 724.40 | F171: 711.15 | G171: 692.10 | H171: 756.70 | I171: 775.75 | J171: 789.00 | K171: 762.5 | L171: 730.2 | M171: 3.04302
A172: 163 | B172: GODREJAGRO | C172: 533.65 | D172: 535.77 | E172: 527.73 | F172: 521.82 | G172: 513.78 | H172: 541.68 | I172: 549.72 | J172: 555.63 | K172: 543.8 | L172: 529.85 | M172: 0.49574
A173: 164 | B173: GODREJCP | C173: 734.3 | D173: 742.43 | E173: 722.87 | F173: 711.43 | G173: 691.87 | H173: 753.87 | I173: 773.43 | J173: 784.87 | K173: 762 | L173: 731 | M173: 9.17359
A174: 165 | B174: GODREJIND | C174: 470.15 | D174: 478.37 | E174: 458.78 | F174: 447.42 | G174: 427.83 | H174: 489.73 | I174: 509.32 | J174: 520.68 | K174: 497.95 | L174: 467 | M174: 6.74673
A175: 166 | B175: GODREJPROP | C175: 539.75 | D175: 538.73 | E175: 526.02 | F175: 512.28 | G175: 499.57 | H175: 552.47 | I175: 565.18 | J175: 578.92 | K175: 551.45 | L175: 525 | M175: 1.74623
A176: 167 | B176: GPPL | C176: 101.6 | D176: 102.40 | E176: 100.30 | F176: 99.00 | G176: 96.90 | H176: 103.70 | I176: 105.80 | J176: 107.10 | K176: 104.5 | L176: 101.1 | M176: 2.47731
A177: 168 | B177: GRANULES | C177: 94.1 | D177: 95.65 | E177: 91.95 | F177: 89.80 | G177: 86.10 | H177: 97.80 | I177: 101.50 | J177: 103.65 | K177: 99.35 | L177: 93.5 | M177: 44.0649
A178: 169 | B178: GRAPHITE | C178: 1013.1 | D178: 1016.23 | E178: 973.47 | F178: 933.83 | G178: 891.07 | H178: 1055.87 | I178: 1098.63 | J178: 1138.27 | K178: 1059 | L178: 976.6 | M178: 11.4132
A179: 170 | B179: GRASIM | C179: 881.95 | D179: 892.13 | E179: 868.67 | F179: 855.38 | G179: 831.92 | H179: 905.42 | I179: 928.88 | J179: 942.17 | K179: 915.6 | L179: 878.85 | M179: 5.29956
A180: 171 | B180: GREAVESCOT | C180: 124.55 | D180: 125.68 | E180: 122.97 | F180: 121.38 | G180: 118.67 | H180: 127.27 | I180: 129.98 | J180: 131.57 | K180: 128.4 | L180: 124.1 | M180: 1.99531
A181: 172 | B181: GREENPLY | C181: 126.2 | D181: 129.67 | E181: 121.33 | F181: 116.47 | G181: 108.13 | H181: 134.53 | I181: 142.87 | J181: 147.73 | K181: 138 | L181: 124.8 | M181: 15.85231
A182: 173 | B182: GRUH | C182: 278.75 | D182: 282.13 | E182: 274.27 | F182: 269.78 | G182: 261.92 | H182: 286.62 | I182: 294.48 | J182: 298.97 | K182: 290 | L182: 277.65 | M182: 4.37952
A183: 174 | B183: GSFC | C183: 92.8 | D183: 94.85 | E183: 90.20 | F183: 87.60 | G183: 82.95 | H183: 97.45 | I183: 102.10 | J183: 104.70 | K183: 99.5 | L183: 92.25 | M183: 19.79241
A184: 175 | B184: GSKCONS | C184: 6970.65 | D184: 6986.22 | E184: 6894.43 | F184: 6818.22 | G184: 6726.43 | H184: 7062.43 | I184: 7154.22 | J184: 7230.43 | K184: 7078 | L184: 6910 | M184: 0.04789
A185: 176 | B185: GSPL | C185: 167.55 | D185: 167.93 | E185: 164.07 | F185: 160.58 | G185: 156.72 | H185: 171.42 | I185: 175.28 | J185: 178.77 | K185: 171.8 | L185: 164.45 | M185: 8.26512
A186: 177 | B186: GUJALKALI | C186: 599.45 | D186: 605.68 | E186: 588.27 | F186: 577.08 | G186: 559.67 | H186: 616.87 | I186: 634.28 | J186: 645.47 | K186: 623.1 | L186: 594.5 | M186: 0.93207
A187: 178 | B187: GUJFLUORO | C187: 876.3 | D187: 878.13 | E187: 864.37 | F187: 852.43 | G187: 838.67 | H187: 890.07 | I187: 903.83 | J187: 915.77 | K187: 891.9 | L187: 866.2 | M187: 5.77619
A188: 179 | B188: GUJGASLTD | C188: 641.9 | D188: 655.30 | E188: 621.65 | F188: 601.40 | G188: 567.75 | H188: 675.55 | I188: 709.20 | J188: 729.45 | K188: 688.95 | L188: 635.05 | M188: 0.21338
A189: 180 | B189: GULFOILLUB | C189: 725.65 | D189: 722.00 | E189: 714.90 | F189: 704.15 | G189: 697.05 | H189: 732.75 | I189: 739.85 | J189: 750.60 | K189: 729.1 | L189: 711.25 | M189: 0.71338
A190: 181 | B190: GVKPIL | C190: 7.3 | D190: 7.53 | E190: 7.07 | F190: 6.83 | G190: 6.37 | H190: 7.77 | I190: 8.23 | J190: 8.47 | K190: 8 | L190: 7.3 | M190: 26.31102
A191: 182 | B191: HATHWAY | C191: 29.45 | D191: 29.83 | E191: 28.17 | F191: 26.88 | G191: 25.22 | H191: 31.12 | I191: 32.78 | J191: 34.07 | K191: 31.5 | L191: 28.55 | M191: 41.60472
A192: 183 | B192: HATSUN | C192: 629.2 | D192: 626.38 | E192: 617.77 | F192: 606.33 | G192: 597.72 | H192: 637.82 | I192: 646.43 | J192: 657.87 | K192: 635 | L192: 614.95 | M192: 0.06285
A193: 184 | B193: HAVELLS | C193: 586.9 | D193: 595.18 | E193: 570.77 | F193: 554.63 | G193: 530.22 | H193: 611.32 | I193: 635.73 | J193: 651.87 | K193: 619.6 | L193: 579.05 | M193: 33.14282
A194: 185 | B194: HCC | C194: 12.4 | D194: 12.82 | E194: 11.88 | F194: 11.37 | G194: 10.43 | H194: 13.33 | I194: 14.27 | J194: 14.78 | K194: 13.75 | L194: 12.3 | M194: 85.40169
A195: 186 | B195: HCL-INSYS | C195: 26.35 | D195: 26.80 | E195: 25.75 | F195: 25.15 | G195: 24.10 | H195: 27.40 | I195: 28.45 | J195: 29.05 | K195: 27.85 | L195: 26.2 | M195: 8.01529
A196: 187 | B196: HCLTECH | C196: 1024.25 | D196: 1022.42 | E196: 1008.83 | F196: 993.42 | G196: 979.83 | H196: 1037.83 | I196: 1051.42 | J196: 1066.83 | K196: 1036 | L196: 1007 | M196: 16.26985
A197: 188 | B197: HDFC | C197: 1737.8 | D197: 1747.43 | E197: 1719.87 | F197: 1701.93 | G197: 1674.37 | H197: 1765.37 | I197: 1792.93 | J197: 1810.87 | K197: 1775 | L197: 1729.5 | M197: 35.84746
A198: 189 | B198: HDFCBANK | C198: 1974.6 | D198: 1983.70 | E198: 1954.40 | F198: 1934.20 | G198: 1904.90 | H198: 2003.90 | I198: 2033.20 | J198: 2053.40 | K198: 2013 | L198: 1963.5 | M198: 19.85199
A199: 190 | B199: HDIL | C199: 20.2 | D199: 20.77 | E199: 19.63 | F199: 19.07 | G199: 17.93 | H199: 21.33 | I199: 22.47 | J199: 23.03 | K199: 21.9 | L199: 20.2 | M199: 29.57644
A200: 191 | B200: HEG | C200: 4421.7 | D200: 4544.23 | E200: 4203.47 | F200: 3985.23 | G200: 3644.47 | H200: 4762.47 | I200: 5103.23 | J200: 5321.47 | K200: 4885 | L200: 4326 | M200: 6.75217
A201: 192 | B201: HEIDELBERG | C201: 144.55 | D201: 146.02 | E201: 142.03 | F201: 139.52 | G201: 135.53 | H201: 148.53 | I201: 152.52 | J201: 155.03 | K201: 150 | L201: 143.5 | M201: 0.71368
A202: 193 | B202: HERITGFOOD | C202: 521.75 | D202: 525.97 | E202: 511.93 | F202: 502.12 | G202: 488.08 | H202: 535.78 | I202: 549.82 | J202: 559.63 | K202: 540 | L202: 516.15 | M202: 0.09995
A203: 194 | B203: HEROMOTOCO | C203: 2807.55 | D203: 2856.27 | E203: 2717.53 | F203: 2627.52 | G203: 2488.78 | H203: 2946.28 | I203: 3085.02 | J203: 3175.03 | K203: 2995 | L203: 2766.25 | M203: 16.25059
A204: 195 | B204: HEXAWARE | C204: 394.7 | D204: 396.23 | E204: 389.47 | F204: 384.23 | G204: 377.47 | H204: 401.47 | I204: 408.23 | J204: 413.47 | K204: 403 | L204: 391 | M204: 6.59454
A205: 196 | B205: HFCL | C205: 20.85 | D205: 21.32 | E205: 20.28 | F205: 19.72 | G205: 18.68 | H205: 21.88 | I205: 22.92 | J205: 23.48 | K205: 22.35 | L205: 20.75 | M205: 25.57189
A206: 197 | B206: HIMATSEIDE | C206: 238.55 | D206: 241.35 | E206: 232.25 | F206: 225.95 | G206: 216.85 | H206: 247.65 | I206: 256.75 | J206: 263.05 | K206: 250.45 | L206: 235.05 | M206: 0.14621
... 304 more rows

Sheet Bulk Deals
E6: Back To Main Page
A7: Subject : | B7: BULK DEAL | D7: =Main!B10 -> 2018-10-19
A9: Date | B9: Scrip code | C9: Scrip Name | D9: Client Name | E9: Buy / Sell | F9: Quantity Traded | G9: Trade Price / Wt.Avg.trade price | H9: Exchange
A10: 2018-10-17 | B10: 530043 | C10: ACKNIT | D10: PREMAL PIYUSH SONI HUF | E10: SELL | F10: 9,079 | G10: 171.47 | H10: BSE
A11: 2018-10-17 | B11: 530043 | C11: ACKNIT | D11: PREMAL PIYUSH SONI HUF | E11: BUY | F11: 19,029 | G11: 168.56 | H11: BSE
A12: 2018-10-17 | B12: 530043 | C12: ACKNIT | D12: JYOTI DESHMUKH | E12: SELL | F12: 32,751 | G12: 168.75 | H12: BSE
A13: 2018-10-17 | B13: 530043 | C13: ACKNIT | D13: JYOTI DESHMUKH | E13: BUY | F13: 31,752 | G13: 171 | H13: BSE
A14: 2018-10-17 | B14: 542020 | C14: AKI | D14: NEWEDGE VINIMAY PRIVATE LIMITED | E14: SELL | F14: 130,000 | G14: 11.04 | H14: BSE
A15: 2018-10-17 | B15: 542020 | C15: AKI | D15: NEWEDGE VINIMAY PRIVATE LIMITED | E15: BUY | F15: 130,000 | G15: 10.95 | H15: BSE
A16: 2018-10-17 | B16: 542020 | C16: AKI | D16: NNM SECURITIES PVT LTD | E16: BUY | F16: 150,000 | G16: 10.95 | H16: BSE
A17: 2018-10-17 | B17: 542020 | C17: AKI | D17: JHAVERI TRADING AND INVESTMENT PVT LTD | E17: SELL | F17: 400,000 | G17: 10.97 | H17: BSE
A18: 2018-10-17 | B18: 542020 | C18: AKI | D18: GRACEUNITED REAL ESTATE PRIVATE LIMITED | E18: BUY | F18: 120,000 | G18: 11.05 | H18: BSE
A19: 2018-10-17 | B19: 540024 | C19: ASHARI | D19: VIRPAL SINGH | E19: SELL | F19: 55,000 | G19: 31.59 | H19: BSE
A20: 2018-10-17 | B20: 530859 | C20: COSBOARD | D20: RATTAN CHAND | E20: SELL | F20: 35,000 | G20: 18.35 | H20: BSE
A21: 2018-10-17 | B21: 530859 | C21: COSBOARD | D21: RATTAN CHAND | E21: BUY | F21: 35,000 | G21: 17.1 | H21: BSE
A22: 2018-10-17 | B22: 530859 | C22: COSBOARD | D22: KUSH BANSAL | E22: SELL | F22: 35,000 | G22: 17.1 | H22: BSE
A23: 2018-10-17 | B23: 530859 | C23: COSBOARD | D23: KUSH BANSAL | E23: BUY | F23: 35,800 | G23: 18.35 | H23: BSE
A24: 2018-10-17 | B24: 539770 | C24: DARJEELING | D24: MEHUL HASMUKH SHAH | E24: BUY | F24: 24,669 | G24: 69.67 | H24: BSE
A25: 2018-10-17 | B25: 539770 | C25: DARJEELING | D25: MEET MUKESHKUMAR DOSHI | E25: SELL | F25: 22,400 | G25: 69.7 | H25: BSE
A26: 2018-10-17 | B26: 538765 | C26: JSHL | D26: VIVEKANAND NARAINDAS GANGARAMANI | E26: SELL | F26: 35,000 | G26: 4.5 | H26: BSE
A27: 2018-10-17 | B27: 526947 | C27: LAOPALA | D27: ABG CAPITAL | E27: SELL | F27: 819,603 | G27: 225 | H27: BSE
A28: 2018-10-17 | B28: 526947 | C28: LAOPALA | D28: DSP BLACKROCK MUTUAL FUND | E28: BUY | F28: 2,271,695 | G28: 225 | H28: BSE
A29: 2018-10-17 | B29: 526947 | C29: LAOPALA | D29: LTR FOCUS FUND | E29: SELL | F29: 604,181 | G29: 225 | H29: BSE
A30: 2018-10-17 | B30: 526947 | C30: LAOPALA | D30: STEADVIEW CAPITAL MAURITIUS LIMITED | E30: SELL | F30: 3,437,911 | G30: 225 | H30: BSE
A31: 2018-10-17 | B31: 526947 | C31: LAOPALA | D31: UTI MUTUAL FUND | E31: BUY | F31: 1,550,000 | G31: 225 | H31: BSE
A32: 2018-10-17 | B32: 540416 | C32: OCTAWARE | D32: ARYAMAN BROKING LIMITED | E32: BUY | F32: 24,000 | G32: 104.9 | H32: BSE
A33: 2018-10-17 | B33: 531802 | C33: PRERINFRA | D33: VARSHA SHAH | E33: SELL | F33: 5,619 | G33: 17.46 | H33: BSE
A34: 2018-10-17 | B34: 531802 | C34: PRERINFRA | D34: VARSHA SHAH | E34: BUY | F34: 100,619 | G34: 18.45 | H34: BSE
A35: 2018-10-17 | B35: 531802 | C35: PRERINFRA | D35: MITTAL MUKESHKUMAR SHAH | E35: SELL | F35: 90,000 | G35: 18.42 | H35: BSE
A36: 2018-10-17 | B36: 539760 | C36: RELICAB | D36: AMAR MUKESHBHAI SHAH | E36: BUY | F36: 60,000 | G36: 27.9 | H36: BSE
A37: 2018-10-17 | B37: 539760 | C37: RELICAB | D37: SAJANKUMAR RAMESHWARLAL BAJAJ | E37: SELL | F37: 156,000 | G37: 27.9 | H37: BSE
A38: 2018-10-17 | B38: 539760 | C38: RELICAB | D38: SHAH MUKESHKUMAR BABULAL | E38: BUY | F38: 96,000 | G38: 27.9 | H38: BSE
A39: 2018-10-17 | B39: 531952 | C39: RIBATEX | D39: AVTAR INSTALMENTS PRIVATE LIMITED | E39: SELL | F39: 33,500 | G39: 84.44 | H39: BSE
A40: 2018-10-17 | B40: 531952 | C40: RIBATEX | D40: AVTAR INSTALMENTS PRIVATE LIMITED | E40: BUY | F40: 55,000 | G40: 85.45 | H40: BSE
A41: 2018-10-17 | B41: 531952 | C41: RIBATEX | D41: GANESH KUMAR DUBEY | E41: SELL | F41: 55,000 | G41: 85.5 | H41: BSE
A42: 2018-10-17 | B42: 506906 | C42: SCBL | D42: VISHNU BANWARILAL SHARMA | E42: SELL | F42: 68,890 | G42: 11.88 | H42: BSE
A43: 2018-10-17 | B43: 506906 | C43: SCBL | D43: VISHNU BANWARILAL SHARMA | E43: BUY | F43: 68,489 | G43: 11.64 | H43: BSE
A44: 2018-10-17 | B44: 514264 | C44: SEASONST | D44: KUSH BANSAL | E44: SELL | F44: 111,700 | G44: 9.21 | H44: BSE
A45: 2018-10-17 | B45: 514264 | C45: SEASONST | D45: KUSH BANSAL | E45: BUY | F45: 98,000 | G45: 10.3 | H45: BSE
A46: 2018-10-17 | B46: 514264 | C46: SEASONST | D46: RATTAN CHAND | E46: SELL | F46: 97,100 | G46: 10.29 | H46: BSE
A47: 2018-10-17 | B47: 514264 | C47: SEASONST | D47: RATTAN CHAND | E47: BUY | F47: 97,100 | G47: 9.21 | H47: BSE
A48: 2018-10-17 | B48: 539520 | C48: SHAILJA | D48: AKSHAR INVESTMENT | E48: SELL | F48: 27,264 | G48: 20.8 | H48: BSE
A49: 2018-10-17 | B49: 539520 | C49: SHAILJA | D49: KUBER EQUITY SERVICES LLP | E49: SELL | F49: 1,782 | G49: 20.8 | H49: BSE
A50: 2018-10-17 | B50: 539520 | C50: SHAILJA | D50: KUBER EQUITY SERVICES LLP | E50: BUY | F50: 21,750 | G50: 20.75 | H50: BSE
A51: 2018-10-17 | B51: 539520 | C51: SHAILJA | D51: SWAMINATHAN KRISHNAN | E51: BUY | F51: 17,242 | G51: 20.7 | H51: BSE
A52: 2018-10-17 | B52: 542019 | C52: SHUBHAM | D52: SANJAY KUMAR SINGHAL | E52: SELL | F52: 36,000 | G52: 43.9 | H52: BSE
A53: 2018-10-17 | B53: 542019 | C53: SHUBHAM | D53: TRUST FINSTOCK PVT LTD | E53: SELL | F53: 45,000 | G53: 43.41 | H53: BSE
A54: 2018-10-17 | B54: 542019 | C54: SHUBHAM | D54: A SHAH VISMAY | E54: BUY | F54: 102,000 | G54: 43.66 | H54: BSE
A55: 2018-10-17 | B55: 542019 | C55: SHUBHAM | D55: AFPL TRADELINK LLP | E55: BUY | F55: 30,000 | G55: 43.7 | H55: BSE
A56: 2018-10-17 | B56: 542019 | C56: SHUBHAM | D56: PATEL BHAGVATPRASAD MANIL AL (HUF) | E56: SELL | F56: 45,000 | G56: 43.7 | H56: BSE
A57: 2018-10-17 | B57: 542019 | C57: SHUBHAM | D57: INDRESH WAGHJIBHAI SHAH | E57: BUY | F57: 33,000 | G57: 43.5 | H57: BSE
A58: 2018-10-17 | B58: 505515 | C58: SHYMINV | D58: AKI INDIA LIMITED | E58: BUY | F58: 114,000 | G58: 34.99 | H58: BSE
A59: 2018-10-17 | B59: 541967 | C59: SKYGOLD | D59: NOPEA CAPITAL SERVICES PRIVATE LIMITED | E59: BUY | F59: 45,600 | G59: 183.4 | H59: BSE
A60: 2018-10-17 | B60: 541967 | C60: SKYGOLD | D60: MUKESH BABULAL SHAH | E60: SELL | F60: 56,000 | G60: 183.4 | H60: BSE
A61: 2018-10-17 | B61: 519242 | C61: SRDAPRT | D61: ANAND KUMAR KABRA | E61: SELL | F61: 16,000 | G61: 4.75 | H61: BSE
A62: 2018-10-17 | B62: 542025 | C62: SUNRETAIL | D62: JAYANTKUMAR PARASMAL PAREKH | E62: BUY | F62: 66,000 | G62: 38 | H62: BSE
A63: 2018-10-17 | B63: 542025 | C63: SUNRETAIL | D63: BHAWNADEVI BHARAT KUMAR | E63: BUY | F63: 66,000 | G63: 38 | H63: BSE
A64: 2018-10-17 | B64: 542025 | C64: SUNRETAIL | D64: SATYANARAYAN JAGANNATH KABRA | E64: BUY | F64: 126,000 | G64: 38 | H64: BSE
A65: 2018-10-17 | B65: 542025 | C65: SUNRETAIL | D65: LILABEN CHAMPALAL SHAH | E65: SELL | F65: 84,000 | G65: 38.05 | H65: BSE
A66: 2018-10-17 | B66: 542025 | C66: SUNRETAIL | D66: KRISHNA AWTAR AWTAR KABRA | E66: BUY | F66: 126,000 | G66: 38 | H66: BSE
A67: 2018-10-17 | B67: 542025 | C67: SUNRETAIL | D67: KAMLESH BALCHAND SHAH HUF | E67: SELL | F67: 132,000 | G67: 38.05 | H67: BSE
A68: 2018-10-17 | B68: 521226 | C68: UNIROYAL | D68: PRABHJOT SINGH SAHNI | E68: SELL | F68: 50,000 | G68: 10.1 | H68: BSE
A69: 2018-10-17 | B69: 521226 | C69: UNIROYAL | D69: MAHENDRA GIRDHARILAL WADHWANI | E69: BUY | F69: 50,350 | G69: 10.1 | H69: BSE
A70: 2018-10-17 | B70: AGROPHOS | C70: Agro Phos India Limited | D70: ARVIND SHAH | E70: BUY | F70: 102000 | G70: 34.99 | H70: NSE
A71: 2018-10-17 | B71: BBTCL | C71: B&B Triplewall Cont Ltd | D71: WEALTH MINE NETWORKS PRIVATE LIMITED | E71: BUY | F71: 195000 | G71: 40 | H71: NSE
A72: 2018-10-17 | B72: DHFL | C72: Dewan Housing Fin Corp | D72: CROSSLAND TRADING CO | E72: BUY | F72: 2363425 | G72: 245.95 | H72: NSE
A73: 2018-10-17 | B73: DHFL | C73: Dewan Housing Fin Corp | D73: SHAASTRA SECURITIES TRADING PRIVATE LIMITED | E73: BUY | F73: 2297422 | G73: 246.77 | H73: NSE
A74: 2018-10-17 | B74: JETAIRWAYS | C74: Jet Airways (India) Ltd. | D74: ALPHAGREP SECURITIES PRIVATE LIMITED | E74: BUY | F74: 673491 | G74: 216.27 | H74: NSE
A75: 2018-10-17 | B75: JETAIRWAYS | C75: Jet Airways (India) Ltd. | D75: SHAASTRA SECURITIES TRADING PRIVATE LIMITED | E75: BUY | F75: 874899 | G75: 216.08 | H75: NSE
A76: 2018-10-17 | B76: JPASSOCIAT | C76: Jaiprakash Associates Lim | D76: SHAASTRA SECURITIES TRADING PRIVATE LIMITED | E76: BUY | F76: 14106018 | G76: 7.13 | H76: NSE
A77: 2018-10-17 | B77: JPASSOCIAT | C77: Jaiprakash Associates Lim | D77: SKYVEIL TRADE SOLUTIONS LLP | E77: BUY | F77: 9356578 | G77: 7.02 | H77: NSE
A78: 2018-10-17 | B78: MACPOWER | C78: Macpower CNC Machines Ltd | D78: NIRAJ LAHERCHAND MODI | E78: BUY | F78: 50000 | G78: 126 | H78: NSE
A79: 2018-10-17 | B79: NIITTECH | C79: NIIT Technologies Limited | D79: CROSSLAND TRADING CO | E79: BUY | F79: 469261 | G79: 1173.74 | H79: NSE
A80: 2018-10-17 | B80: PGEL | C80: PG Electroplast Ltd | D80: JHAVERI TRADING AND INVESTMENT PVT. LTD. | E80: BUY | F80: 83000 | G80: 128.39 | H80: NSE
A81: 2018-10-17 | B81: SILGO | C81: Silgo Retail Limited | D81: AMRUTLAL GORDHANDAS THOBHANI | E81: BUY | F81: 72000 | G81: 36.05 | H81: NSE
A82: 2018-10-17 | B82: SILGO | C82: Silgo Retail Limited | D82: ARYAMAN CAPITAL MARKETS LIMITED | E82: BUY | F82: 93000 | G82: 36.25 | H82: NSE
A83: 2018-10-17 | B83: SILGO | C83: Silgo Retail Limited | D83: SAJANKUMAR RAMESHWARLAL BAJAJ | E83: BUY | F83: 120000 | G83: 36.25 | H83: NSE
A84: 2018-10-17 | B84: SOUTHBANK | C84: South Indian Bank Ltd. | D84: ADROIT FINANCIAL SERVICES PRIVATE LIMITED | E84: BUY | F84: 9493333 | G84: 15.03 | H84: NSE
A85: 2018-10-17 | B85: UTTAMSTL | C85: Uttam Galva Steels Limite | D85: GIGANTIC ENTERPRISES | E85: BUY | F85: 1075313 | G85: 8.19 | H85: NSE
A86: 2018-10-17 | B86: DHFL | C86: Dewan Housing Fin Corp | D86: CROSSLAND TRADING CO | E86: SELL | F86: 2363425 | G86: 246.15 | H86: NSE
A87: 2018-10-17 | B87: DHFL | C87: Dewan Housing Fin Corp | D87: PENSION RESERVES INVESTMENT TRUST FUND | E87: SELL | F87: 2521342 | G87: 245.92 | H87: NSE
A88: 2018-10-17 | B88: DHFL | C88: Dewan Housing Fin Corp | D88: SHAASTRA SECURITIES TRADING PRIVATE LIMITED | E88: SELL | F88: 2297422 | G88: 246.78 | H88: NSE
A89: 2018-10-17 | B89: JETAIRWAYS | C89: Jet Airways (India) Ltd. | D89: ALPHAGREP SECURITIES PRIVATE LIMITED | E89: SELL | F89: 673491 | G89: 216.36 | H89: NSE
A90: 2018-10-17 | B90: JETAIRWAYS | C90: Jet Airways (India) Ltd. | D90: SHAASTRA SECURITIES TRADING PRIVATE LIMITED | E90: SELL | F90: 874899 | G90: 216.21 | H90: NSE
A91: 2018-10-17 | B91: JPASSOCIAT | C91: Jaiprakash Associates Lim | D91: SHAASTRA SECURITIES TRADING PRIVATE LIMITED | E91: SELL | F91: 14106018 | G91: 7.13 | H91: NSE
A92: 2018-10-17 | B92: JPASSOCIAT | C92: Jaiprakash Associates Lim | D92: SKYVEIL TRADE SOLUTIONS LLP | E92: SELL | F92: 15374578 | G92: 7.01 | H92: NSE
A93: 2018-10-17 | B93: MACPOWER | C93: Macpower CNC Machines Ltd | D93: EURO PLUS CAPITAL LIMITED | E93: SELL | F93: 50000 | G93: 126 | H93: NSE
A94: 2018-10-17 | B94: MACPOWER | C94: Macpower CNC Machines Ltd | D94: NIRAJ LAHERCHAND MODI | E94: SELL | F94: 49000 | G94: 126.35 | H94: NSE
A95: 2018-10-17 | B95: NIITTECH | C95: NIIT Technologies Limited | D95: CROSSLAND TRADING CO | E95: SELL | F95: 469261 | G95: 1174.52 | H95: NSE
A96: 2018-10-17 | B96: PGEL | C96: PG Electroplast Ltd | D96: JHAVERI TRADING AND INVESTMENT PVT. LTD. | E96: SELL | F96: 1775 | G96: 128.4 | H96: NSE
A97: 2018-10-17 | B97: RAJMET | C97: Rajnandini Metal Limited | D97: SHARE INDIA SECURITIES LIMITED | E97: SELL | F97: 40000 | G97: 26 | H97: NSE
A98: 2018-10-17 | B98: SILGO | C98: Silgo Retail Limited | D98: AMAR MUKESHBHAI SHAH | E98: SELL | F98: 180000 | G98: 36.25 | H98: NSE
A99: 2018-10-17 | B99: SILGO | C99: Silgo Retail Limited | D99: NANDLAL DATTANI ARVIND | E99: SELL | F99: 72000 | G99: 36.05 | H99: NSE
A100: 2018-10-17 | B100: SILGO | C100: Silgo Retail Limited | D100: SHAH BABULAL VADILAL | E100: SELL | F100: 33000 | G100: 36.25 | H100: NSE
A101: 2018-10-17 | B101: SOUTHBANK | C101: South Indian Bank Ltd. | D101: ADROIT FINANCIAL SERVICES PRIVATE LIMITED | E101: SELL | F101: 9592797 | G101: 15.03 | H101: NSE
A102: 2018-10-17 | B102: SUULD | C102: Suumaya Lifestyle Limited | D102: VIBHUTI ENTERPRISES | E102: SELL | F102: 128000 | G102: 24 | H102: NSE
A103: 2018-10-17 | B103: UTTAMSTL | C103: Uttam Galva Steels Limite | D103: GIGANTIC ENTERPRISES | E103: SELL | F103: 1137531 | G103: 8.13 | H103: NSE

Sheet Call Tracker (Equity & F&O)
M5: Back To Main Page
A6: Retail Research Technical Calls & Fundamental Performance Report for the month of October -2018
M7: =Main!B10 -> 2018-10-19
B8: Positional Call
A9: Sr.no | B9: Date | D9: Company | E9: Rec | F9: Rec Price | G9: Stop Loss*** | H9: Call Closed At | I9: Target | J9: Remark | K9: Profit / Loss per Share | L9: Gain / Loss % | M9: Status | N9: Closed Date | O9: NSE Closed Price
A10: 1 | B10: 2018-09-24 | D10: SUNPHARMA | E10: Buy | F10: 632.5 | G10: 610 | H10: 605 | I10: 670-680 | J10: Loss of Rs. 27.50/- | K10: =H10-F10 -> -27.5 | L10: =K10/F10 -> -4.35% | M10: Unsuccessful | N10: 2018-10-04 | R10: H
A11: 2 | B11: 2018-09-26 | D11: SBIN | E11: Buy | F11: 266 | G11: 249.7 | H11: 274.5 | I11: 285-295 | J11: Profit of Rs. 8.50/- | K11: =H11-F11 -> 8.5 | L11: =K11/F11 -> 3.20% | M11: Successful | N11: 2018-10-01 | R11: R
A12: 3 | B12: 2018-09-27 | D12: ITC | E12: Buy | F12: 291.5 | G12: 278 | H12: 301.5 | I12: 320 | J12: Profit of Rs. 10/- | K12: 10 | L12: =K12/F12 -> 3.43% | M12: Successful | N12: 2018-10-01 | R12: H
A13: 4 | B13: 2018-09-28 | D13: RBLBANK | E13: Buy | F13: 520 | G13: 499 | H13: 538 | I13: 570-580 | J13: Profit of Rs. 18/- | K13: 18 | L13: =K13/F13 -> 3.46% | M13: Successful | N13: 2018-10-03 | R13: H
A14: 5 | B14: 2018-09-28 | D14: PIDILITIND | E14: Buy | F14: 1049.5 | G14: 1017.7 | H14: 998 | I14: 1100-1120 | J14: Loss of Rs. 51.50/- | K14: -51.5 | L14: =K14/F14 -> -4.91% | M14: Unsuccessful | N14: 2018-10-03 | R14: R
A15: 6 | B15: 2018-10-01 | D15: M&MFIN | E15: Buy | F15: 400 | G15: 379 | H15: 414 | I15: 440 | J15: Profit of Rs. 14/- | K15: 14 | L15: =K15/F15 -> 3.50% | M15: Successful | N15: 2018-10-01 | R15: H
A16: 7 | B16: 2018-10-01 | D16: CONCOR | E16: Buy | F16: 634 | G16: 598.7 | H16: 659 | I16: 690-700 | J16: Profit of Rs. 25/- | K16: 25 | L16: 3.94% | M16: Successful | N16: 2018-10-01 | R16: R
A17: 8 | B17: 2018-10-03 | D17: SUDARSCHEM | E17: Buy | F17: 402 | G17: 384.4 | H17: 384.4 | I17: 430-440 | J17: Loss of Rs. 17.60/- | K17: =H17-F17 -> -17.6 | L17: -4.38% | M17: Unsuccessful | N17: 2018-10-04 | R17: R
A18: 9 | B18: 2018-10-03 | D18: CEATLTD | E18: Buy | F18: 1133 | G18: 1078 | H18: 1073 | I18: 1200-1220 | J18: Loss of Rs. 60/- | K18: =H18-F18 -> -60 | L18: =K18/F18 -> -5.30% | M18: Unsuccessful | N18: 2018-10-04 | R18: H
A19: 10 | B19: 2018-10-03 | D19: INDUSINDBK | E19: Buy | F19: 1655 | G19: 1597.7 | H19: 1570 | I19: 1760-1780 | J19: Loss of Rs. 85/- | K19: =H19-F19 -> -85 | L19: =K19/F19 -> -5.14% | M19: Unsuccessful | N19: 2018-10-04 | R19: R
A20: 11 | B20: 2018-10-04 | D20: RBLBANK | E20: Buy | F20: 512.55 | G20: 489 | H20: 492 | I20: 550-560 | J20: Loss of Rs. 20.55/- | K20: =H20-F20 -> -20.55 | L20: =K20/F20 -> -4.01% | M20: Unsuccessful | N20: 2018-10-05 | R20: H
A21: 12 | B21: 2018-10-05 | D21: ITC | E21: Buy | F21: 283 | G21: 274 | H21: 270 | I21: 300 | J21: Loss of Rs. 13/- | K21: =H21-F21 -> -13 | L21: =K21/F21 -> -4.59% | M21: Unsuccessful | N21: 2018-10-09 | R21: H
A22: 13 | B22: 2018-10-08 | D22: RBLBANK | E22: Buy | F22: 498.5 | G22: 479 | H22: 514.5 | I22: 540-550 | J22: Profit of Rs. 16/- | K22: 16 | L22: 3.21% | M22: Successful | N22: 2018-10-10 | R22: H
A23: 14 | B23: 2018-10-10 | D23: SBIN | E23: Buy | F23: 263 | G23: 249.7 | H23: 272.5 | I23: 285-290 | J23: Profit of Rs. 9.5/- | K23: =H23-F23 -> 9.5 | L23: =K23/F23 -> 3.61% | M23: Successful | N23: 2018-10-10 | R23: R
A24: 15 | B24: 2018-10-10 | D24: KPIT | E24: Buy | F24: 200.5 | G24: 189.7 | H24: 211.5 | I24: 218-222 | J24: Profit of Rs. 11/- | K24: 11 | L24: 5.49% | M24: Successful | N24: 2018-10-15 | R24: R
A25: 16 | B25: 2018-10-10 | D25: ASIANPAINT | E25: Buy | F25: 1207.5 | G25: 1148 | H25: 1249 | I25: 1280-1300 | J25: Profit of Rs. 41.5/- | K25: =H25-F25 -> 41.5 | L25: =K25/F25 -> 3.44% | M25: Successful | N25: 2018-10-12 | R25: H
A26: 17 | B26: 2018-10-10 | D26: MARICO | E26: Buy | F26: 301 | G26: 289.7 | H26: 310.5 | I26: 325-330 | J26: Profit of Rs. 9.5/- | K26: =H26-F26 -> 9.5 | L26: =K26/F26 -> 3.16% | M26: Successful | N26: 2018-10-12 | R26: R
A27: 18 | B27: 2018-10-10 | D27: DABUR | E27: Buy | F27: 407 | G27: 389 | H27: 420.5 | I27: 445 | J27: Profit of Rs. 13.5/- | K27: =H27-F27 -> 13.5 | L27: =K27/F27 -> 3.32% | M27: Successful | N27: 2018-10-17 | R27: H
A28: 19 | B28: 2018-10-11 | D28: RBLBANK | E28: Buy | F28: 511 | G28: 493 | H28: 525.5 | I28: 545-555 | J28: Profit of Rs. 14.50/- | K28: =H28-F28 -> 14.5 | L28: =K28/F28 -> 2.84% | M28: Successful | N28: 2018-10-11 | R28: H
A29: 20 | B29: 2018-10-11 | D29: MCDOWELL-N | E29: Buy | F29: 462.5 | G29: 436.6 | H29: 478.5 | I29: 500-510 | J29: Profit of Rs. 16/- | K29: =H29-F29 -> 16 | L29: =K29/F29 -> 3.46% | M29: Successful | N29: 2018-10-11 | R29: R
A30: 21 | B30: 2018-10-12 | D30: SIEMENS | E30: Buy{} | F30: 900 | G30: 853 | H30: 936.75 | I30: 980-1000 | J30: Profit of Rs. 36.75/- | K30: 36.75 | L30: 4.08% | M30: Successful | N30: 2018-10-16 | R30: R
A31: 22 | B31: 2018-10-15 | D31: ASIANPAINT | E31: Buy | F31: 1240-1250 | G31: 1190 | I31: 1320-1350 | J31: Open | R31: H
A32: 23 | B32: 2018-10-16 | D32: MCDOWELL-N | E32: Sell | F32: 525-530 | G32: 551 | I32: 490-480 | J32: Open | R32: R
A33: 24 | B33: 2018-10-16 | D33: INDUSINDBK | E33: Buy | F33: 1630-1640 | G33: 1569.6 | I33: 1750-1770 | J33: Open | R33: R
A34: 25 | B34: 2018-10-16 | D34: ENGINERSIN | E34: Sell | F34: 118.5 | G34: 125.6 | H34: 114.5 | I34: 107-103 | J34: Profit of Rs.4.5/- | K34: =F34-H34 -> 4 | L34: =K34/F34 -> 3.38% | M34: Successful | N34: 2018-10-17 | R34: R
A35: 26 | B35: 2018-10-17 | D35: BAJFINANCE | E35: Buy | F35: 2200-2220 | G35: 2119 | I35: 2350-2400 | J35: Open | R35: H
A38: CLBS = Closing Basis *** | F38: Reinitiated $
A39: Dividend adjusted <> | F39: Revised stoploss #
A40: Part book {}
A41: Master Trade High Risk
A42: Sr.no | B42: Date | D42: Company | E42: Rec | F42: Rec Price | G42: Stop Loss | H42: Call Closed At | I42: Target | J42: Remark | K42: Profit / Loss per share | L42: Gain / Loss per Lot | M42: Lot | N42: Status | O42: Closed Date
A43: 1 | B43: 2018-09-28 | D43: HDFCBANK OCT FUT | E43: Buy | F43: 2020 | G43: 1980 | H43: 2051.5 | I43: 2100 | J43: Profit of Rs 19.50/- | K43: =H43-F43 -> 31.5 | L43: 9750 | M43: 500 | N43: Successful | O43: 2018-10-01 | R43: H
D44: HDFCBANK OCT 2060 CE | E44: Sell | F44: 23 | H44: 35 | K44: =F44-H44 -> -12
A45: 2 | B45: 2018-10-01 | D45: NIFTY OCT FUT | E45: Buy | F45: 10920 | G45: 10780 | H45: 11030 | I45: 11200 | J45: Profit of Rs 85/- | K45: =H45-F45 -> 110 | L45: 6375 | M45: 75 | N45: Successful | O45: 2018-10-01 | R45: H
D46: NIFTY OCT 11100 CE | E46: Sell | F46: 112.5 | H46: 137.5 | K46: =F46-H46 -> -25
A47: 3 | B47: 2018-10-03 | D47: NIFTY OCT FUT | E47: Buy | F47: 10952.5 | G47: 10850 | H47: 10780 | I47: 11150 | J47: Loss of Rs.172.5/- | K47: =H47-F47 -> -172.5 | L47: =M47*K47 -> -12937.5 | M47: 75 | N47: Unsuccessful | O47: 2018-10-04 | R47: H
A48: 4 | B48: 2018-10-03 | D48: MARUTI OCT FUT | E48: Buy | F48: 7310 | G48: 7117 | H48: 7010 | I48: 7650-7700 | J48: Loss of Rs.300/- | K48: =H48-F48 -> -300 | L48: =M48*K48 -> -22500 | M48: 75 | N48: Unsuccessful | O48: 2018-10-05 | R48: R
A49: 5 | B49: 2018-10-03 | D49: RELIANCE OCT FUT | E49: Buy | F49: 1222.5 | G49: 1195 | H49: 1195 | I49: 1270-1280 | J49: Loss of Rs.16/- | K49: =H49-F49 -> -27.5 | L49: =-16*M49 -> -16000 | M49: 1000 | N49: Unsuccessful | O49: 2018-10-04 | R49: H
D50: RELIANCE OCT 1260 CE | E50: Sell | F50: 26 | H50: 14.5 | K50: =F50-H50 -> 11.5
A51: 6 | B51: 2018-10-05 | D51: NIFTY OCT FUT | E51: Buy | F51: 10535 | G51: 10400 | H51: 10410 | I51: 10800 | J51: Loss of Rs.55/- | K51: =H51-F51 -> -125 | L51: =-55*75 -> -4125 | M51: 75 | N51: Unsuccessful | O51: 2018-10-05 | R51: H
D52: NIFTY OCT 10700 CE | E52: Sell | F52: 132.5 | H52: 62.5 | K52: =F52-H52 -> 70
A53: 7 | B53: 2018-10-08 | D53: RECLTD OCT FUT | E53: Buy | F53: 100.25 | G53: 97 | H53: 102.4 | I53: 106 | J53: Profit of Rs 1.8/- | K53: =H53-F53 -> 2.15 | L53: =1.8*6000 -> 10800 | M53: 6000 | N53: Successful | O53: 2018-10-08 | R53: N
D54: RECLTD OCT 10700 CE | E54: Sell | F54: 3.3 | H54: 3.65 | K54: =F54-H54 -> -0.35
A55: 8 | B55: 2018-10-08 | D55: INFRATEL OCT FUT | E55: Sell | F55: 265.5 | G55: 275 | H55: 274.5 | I55: 250 | J55: Loss of Rs.5/- | K55: -9 | L55: =-5*1700 -> -8500 | M55: 1700 | N55: Unsuccessful | O55: 2018-10-10 | R55: H
D56: INFRATEL OCT 255 PE | E56: Sell | F56: 6.5 | H56: 2.5 | K56: 4
A57: 9 | B57: 2018-10-08 | D57: ONGC OCT FUT | E57: Sell | F57: 147.5 | G57: 153.5 | H57: 151 | I57: 140 | J57: Loss of Rs.0.75/- | K57: -3.5 | L57: =-0.75*3750 -> -2812.5 | M57: 3750 | N57: Unsuccessful | O57: 2018-10-11 | R57: H
D58: ONGC OCT 140 PE | E58: Sell | F58: 4.25 | H58: 1.5 | K58: 2.75
A59: 10 | B59: 2018-10-10 | D59: UPL OCT FUT | E59: Sell | F59: 619 | G59: 634 | H59: 600 | I59: 590 | J59: Profit of Rs 18/- | K59: 19 | L59: =18*1200 -> 21600 | M59: 1700 | N59: Successful | O59: 2018-10-11 | R59: N
D60: UPL OCT 580 PE | E60: Sell | F60: 12.5 | H60: 13.5 | K60: -1
A61: 11 | B61: 2018-10-12 | D61: NIFTY OCT FUT | E61: Sell | F61: 10450 | G61: 10615 | H61: 10675 | I61: 10300 | J61: Loss of Rs.145/- | K61: -225 | L61: =-145*75 -> -10875 | M61: 75 | N61: Successful | O61: 2018-10-17 | R61: H
D62: NIFTY OCT 10300 CE | E62: Sell | F62: 92.5 | H62: 12.5 | K62: =F62-H62 -> 80
A74: Master Trade Medium Risk
A75: Sr.no | B75: Date | D75: Company | E75: Rec | F75: Rec Price | G75: Stop Loss | H75: Call Closed At | I75: Target | J75: Remark | K75: Profit/ Loss per lot | L75: Gain / Loss per Lot | M75: Lot | N75: Status | O75: Closed Date
A76: 1 | B76: 2018-10-11 | D76: NIFTY OCT 10500 CE | E76: Buy | F76: 42 | G76: 0 | H76: 57 | I76: 100 | J76: Profit of Rs.15/- | K76: =H76-F76 -> 15 | L76: =M76*K76 -> 1125 | M76: 75 | N76: Successful | O76: 2018-10-11 | R76: H
A77: 2 | B77: 2018-10-11 | D77: NIFTY OCT 10500 CE | E77: Buy | F77: 42 | G77: 0 | H77: 55 | I77: 100 | J77: Profit of Rs.13/- | K77: =H77-F77 -> 13 | L77: =M77*K77 -> 975 | M77: 75 | N77: Successful | O77: 2018-10-11 | R77: H
A78: 3 | B78: 2018-10-17 | D78: MARUTI OCT 7300 CE | E78: Buy | F78: 65-70 | I78: 140 | J78: Open | R78: H
B88: Smart Delivery Trade
A89: Sr.no | B89: Date | D89: Company | E89: Rec | F89: Rec Price | G89: Stop Loss*** | H89: Call Closed At | I89: Target | J89: Remark | K89: Profit / Loss per Share | L89: Gain / Loss % | M89: Status | N89: Closed Date | O89: NSE Closed Price
A90: 1 | B90: 2018-09-27 | D90: COLPAL | E90: Buy | F90: 1094 | G90: 1058 | H90: 1050 | I90: 1140-1160 | J90: Loss of Rs. 44/- | K90: =H90-F90 -> -44 | L90: =K90/F90 -> -4.02% | M90: Unsuccessful | N90: 2018-10-08 | R90: H
A91: 2 | B91: 2018-10-03 | D91: BAJFINACE | E91: Buy | F91: 2210 | G91: 2140 | H91: 2275 | I91: 2300-2350 | J91: Profit of Rs. 65/- | K91: 65 | L91: =K91/F91 -> 2.94% | M91: Successful | N91: 2018-10-03 | R91: H
A92: 3 | B92: 2018-10-03 | D92: ADVENZYMES | E92: Buy | F92: 186 | G92: 179.7 | H92: 174.5 | I92: 197-200 | J92: Loss of Rs. 11.5/- | K92: -11.5 | L92: -6.18% | M92: Unsuccessful | N92: 2018-10-08 | R92: R
A93: 4 | B93: 2018-10-03 | D93: LT | E93: Buy | F93: 1249.5 | G93: 1195 | H93: 1277.5 | I93: 1330-1350 | J93: Profit of Rs. 28/- | K93: 28 | L93: =K93/F93 -> 2.24% | M93: Successful | N93: 2018-10-04 | R93: H
A94: 5 | B94: 2018-10-04 | D94: BAJFINANCE | E94: Buy | F94: 2180 | G94: 2135 | H94: 2135 | I94: 2250-2300 | J94: Loss of Rs. 45/- | K94: -45 | L94: =K94/F94 -> -2.06% | M94: Unsuccessful | N94: 2018-10-05 | R94: H
A95: 6 | B95: 2018-10-08 | D95: BAJFINANCE | E95: Buy | F95: 1980 | G95: 1935 | H95: 2047.5 | I95: 2100 | J95: Profit of Rs. 67/- | K95: 67.5 | L95: 3.41% | M95: Successful | N95: 2018-10-08 | R95: H
A96: 7 | B96: 2018-10-08 | D96: HDFCBANK | E96: Buy | F96: 1960 | G96: 1890 | H96: 2018 | I96: 2150-2170 | J96: Profit of Rs. 58/- | K96: =H96-F96 -> 58 | L96: =K96/F96 -> 2.96% | M96: Successful | N96: 2018-10-16 | R96: H
A97: 8 | B97: 2018-10-08 | D97: L&TFH | E97: Buy | F97: 122 | G97: 117 | H97: 117.5 | I97: 130-132 | J97: Loss of Rs. 4.5/- | K97: =H97-F97 -> -4.5 | L97: =K97/F97 -> -3.69% | M97: Unsuccessful | N97: 2018-10-08 | R97: H
A98: 9 | B98: 2018-10-08 | D98: JINDALSTEEL | E98: Sell | F98: 172 | G98: 178 | H98: 167.5 | I98: 160 | J98: Profit of Rs.4.5/- | K98: =F98-H98 -> 4.5 | L98: 2.62% | M98: Successful | N98: 2018-10-08 | R98: H
A99: 10 | B99: 2018-10-09 | D99: BAJFINACE | E99: Buy | F99: 1970 | G99: 1920 | H99: 2015 | I99: 2100 | J99: Profit of Rs. 45/- | K99: =H99-F99 -> 45 | L99: =K99/F99 -> 2.28% | M99: Successful | N99: 2018-10-09 | R99: H
A100: 11 | B100: 2018-10-09 | D100: BALKRISIND | E100: Buy | F100: 994 | G100: 957 | H100: 1028.5 | I100: 1050-1070 | J100: Profit of Rs. 34.5/- | K100: 34.5 | L100: 3.47% | M100: Successful | N100: 2018-10-10 | R100: H
A101: 12 | B101: 2018-10-09 | D101: JINDALSTEEL | E101: Sell | F101: 174 | G101: 182 | H101: 173.5 | I101: 160 | J101: Profit of Rs.0.5/- | K101: =F101-H101 -> 0.5 | L101: =K101/F101 -> 0.29% | M101: Neutral | N101: 2018-10-09 | R101: H
A102: 13 | B102: 2018-10-10 | D102: BIOCON | E102: Buy | F102: 600 | G102: 576 | H102: 617.5 | I102: 640-650 | J102: Profit of Rs. 17.5/- | K102: =H102-F102 -> 17.5 | L102: 2.92% | M102: Successful | N102: 2018-10-10 | R102: R
A103: 12 | B103: 2018-10-11 | D103: BAJFINACE | E103: Buy | F103: 2115 | G103: 2040 | H103: 2195 | I103: 2220-2250 | J103: Profit of Rs. 80/- | K103: =H103-F103 -> 80 | L103: =K103/F103 -> 3.78% | M103: Successful | N103: 2018-10-11 | R103: H
A104: 13 | B104: 2018-10-11 | D104: BALKRISIND | E104: Buy | F104: 1010 | G104: 970 | H104: 1037.5 | I104: 1060-1080 | J104: Profit of Rs. 27.50/- | K104: 27.5 | L104: 2.72% | M104: Successful | N104: 2018-10-11 | R104: H
A105: 14 | B105: 2018-10-11 | D105: EXIDEIND | E105: Buy | F105: 250.5 | G105: 239.7 | H105: 259 | I105: 274-280 | J105: Profit of Rs. 8.50/- | K105: =H105-F105 -> 8.5 | L105: =K105/F105 -> 3.39% | M105: Successful | N105: 2018-10-11 | R105: R
A106: 15 | B106: 2018-10-11 | D106: SUNPHARMA | E106: Buy | F106: 596 | G106: 578 | H106: 601 | I106: 620-630 | J106: Profit of Rs. 5/- | K106: 5 | L106: 0.84% | M106: Neutral | N106: 2018-10-16 | R106: H
A107: 16 | B107: 2018-10-12 | D107: BALKRISIND | E107: Buy | F107: 1020 | G107: 978 | H107: 1047.5 | I107: 1100 | J107: Profit of Rs. 27.50/- | K107: =H107-F107 -> 27.5 | L107: =K107/F107 -> 2.70% | M107: Successful | N107: 2018-10-12 | R107: H
A108: 17 | B108: 2018-10-12 | D108: NIITTECH | E108: Buy | F108: 1060 | G108: 1024.7 | H108: 1092.5 | I108: 1140-1160 | J108: Profit of Rs. 32.5/- | K108: 32.5 | L108: 3.07% | M108: Successful | N108: 2018-10-15 | R108: R
A109: 18 | B109: 2018-10-15 | D109: AUROPHARMA | E109: Buy | F109: 747 | G109: 718 | H109: 769.5 | I109: 800-810 | J109: Profit of Rs. 22.5/- | K109: =H109-F109 -> 22.5 | L109: =K109/F109 -> 3.01% | M109: Successful | N109: 2018-10-16 | R109: H
A110: 19 | B110: 2018-10-15 | D110: SUNTV | E110: Buy | F110: 659.5 | G110: 635.7 | H110: 680.5 | I110: 700-710 | J110: Profit of Rs. 21/- | K110: =H110-F110 -> 21 | L110: =K110/F110 -> 3.18% | M110: Successful | N110: 2018-10-16 | R110: R
A111: 20 | B111: 2018-10-16 | D111: UJJIVAN | E111: Buy | F111: 251 | G111: 241 | H111: 241 | I111: 265-270 | J111: Loss of Rs. 10/- | K111: -10 | L111: -3.98% | M111: Unsuccessful | N111: 2018-10-17 | R111: R
A112: 21 | B112: 2018-10-17 | D112: BIOCON | E112: Sell | F112: 642-644 | G112: 662.6 | I112: 610-600 | J112: Open | R112: R
A115: CLBS = Closing Basis *** | F115: Reinitiated $
A116: Dividend adjusted <> | F116: Revised stoploss #
B119: Momentum Call
A120: Sr.no | B120: Date | D120: Company | E120: Rec | F120: Rec Price | G120: Stop Loss | H120: Call Closed At | I120: Target | J120: Remark | K120: Profit / Loss per Share/Lot | L120: Gain / Loss % | M120: Gain / Loss per Lot | N120: Lot | O120: Status | P120: Closed Date
A121: 1 | B121: 2018-10-01 | D121: INFRATEL OCT FUT | E121: Buy | F121: 268 | G121: 260 | H121: 260 | I121: 282 | J121: Loss of Rs.8/- | K121: =H121-F121 -> -8 | M121: =N121*K121 -> -13600 | N121: 1700 | O121: Unsuccessful | P121: 2018-10-03 | R121: N
A122: 2 | B122: 2018-10-03 | D122: TATASTEEL OCT FUT | E122: Buy | F122: 591.5 | G122: 579 | H122: 578 | I122: 610 | J122: Loss of Rs.13.5/- | K122: =H122-F122 -> -13.5 | M122: -14323.5 | N122: 1061 | O122: Unsuccessful | P122: 2018-10-04 | R122: N
A123: 3 | B123: 2018-10-03 | D123: UPL OCT FUT | E123: Buy | F123: 647 | G123: 636 | H123: 640 | I123: 665-670 | J123: Loss of Rs.7/- | K123: =H123-F123 -> -7 | M123: -8400 | N123: 1200 | O123: Unsuccessful | P123: 2018-10-04 | R123: N
A124: 4 | B124: 2018-10-08 | D124: INFRATEL OCT FUT | E124: Buy | F124: 256.5 | G124: 251 | H124: 262 | I124: 265-270 | J124: Profit of Rs.5.5/- | K124: =H124-F124 -> 5.5 | M124: 9350 | N124: 1700 | O124: Successful | P124: 2018-10-08 | R124: N
A125: 5 | B125: 2018-10-08 | D125: HDFC OCT FUT | E125: Sell | F125: 1672.5 | G125: 1702 | H125: 1659 | I125: 1620 | J125: Profit of Rs.13.5/- | K125: =F125-H125 -> 13.5 | M125: 6750 | N125: 500 | O125: Successful | P125: 2018-10-08 | R125: H
A126: 6 | B126: 2018-10-09 | D126: NIITTECH OCT FUT | E126: Buy | F126: 1132.5 | G126: 1115 | H126: 1115 | I126: 1160 | J126: Loss of Rs.17.50/- | K126: =H126-F126 -> -17.5 | M126: -13125 | N126: 750 | O126: Unsuccessful | P126: 2018-10-09 | R126: R
A127: 7 | B127: 2018-10-09 | D127: DIVISLAB OCT FUT | E127: Buy | F127: 1269 | G127: 1255 | H127: 1255 | I127: 1300 | J127: Loss of Rs.14/- | K127: =H127-F127 -> -14 | M127: -11200 | N127: 800 | O127: Unsuccessful | P127: 2018-10-09 | R127: N
A128: 8 | B128: 2018-10-09 | D128: APOLLOHOSP OCT FUT | E128: Buy | F128: 1087.5 | G128: 1058 | H128: 1106.5 | I128: 1150 | J128: Profit of Rs.19/- | K128: =H128-F128 -> 19 | M128: 9500 | N128: 500 | O128: Successful | P128: 2018-10-09 | R128: R
A129: 9 | B129: 2018-10-09 | D129: DIVISLAB OCT FUT | E129: Buy | F129: 1252.5 | G129: 1238 | H129: 1265 | I129: 1300 | J129: Profit of Rs.12.50/- | K129: =H129-F129 -> 12.5 | M129: 10000 | N129: 800 | O129: Successful | P129: 2018-10-09 | R129: R
A130: 10 | B130: 2018-10-10 | D130: VEDL OCT FUT | E130: Sell | F130: 220.5 | G130: 227.3 | H130: 202 | I130: 208-205 | J130: Profit of Rs.18.50/- | K130: =F130-H130 -> 18.5 | M130: =N130*K130 -> 32375 | N130: 1750 | O130: Successful | P130: 2018-10-11 | R130: R
A131: 11 | B131: 2018-10-10 | D131: KOTAKBANK OCT FUT | E131: Buy | F131: 1139 | G131: 1127 | H131: 1120 | I131: 1170 | J131: Loss of Rs.19/- | K131: =H131-F131 -> -19 | M131: -15200 | N131: 800 | O131: Unsuccessful | P131: 2018-10-11 | R131: H
A132: 12 | B132: 2018-10-10 | D132: HINDUNILVR OCT FUT | E132: Buy | F132: 1520 | G132: 1498.7 | H132: 1533.5 | I132: 1550-1560 | J132: Profit of Rs.13.50/- | K132: 13.5 | M132: =N132*K132 -> 8100 | N132: 600 | O132: Successful | P132: 2018-10-10 | R132: R
A133: 13 | B133: 2018-10-10 | D133: CIPLA OCT FUT | E133: Buy | F133: 639 | G133: 627 | H133: 627.5 | I133: 660 | J133: Loss of Rs.11.50/- | K133: -11.5 | M133: -11500 | N133: 1000 | O133: Unsuccessful | P133: 2018-10-11 | R133: R
A134: 14 | B134: 2018-10-11 | D134: BAJAJ-AUTO OCT FUT | E134: Buy | F134: 2550 | G134: 2497 | H134: 2585 | I134: 2650 | J134: Profit of Rs.35/- | K134: 35 | M134: 8750 | N134: 250 | O134: Successful | P134: 2018-10-12 | R134: R
A135: 15 | B135: 2018-10-11 | D135: RAYMOND OCT FUT | E135: Buy | F135: 638 | G135: 623 | H135: 647.5 | I135: 665 | J135: Profit of Rs.9.50/- | K135: 9.5 | M135: =N135*K135 -> 7600 | N135: 800 | O135: Successful | P135: 2018-10-11 | R135: N
A136: 16 | B136: 2018-10-11 | D136: DIVISLAB OCT FUT | E136: Buy | F136: 1283.5 | G136: 1268 | H136: 1268 | I136: 1310 | J136: Loss of Rs.15.50/- | K136: -15.5 | M136: -12400 | N136: 800 | O136: Unsuccessful | P136: 2018-10-11 | R136: R
A137: 17 | B137: 2018-10-12 | D137: APOLLOHOSP OCT FUT | E137: Buy | F137: 1106.5 | G137: 1080 | H137: 1123 | I137: 1160 | J137: Profit of Rs.16.5/- | K137: 16.5 | M137: 8250 | N137: 500 | O137: Successful | P137: 2018-10-12 | R137: N
A138: 18 | B138: 2018-10-12 | D138: ARVIND OCT FUT | E138: Buy | F138: 329.5 | G138: 323 | H138: 323.5 | I138: 345 | J138: Loss of Rs.6/- | K138: =H138-F138 -> -6 | M138: =N138*K138 -> -12000 | N138: 2000 | O138: Unsuccessful | P138: 2018-10-15 | R138: N
A139: 19 | B139: 2018-10-12 | D139: HINDALCO OCT FUT | E139: Sell | F139: 226 | G139: 229.8 | H139: 229.8 | I139: 220-218 | J139: Loss of Rs 3.8/- | K139: =F139-H139 -> -3.8 | M139: =N139*K139 -> -13300 | N139: 3500 | O139: Unsuccessful | P139: 2018-10-15 | R139: R
A140: 20 | B140: 2018-10-12 | D140: DIVISLAB OCT FUT | E140: Sell | F140: 1288.5 | G140: 1305 | H140: 1281 | I140: 1260 | J140: Profit of Rs.7.50/- | K140: =F140-H140 -> 7.5 | M140: =N140*K140 -> 6000 | N140: 800 | O140: Successful | P140: 2018-10-12 | R140: N
A141: 21 | B141: 2018-10-12 | D141: STAR OCT FUT | E141: Sell | F141: 423.5 | G141: 436 | H141: 436 | I141: 405 | J141: Loss of Rs.12.5/- | K141: =F141-H141 -> -12.5 | M141: -10000 | N141: 800 | O141: Unsuccessful | P141: 2018-10-15 | R141: H
A142: 22 | B142: 2018-10-15 | D142: ACC | E142: Buy | F142: 1474 | G142: 1441 | H142: 1498.5 | I142: 1520-1530 | J142: Profit of Rs.24.5/- | K142: =H142-F142 -> 24.5 | L142: =K142/F142 -> 1.66% | O142: Successful | P142: 2018-10-15 | R142: H
A143: 23 | B143: 2018-10-15 | D143: GRASIM OCT FUT | E143: Sell | F143: 893 | G143: 910 | H143: 910 | I143: 860 | J143: Loss of Rs.17/- | K143: =F143-H143 -> -17 | M143: =N143*K143 -> -12750 | N143: 750 | O143: Unsuccessful | P143: 2018-10-16 | R143: N
A144: 24 | B144: 2018-10-15 | D144: SUNTV OCT FUT | E144: Buy | F144: 661 | G144: 652 | H144: 652 | I144: 685 | J144: Loss of Rs.9/- | K144: =H144-F144 -> -9 | M144: =N144*K144 -> -9000 | N144: 1000 | O144: Unsuccessful | P144: 2018-10-15 | R144: R
A145: 25 | B145: 2018-10-16 | D145: INFRATEL OCT FUT | E145: Sell | F145: 275 | G145: 282.5 | H145: 267.5 | I145: 260-255 | J145: Profit of Rs.7.5/- | K145: =F145-H145 -> 7.5 | M145: 12750 | N145: 1700 | O145: Unsuccessful | P145: 2018-10-16 | R145: R
A146: 26 | B146: 2018-10-16 | D146: BALKRISIND | E146: Buy | F146: 1045-1053 | G146: 1028 | I146: 1100 | J146: Open | R146: H
A147: 27 | B147: 2018-10-16 | D147: APOLLOHOSP OCT FUT | E147: Buy | F147: 1098 | G147: 1073 | H147: 1116 | I147: 1150 | J147: Profit of Rs.18/- | K147: =H147-F147 -> 18 | M147: =N147*K147 -> 9000 | N147: 500 | O147: Successful | P147: 2018-10-17 | R147: N
A148: 28 | B148: 2018-10-17 | D148: HCLTECH OCT FUT | E148: Sell | F148: 1034 | G148: 1052.3 | H148: 1023.5 | I148: 1000 | J148: Profit of Rs.10.50/- | K148: =F148-H148 -> 10.5 | M148: 6300 | N148: 600 | O148: Successful | P148: 2018-10-17 | R148: R
A149: 29 | B149: 2018-10-17 | D149: RAYMOND OCT FUT | E149: Buy | F149: 650-652 | G149: 636 | I149: 680 | J149: Open | R149: N
A161: CLBS = Closing Basis ***
A162: Dividend adjusted <> | F162: Reinitiated $
F163: Revised stoploss #
B164: Quick Pick Intraday
A165: Sr.no | B165: Date | D165: Company | E165: Rec | F165: Rec Price | G165: Stop Loss*** | H165: Call Closed At | I165: Target | J165: Remark | K165: Profit / Loss per Share | L165: Status | M165: Closed Date
A179: Techno -Funda (positional)
A180: Sr.no | B180: Date | D180: Company | E180: Rec | F180: Rec Price | G180: Stop Loss*** | H180: Call Closed At | I180: Target | J180: Remark | K180: Profit / Loss per Share | L180: Gain / Loss % | M180: Status | N180: Closed Date | O180: NSE Closed Price
A183: CLBS = Closing Basis *** | F183: Reinitiated $
A184: Dividend adjusted <> | F184: Revised stoploss #
B189: Investment Idea
A190: Sr.no | B190: Date | D190: Company | E190: Rec | F190: Rec Price | G190: Point of Review | H190: Close Rate | I190: Target | J190: Remark | K190: Profit / Loss per Share | L190: Gain / Loss % | M190: Status | N190: Closed Date
A191: 1 | B191: 2013-11-01 | D191: L&T Finance Holding | E191: Accu | F191: 82.00 | G191: - | H191: 100 | I191: 100.00 | J191: Target Achieved | K191: =H191-F191 -> 18.00 | L191: =K191/F191 -> 21.95% | M191: Successful | N191: 2016-10-14
A192: 2 | B192: 2014-06-04 | D192: Finolex Inds | E192: Buy | F192: 257.00 | G192: - | H192: 300 | I192: 300.00 | J192: Target Achieved | K192: =H192-F192 -> 43.00 | L192: 16.73% | M192: Successful | N192: 2014-07-02
A193: =1+A192 -> 3 | B193: 2014-07-08 | D193: JK Cement | E193: Buy | F193: 393.00 | G193: - | H193: 468 | I193: 468.00 | J193: Target Achieved | K193: =H193-F193 -> 75.00 | L193: 19.08% | M193: Successful | N193: 2014-08-12
A194: 4 | B194: 2014-08-06 | D194: Finolex Cables | E194: Buy | F194: 205.00 | G194: - | H194: 275 | I194: 250.00 | J194: Target Achieved | K194: 70.00 | L194: 34.15% | M194: Successful | N194: 2014-11-19
A195: 5 | B195: 2014-09-04 | D195: Exide Inds | E195: Buy | F195: 162.00 | G195: - | H195: 190 | I195: 190.00 | J195: Target Achieved | K195: 28.00 | L195: 17.28% | M195: Successful | N195: 2015-01-02
A196: 6 | B196: 2014-09-04 | D196: Deepak Nitrite | E196: Buy | F196: 75.00 | G196: - | H196: 91.5 | I196: 95-100 | J196: Profit of Rs.16.50/- | K196: 16.50 | L196: 22.00% | M196: Successful | N196: 2014-11-11
A197: 7 | B197: 2014-10-01 | D197: Mercks | E197: Buy | F197: 850.00 | G197: - | H197: 982.5 | I197: 1050.00 | J197: Profit of Rs.132.50/- | K197: 132.50 | L197: 15.59% | M197: Successful | N197: 2015-02-04
A198: 8 | B198: 2014-10-01 | D198: Grindwell Norton | E198: Buy | F198: 475.00 | G198: - | H198: 515 | I198: 600.00 | J198: Profit of Rs.40/- | K198: 40.00 | L198: 8.42% | M198: Successful | N198: 2014-10-27
A199: 9 | B199: 2014-10-01 | D199: Snowman Logistics | E199: Buy | F199: 86.00 | G199: - | H199: 99 | I199: 140.00 | J199: Profit of Rs.13.00/- | K199: 13.00 | L199: 15.12% | M199: Successful | N199: 2014-10-27
A200: 10 | B200: 2014-10-14 | D200: Birla Corp | E200: Buy | F200: 496.60 | G200: - | H200: 621 | I200: 580.00 | J200: Target Achieved | K200: 124.40 | L200: 25.05% | M200: Successful | N200: 2016-08-23
A201: 11 | B201: 2014-10-14 | D201: Ultratech Cem | E201: Buy | F201: 2481.90 | G201: - | H201: 2840 | I201: 2870.00 | J201: Profit of Rs.358.10/- | K201: 358.10 | L201: 14.43% | M201: Successful | N201: 2015-01-13
A202: =1+A199 -> 10 | B202: 2014-10-16 | D202: Sintex Inds | E202: Buy | F202: 84.50 | G202: - | H202: 93 | I202: 110.00 | J202: Profit of Rs.8.50/- | K202: 8.50 | L202: 10.06% | M202: Successful | N202: 2014-10-27
A203: =1+A202 -> 11 | B203: 2014-10-16 | D203: HSIL | E203: Buy | F203: 401.00 | G203: - | H203: 428 | I203: 450.00 | J203: Profit of Rs.27.00/- | K203: 27.00 | L203: 6.73% | M203: Successful | N203: 2015-01-16
A204: 12 | B204: 2014-10-16 | D204: Eveready Inds | E204: Buy | F204: 101.00 | G204: - | H204: 112 | I204: 120.00 | J204: Profit of Rs.11.00/- | K204: 11.00 | L204: 10.89% | M204: Successful | N204: 2014-10-27
A205: 13 | B205: 2014-11-11 | D205: Pennar Inds | E205: Buy | F205: 59.00 | G205: - | H205: 76 | I205: 76.00 | J205: Target Achieved | K205: 17.00 | L205: 28.81% | M205: Successful | N205: 2017-10-24
A206: 14 | B206: 2014-11-11 | D206: Snowman Logistics | E206: Buy | F206: 99.00 | G206: - | H206: 120 | I206: 120.00 | J206: Profit of Rs.21/- | K206: 21.00 | L206: 21.21% | M206: Successful | N206: 2014-11-17
A207: 15 | B207: 2014-11-13 | D207: Dharamsi Morarji Chem | E207: Buy | F207: 22.00 | G207: - | H207: 33.55 | I207: 32.00 | J207: Profit of Rs 11.55/- | K207: 11.55 | L207: 52.50% | M207: Successful | N207: 2015-07-03
A208: 16 | B208: 2014-12-03 | D208: Tatachem | E208: Buy | F208: 440.00 | G208: - | H208: 520 | I208: 520.00 | J208: Profit of Rs 80.00/- | K208: 80.00 | L208: 18.18% | M208: Successful | N208: 2015-07-23
A209: 17 | B209: 2014-12-03 | D209: Advanta | E209: Buy | F209: 360.00 | G209: - | H209: 427 | I209: 425.00 | J209: Profit of Rs.67.00/- | K209: 67.00 | L209: 18.61% | M209: Successful | N209: 2015-02-23
A210: 18 | B210: 2015-01-08 | D210: GDL | E210: Buy | F210: 360.00 | G210: - | H210: 455 | I210: 420.00 | J210: Profit of Rs.95.00/- | K210: 95.00 | L210: 26.39% | M210: Successful | N210: 2015-01-20
A211: 19 | B211: 2015-01-08 | D211: NRB Bearing | E211: Buy | F211: 130.00 | H211: 175.5 | I211: 165.00 | J211: Profit of Rs 45.50/- | K211: 45.50 | L211: 35.00% | M211: Successful | N211: 2017-12-19
A212: 20 | B212: 2015-02-05 | D212: GSFC | E212: Accu | F212: 98.00 | H212: 120 | I212: 120.00 | J212: Target Achieved | K212: 22.00 | L212: 22.45% | M212: Successful | N212: 2017-01-18
A213: 21 | B213: 2015-02-05 | D213: Sundrmfast | E213: Accu | F213: 196.00 | H213: 262 | I213: 255.00 | J213: Target Achieved | K213: 66.00 | L213: 33.67% | M213: Successful | N213: 2016-08-17
A214: 22 | B214: 2015-03-04 | D214: GPPL | E214: Accu | F214: 230-240 | I214: 280-285 | J214: Open
A215: 23 | B215: 2015-03-04 | D215: ORIENTCEM | E215: Accu | F215: 185.00 | H215: 224 | I215: 220-225 | J215: Target Achieved | K215: 39.00 | L215: =K215/F215 -> 21.08% | M215: Successful | N215: 2016-10-04
A216: 24 | B216: 2015-03-27 | D216: PFS | E216: Accu | F216: 49-50 | I216: 67.00 | J216: Open
A217: 25 | B217: 2015-03-30 | D217: Walchandnagar Ind Ltd | E217: Accu | F217: 183.50 | H217: 219 | I217: 218.00 | J217: Profit of Rs.35.50/- | K217: 35.50 | L217: =K217/F217 -> 19.35% | M217: Successful | N217: 2015-04-09
A218: 26 | B218: 2015-04-20 | D218: Kalpataru Power Transmission Ltd | E218: Accu | F218: =(227+237)/2 -> 232.00 | H218: 298 | I218: 298.00 | J218: Target Achieved | K218: 66.00 | L218: 28.45% | M218: Successful | N218: 2017-03-29
A219: 27 | B219: 2015-05-04 | D219: Mastek Ltd | E219: Buy | F219: 385.00 | H219: =212.5+331 -> 543.5 | I219: 510.00 | J219: Profit of Rs 158.50/- | K219: 158.50 | L219: 41.17% | M219: Successful | N219: 2015-08-19
A220: 28 | B220: 2015-05-04 | D220: Suprajit Eng | E220: Buy | F220: 115.50 | H220: 146 | I220: 142.00 | J220: Profit of Rs 30.50/- | K220: 30.50 | L220: 26.41% | M220: Successful | N220: 2015-07-17
A221: 29 | B221: 2015-05-27 | D221: TCI | E221: Buy | F221: 237.50 | H221: 279.5 | I221: 278.00 | J221: Target Achieved | K221: 42.00 | L221: 17.68% | M221: Successful | N221: 2015-08-06
A222: 30 | B222: 2015-06-19 | D222: HSIL | E222: Accu | F222: 340.00 | H222: 448 | I222: 448.00 | J222: Target Achieved | K222: 108.00 | L222: 31.76% | M222: Successful | N222: 2017-10-10
A223: 31 | B223: 2015-07-06 | D223: Capital First | E223: Accu | F223: 390.00 | H223: 460 | I223: 460.00 | J223: Target Achieved | K223: 70.00 | L223: 17.95% | M223: Successful | N223: 2016-04-18
A224: 32 | B224: 2015-07-10 | D224: Dolphin OffShore | E224: Accu | F224: 122.5 | H224: 61.00 | I224: 172.00 | J224: Loss of Rs.61.50/- | K224: -61.50 | L224: -50.20% | M224: Unsuccessful | N224: 2018-08-21
A225: 33 | B225: 2015-08-03 | D225: Allcargo logistics | E225: Accu | F225: 297.50 | H225: 350 | I225: 360.00 | J225: Profit of Rs 52.50/- | K225: 52.50 | L225: =K225/F225 -> 17.65% | M225: Successful | N225: 2015-08-16
A226: 34 | B226: 2015-08-03 | D226: Camline Fine | E226: Accu | F226: 115.50 | H226: 149 | I226: 140.00 | J226: Profit of Rs 33.50/- | K226: 33.50 | L226: 29.00% | M226: Successful | N226: 2017-01-05
A227: 35 | B227: 2015-09-04 | D227: TCI | E227: Accu | F227: 226.00 | H227: 292 | I227: 292.00 | J227: Target Achieved | K227: 66.00 | L227: 29.20% | M227: Successful | N227: 2015-10-09
A228: 36 | B228: 2015-09-07 | D228: Kalpataru Power Transmission Ltd | E228: Accu | F228: 232.50 | H228: 312.5 | I228: 310.00 | J228: Target Achieved | K228: 80.00 | L228: 34.41% | M228: Successful | N228: 2017-03-29
A229: 37 | B229: 2015-09-21 | D229: LLOYD ELECTRIC & ENG LTD | E229: Accu | F229: 196.50 | H229: 238 | I229: 238.00 | J229: Target Achieved | K229: 41.50 | L229: 21.12% | M229: Successful | N229: 2015-10-14
A230: 38 | B230: 2015-09-24 | D230: L&T Finance Holding | E230: Accu | F230: 65.00 | H230: 82 | I230: 82.00 | J230: Target Achieved | K230: 17.00 | L230: 26.15% | M230: Successful | N230: 2016-07-27
A231: 39 | B231: 2015-10-14 | D231: KEC International ltd | E231: Accu | F231: 144.00 | H231: 182.5 | I231: 181.00 | J231: Target Achieved | K231: 38.50 | L231: 26.74% | M231: Successful | N231: 2017-03-23
A232: 40 | B232: 2015-10-14 | D232: Gruh Finance | E232: Accu | F232: 264.00 | H232: 311 | I232: 311.00 | J232: Target Achieved | K232: 47.00 | L232: 17.80% | M232: Successful | N232: 2016-08-22
A233: 41 | B233: 2015-11-10 | D233: Pidilitind | E233: Buy | F233: 549.50 | H233: 630 | I233: 630.00 | J233: Target Achieved | K233: 80.50 | L233: 14.65% | M233: Successful | N233: 2016-02-19
A234: 42 | B234: 2015-12-04 | D234: Zensar Technology | E234: Accu | F234: 1027.50 | H234: 1315 | I234: 1250.00 | J234: Target Achieved | K234: =H234-F234 -> 287.50 | L234: 27.98% | M234: Successful | N234: 2018-05-24
A235: 43 | B235: 2015-12-29 | D235: Vinati Organics Ltd | E235: Accu | F235: 465.00 | H235: 540 | I235: 540.00 | J235: Target Achieved | K235: 75.00 | L235: =K235/F235 -> 16.13% | M235: Successful | N235: 2016-06-09
A236: 44 | B236: 2016-01-11 | D236: GSFC | E236: Buy | F236: 81.00 | H236: 110 | I236: 110.00 | J236: Target Achieved | K236: 29.00 | L236: 35.80% | M236: Successful | N236: 2017-01-10
A237: 45 | B237: 2016-01-13 | D237: SSWL | E237: Buy | F237: 417.50 | H237: 547 | I237: 535.00 | J237: Target Achieved | K237: 129.50 | L237: 31.02% | M237: Successful | N237: 2016-07-27
A238: 46 | B238: 2016-02-08 | D238: Persistent System Ltd | E238: Accu | F238: 650.00 | H238: 800 | I238: 800.00 | J238: Target Achieved | K238: 150.00 | L238: 23.08% | M238: Successful | N238: 2018-02-23
A239: 47 | B239: 2016-03-04 | D239: UPL | E239: Accu | F239: 437.50 | H239: 504.5 | I239: 522.00 | J239: Profit of Rs.67/- | K239: 67.00 | L239: 15.31% | M239: Successful | N239: 2016-04-20
A240: 48 | B240: 2016-03-09 | D240: Ashoka Buildcon Ltd | E240: Accu | F240: 189.50 | H240: 218 | I240: 218.00 | J240: Target Achieved | K240: 28.50 | L240: 15.04% | M240: Successful | N240: 2017-10-26
A241: 49 | B241: 2016-04-11 | D241: PTC INDIA FIN SERV LTD | E241: Accu | F241: 36-37 | I241: 60.00 | J241: Open
A242: 50 | B242: 2016-04-12 | D242: CAMLINFINE $ | E242: Accu | F242: 93.00 | H242: 149 | I242: 140.00 | J242: Profit of Rs 56/- | K242: 56.00 | L242: =K242/F242 -> 60.22% | M242: Successful | N242: 2017-01-05
A243: 51 | B243: 2016-04-12 | D243: Greaves Cotton Ltd. | E243: Accu | F243: 130.00 | H243: 150 | I243: 150-155 | J243: Target Achieved | K243: 20.00 | L243: 15.38% | M243: Successful | N243: 2016-07-13
A244: 52 | B244: 2016-04-13 | D244: DHFL | E244: Accu | F244: 196.00 | H244: 299 | I244: 299.00 | J244: Target Achieved | K244: 103.00 | L244: 52.55% | M244: Successful | N244: 2016-09-07
A245: 53 | B245: 2016-04-13 | D245: Magma | E245: Accu | F245: 88.00 | H245: 103 | I245: 103.00 | J245: Target Achieved | K245: 15.00 | L245: 17.05% | M245: Successful | N245: 2016-06-09
A246: 54 | B246: 2016-05-02 | D246: KEC International ltd $ | E246: Accu | F246: 127.50 | H246: 148 | I246: 148-150 | J246: Target Achieved | K246: 20.50 | L246: 16.08% | M246: Successful | N246: 2016-07-13
A247: 55 | B247: 2016-05-03 | D247: Mindtree | E247: Accu | F247: 675.00 | H247: 815 | I247: 790-800 | J247: Target Achieved | K247: 140.00 | L247: 20.74% | M247: Successful | N247: 2018-02-23
A248: 56 | B248: 2016-06-01 | D248: Atulauto | E248: Accu | F248: 495-505 | I248: 565-570 | J248: Open
A249: 57 | B249: 2016-06-06 | D249: TRITURBINE | E249: Accu | F249: 110.00 | H249: 126.5 | I249: 125.00 | J249: Profit of Rs.16.50/- | K249: 16.50 | L249: =K249/F249 -> 15.00% | M249: Successful | N249: 2016-07-01
A250: 58 | B250: 2016-06-17 | D250: Pennar Industries Ltd | E250: Accu | F250: 44.00 | H250: 69.5 | I250: 69.50 | J250: Profit of Rs.25.50/- | K250: 25.50 | L250: =K250/F250 -> 57.95% | M250: Successful | N250: 2017-08-30
A251: 59 | B251: 2016-06-28 | D251: EVEREADY INDS. IND. LTD. | E251: Accu | F251: 262.50 | H251: 340 | I251: 333.00 | J251: Profit of Rs.77.50/- | K251: 77.50 | L251: =K251/F251 -> 29.52% | M251: Successful | N251: 2017-10-09
A252: 60 | B252: 2016-06-28 | D252: FIEM INDUSTRIES LIMITED | E252: Accu | F252: 840.00 | H252: 1230 | I252: 1230.00 | J252: Target Achieved | K252: 390.00 | L252: =K252/F252 -> 46.43% | M252: Successful | N252: 2016-10-06
A253: 61 | B253: 2016-07-05 | D253: Bajaj Corp Ltd | E253: Accu | F253: 395 | H253: 468.50 | I253: 510.00 | J253: Part profit of Rs.73.50/- | K253: 73.50 | L253: =K253/F253 -> 19% | M253: Successful | N253: 2017-08-30
A254: 62 | B254: 2016-08-02 | D254: GPPL $ | E254: Buy | F254: 167-172 | I254: 198-200 | J254: Open
A255: 63 | B255: 2016-08-04 | D255: WONDERLA HOLIDAYS LTD | E255: Accu | F255: 395-405 | I255: 475.00 | J255: Open
A256: 64 | B256: 2016-08-11 | D256: CAMLINFINE | E256: Accu | F256: 86.50 | H256: 130 | I256: 130.00 | J256: Profit of Rs.43.50/- | K256: =H256-F256 -> 43.50 | L256: =K256/F256 -> 50.29% | M256: Successful | N256: 2017-12-22
A257: 65 | B257: 2016-08-18 | D257: GRANULES | E257: Accu | F257: 133.5 | H257: 126.50 | I257: 178.00 | J257: Exit | K257: -7.00 | L257: -5.24% | M257: Unsuccessful | N257: 2016-09-02
A258: 66 | B258: 2016-08-31 | D258: VA TECH WABAG | E258: Accu | F258: 560.00 | H258: 725 | I258: 725.00 | J258: Target Achieved | K258: 165.00 | L258: 29.46% | M258: Successful | N258: 2016-03-27
A259: 67 | B259: 2016-09-01 | D259: SKIPPER LIMITED | E259: Accu | F259: 160.50 | H259: 210 | I259: 210.00 | J259: Target Achieved | K259: 49.50 | L259: 30.84% | M259: Successful | N259: 2017-05-16
A260: 68 | B260: 2016-10-03 | D260: IFB Industries | E260: Accu | F260: 430.00 | H260: 596 | I260: 575.00 | J260: Profit of Rs.166/- | K260: 166.00 | L260: 38.60% | M260: Successful | N260: 2017-02-03
... 67 more rows

Sheet Sheet2 (hidden)
A1: SYMBOL | B1: SERIES | C1: OPEN | D1: HIGH | E1: LOW | F1: CLOSE | G1: LAST | H1: PREVCLOSE | I1: TOTTRDQTY | J1: TOTTRDVAL | K1: TIMESTAMP | L1: TOTALTRADES | M1: ISIN | N1: ISIN
A2: 20MICRONS | B2: EQ | C2: 44.45 | D2: 45.5 | E2: 42.85 | F2: 43.1 | G2: 42.85 | H2: 43.85 | I2: 30177 | J2: 1327106 | K2: 2018-10-17 | L2: 424 | M2: INE144J01027
A3: 21STCENMGM | B3: EQ | C3: 27 | D3: 27 | E3: 26.2 | F3: 26.75 | G3: 26.2 | H3: 26.7 | I3: 3317 | J3: 88575.9 | K3: 2018-10-17 | L3: 20 | M3: INE253B01015
A4: 3IINFOTECH | B4: EQ | C4: 3.45 | D4: 3.45 | E4: 3.35 | F4: 3.35 | G4: 3.4 | H4: 3.4 | I4: 1473042 | J4: 5022690.85 | K4: 2018-10-17 | L4: 555 | M4: INE748C01020
A5: 3MINDIA | B5: EQ | C5: 22971.4 | D5: 22975 | E5: 21599.95 | F5: 21776.9 | G5: 21600 | H5: 22698.75 | I5: 2056 | J5: 45680847.9 | K5: 2018-10-17 | L5: 762 | M5: INE470A01017
A6: 5PAISA | B6: EQ | C6: 214.8 | D6: 218 | E6: 201.5 | F6: 205.35 | G6: 205 | H6: 207.65 | I6: 8075 | J6: 1708799.65 | K6: 2018-10-17 | L6: 288 | M6: INE618L01018
A7: 63MOONS | B7: EQ | C7: 82.9 | D7: 83.5 | E7: 75.6 | F7: 76.45 | G7: 75.95 | H7: 79.25 | I7: 348923 | J7: 27732450.45 | K7: 2018-10-17 | L7: 4590 | M7: INE111B01023
A8: 8KMILES | B8: BE | C8: 114.15 | D8: 114.15 | E8: 114.15 | F8: 114.15 | G8: 114.15 | H8: 120.15 | I8: 20231 | J8: 2309368.65 | K8: 2018-10-17 | L8: 345 | M8: INE650K01021
A9: A2ZINFRA | B9: EQ | C9: 12.75 | D9: 12.8 | E9: 11.6 | F9: 11.6 | G9: 11.6 | H9: 12.2 | I9: 1448503 | J9: 17886480.65 | K9: 2018-10-17 | L9: 1528 | M9: INE619I01012
A10: AARTIDRUGS | B10: EQ | C10: 584.5 | D10: 587 | E10: 567.6 | F10: 576.35 | G10: 576.2 | H10: 580.95 | I10: 11839 | J10: 6854966.3 | K10: 2018-10-17 | L10: 1267 | M10: INE767A01016
A11: AARTIIND | B11: EQ | C11: 1285 | D11: 1306.4 | E11: 1245.75 | F11: 1252.45 | G11: 1252 | H11: 1280.25 | I11: 112657 | J11: 143594705.8 | K11: 2018-10-17 | L11: 1905 | M11: INE769A01020
A12: AARVEEDEN | B12: EQ | C12: 25 | D12: 26.4 | E12: 23.6 | F12: 24.1 | G12: 24.05 | H12: 24.4 | I12: 18534 | J12: 457317.8 | K12: 2018-10-17 | L12: 169 | M12: INE273D01019
A13: AAVAS | B13: EQ | C13: 780.15 | D13: 792 | E13: 768.95 | F13: 775.5 | G13: 772.5 | H13: 779.4 | I13: 77718 | J13: 60555613.2 | K13: 2018-10-17 | L13: 6715 | M13: INE216P01012
A14: ABAN | B14: EQ | C14: 84.9 | D14: 86.4 | E14: 80.2 | F14: 81.5 | G14: 81.2 | H14: 83.75 | I14: 601394 | J14: 50005950.2 | K14: 2018-10-17 | L14: 7824 | M14: INE421A01028
A15: ABB | B15: EQ | C15: 1313 | D15: 1313 | E15: 1280 | F15: 1285.1 | G15: 1281.85 | H15: 1297.35 | I15: 29508 | J15: 38156713.3 | K15: 2018-10-17 | L15: 2249 | M15: INE117A01022
A16: ABBOTINDIA | B16: EQ | C16: 7488.8 | D16: 7488.8 | E16: 7200 | F16: 7293.85 | G16: 7300 | H16: 7408.75 | I16: 3226 | J16: 23626129.5 | K16: 2018-10-17 | L16: 847 | M16: INE358A01014
A17: ABCAPITAL | B17: EQ | C17: 110.7 | D17: 110.9 | E17: 104 | F17: 104.55 | G17: 104.35 | H17: 109.2 | I17: 1384807 | J17: 148134962.7 | K17: 2018-10-17 | L17: 26240 | M17: INE674K01013
A18: ABFRL | B18: EQ | C18: 199 | D18: 203.8 | E18: 184.4 | F18: 186.2 | G18: 185.55 | H18: 195.2 | I18: 1539063 | J18: 298357830.4 | K18: 2018-10-17 | L18: 20526 | M18: INE647O01011
A19: ABMINTLTD | B19: BE | C19: 16 | D19: 16 | E19: 16 | F19: 16 | G19: 16 | H19: 16.6 | I19: 10 | J19: 160 | K19: 2018-10-17 | L19: 1 | M19: INE251C01017
A20: ACC | B20: EQ | C20: 1573 | D20: 1578 | E20: 1518.15 | F20: 1539.7 | G20: 1524.15 | H20: 1553.4 | I20: 799424 | J20: 1248042410 | K20: 2018-10-17 | L20: 36530 | M20: INE012A01025
A21: ACCELYA | B21: EQ | C21: 1002.65 | D21: 1039 | E21: 984.1 | F21: 987.25 | G21: 988.3 | H21: 1002.65 | I21: 1481 | J21: 1478690.9 | K21: 2018-10-17 | L21: 215 | M21: INE793A01012
A22: ACE | B22: EQ | C22: 106.3 | D22: 106.3 | E22: 100.05 | F22: 102.85 | G22: 104.9 | H22: 101.25 | I22: 466132 | J22: 48992477.1 | K22: 2018-10-17 | L22: 2854 | M22: INE731H01025
A23: ADANIENT | B23: EQ | C23: 160.1 | D23: 163.65 | E23: 154.25 | F23: 161.75 | G23: 162 | H23: 157.65 | I23: 11660585 | J23: 1871413130 | K23: 2018-10-17 | L23: 63755 | M23: INE423A01024
A24: ADANIGREEN | B24: EQ | C24: 40.55 | D24: 40.55 | E24: 39.1 | F24: 39.35 | G24: 39.6 | H24: 38.65 | I24: 2436836 | J24: 97815201.2 | K24: 2018-10-17 | L24: 6695 | M24: INE364U01010
A25: ADANIPORTS | B25: EQ | C25: 337.5 | D25: 339.3 | E25: 309.6 | F25: 313.9 | G25: 314 | H25: 333.35 | I25: 3323311 | J25: 1080898418 | K25: 2018-10-17 | L25: 39283 | M25: INE742F01042
A26: ADANIPOWER | B26: EQ | C26: 36.1 | D26: 37.05 | E26: 33.1 | F26: 34.45 | G26: 34.35 | H26: 35.8 | I26: 50318963 | J26: 1750381178 | K26: 2018-10-17 | L26: 66111 | M26: INE814H01011
A27: ADANITRANS | B27: BE | C27: 169 | D27: 170 | E27: 162 | F27: 163.1 | G27: 162.1 | H27: 163.7 | I27: 34124 | J27: 5697592 | K27: 2018-10-17 | L27: 479 | M27: INE931S01010
A28: ADFFOODS | B28: EQ | C28: 224.45 | D28: 224.45 | E28: 209 | F28: 209.65 | G28: 209.05 | H28: 215.85 | I28: 20084 | J28: 4304473.55 | K28: 2018-10-17 | L28: 768 | M28: INE982B01019
A29: ADHUNIK | B29: EQ | C29: 2.95 | D29: 2.95 | E29: 2.75 | F29: 2.8 | G29: 2.9 | H29: 2.85 | I29: 18862 | J29: 53692.65 | K29: 2018-10-17 | L29: 57 | M29: INE400H01019
A30: ADHUNIKIND | B30: EQ | C30: 51 | D30: 54.1 | E30: 45.2 | F30: 49.85 | G30: 48 | H30: 52.9 | I30: 4029 | J30: 200750.55 | K30: 2018-10-17 | L30: 111 | M30: INE452L01012
A31: ADLABS | B31: EQ | C31: 13.25 | D31: 13.4 | E31: 12.3 | F31: 12.3 | G31: 12.3 | H31: 12.9 | I31: 479851 | J31: 6034787.15 | K31: 2018-10-17 | L31: 1411 | M31: INE172N01012
A32: ADORWELD | B32: EQ | C32: 390 | D32: 412 | E32: 355.15 | F32: 372.75 | G32: 379 | H32: 387.45 | I32: 87974 | J32: 34537197.85 | K32: 2018-10-17 | L32: 3009 | M32: INE045A01017
A33: ADROITINFO | B33: EQ | C33: 22.4 | D33: 23.6 | E33: 21.6 | F33: 23.05 | G33: 23.4 | H33: 22.65 | I33: 1934 | J33: 42508.15 | K33: 2018-10-17 | L33: 15 | M33: INE737B01033
A34: ADSL | B34: EQ | C34: 14.3 | D34: 14.45 | E34: 13.25 | F34: 13.45 | G34: 13.7 | H34: 14 | I34: 20585 | J34: 279924.4 | K34: 2018-10-17 | L34: 80 | M34: INE102I01027
A35: ADVANIHOTR | B35: EQ | C35: 51.6 | D35: 51.6 | E35: 49 | F35: 49.5 | G35: 49 | H35: 50 | I35: 3959 | J35: 199042.7 | K35: 2018-10-17 | L35: 76 | M35: INE199C01026
A36: ADVENZYMES | B36: EQ | C36: 203.7 | D36: 203.7 | E36: 194.7 | F36: 196.1 | G36: 196 | H36: 200 | I36: 88778 | J36: 17686689.55 | K36: 2018-10-17 | L36: 3370 | M36: INE837H01020
A37: AEGISCHEM | B37: EQ | C37: 215 | D37: 223.45 | E37: 215 | F37: 219.2 | G37: 217.65 | H37: 215.45 | I37: 177923 | J37: 39084706.15 | K37: 2018-10-17 | L37: 11256 | M37: INE208C01025
A38: AGARIND | B38: EQ | C38: 219.9 | D38: 219.9 | E38: 190.6 | F38: 201.5 | G38: 201.5 | H38: 202.25 | I38: 732 | J38: 151041.05 | K38: 2018-10-17 | L38: 61 | M38: INE204E01012
A39: AGCNET | B39: EQ | C39: 74.6 | D39: 74.6 | E39: 66.05 | F39: 66.55 | G39: 67 | H39: 71.3 | I39: 6239 | J39: 428469.75 | K39: 2018-10-17 | L39: 160 | M39: INE676A01019
A40: AGLSL | B40: EQ | C40: 76.1 | D40: 76.15 | E40: 71.5 | F40: 71.9 | G40: 71.5 | H40: 76.5 | I40: 1953 | J40: 144153.75 | K40: 2018-10-17 | L40: 64 | M40: INE517U01013
A41: AGRITECH | B41: EQ | C41: 61.85 | D41: 62.4 | E41: 60.05 | F41: 60.35 | G41: 60.2 | H41: 60.35 | I41: 8312 | J41: 508174.9 | K41: 2018-10-17 | L41: 150 | M41: INE449G01018
A42: AHLEAST | B42: EQ | C42: 237.55 | D42: 237.55 | E42: 233.1 | F42: 236 | G42: 236 | H42: 239.9 | I42: 1118 | J42: 264048.55 | K42: 2018-10-17 | L42: 53 | M42: INE926K01017
A43: AHLUCONT | B43: EQ | C43: 297.35 | D43: 308 | E43: 292 | F43: 296.2 | G43: 298.85 | H43: 297.5 | I43: 3340 | J43: 999440.35 | K43: 2018-10-17 | L43: 152 | M43: INE758C01029
A44: AHLWEST | B44: EQ | C44: 284.95 | D44: 284.95 | E44: 276.6 | F44: 276.6 | G44: 276.6 | H44: 277.95 | I44: 10 | J44: 2782.7 | K44: 2018-10-17 | L44: 2 | M44: INE915K01010
A45: AIAENG | B45: EQ | C45: 1592.15 | D45: 1605.2 | E45: 1556 | F45: 1579.2 | G45: 1580.9 | H45: 1588.6 | I45: 12837 | J45: 20244008.75 | K45: 2018-10-17 | L45: 1203 | M45: INE212H01026
A46: AIFL | B46: EQ | C46: 132.4 | D46: 132.4 | E46: 132.4 | F46: 132.4 | G46: 132.4 | H46: 139.35 | I46: 1581 | J46: 209324.4 | K46: 2018-10-17 | L46: 35 | M46: INE428O01016
A47: AIONJSW | B47: BE | C47: 33.5 | D47: 37 | E47: 33.5 | F47: 37 | G47: 37 | H47: 35.25 | I47: 168652 | J47: 6072105.9 | K47: 2018-10-17 | L47: 627 | M47: INE743C01021
A48: AJANTPHARM | B48: EQ | C48: 1032.05 | D48: 1039.9 | E48: 987.9 | F48: 1001.1 | G48: 1000 | H48: 1027.15 | I48: 292286 | J48: 294263481.9 | K48: 2018-10-17 | L48: 10510 | M48: INE031B01049
A49: AJMERA | B49: EQ | C49: 165.2 | D49: 166.45 | E49: 154.05 | F49: 155.35 | G49: 156.5 | H49: 163.4 | I49: 24943 | J49: 3999216.3 | K49: 2018-10-17 | L49: 1042 | M49: INE298G01027
A50: AKSHARCHEM | B50: EQ | C50: 512.95 | D50: 514.35 | E50: 495.1 | F50: 497.15 | G50: 498 | H50: 512.95 | I50: 1162 | J50: 587469.65 | K50: 2018-10-17 | L50: 88 | M50: INE542B01011
A51: AKSHOPTFBR | B51: EQ | C51: 27.45 | D51: 27.6 | E51: 26.25 | F51: 26.35 | G51: 26.4 | H51: 27.15 | I51: 1258523 | J51: 33820976.35 | K51: 2018-10-17 | L51: 4755 | M51: INE523B01011
A52: AKZOINDIA | B52: EQ | C52: 1600.75 | D52: 1638.75 | E52: 1582.75 | F52: 1594.75 | G52: 1595.5 | H52: 1600.75 | I52: 10527 | J52: 16836619.95 | K52: 2018-10-17 | L52: 329 | M52: INE133A01011
A53: ALANKIT | B53: EQ | C53: 23.35 | D53: 23.7 | E53: 21.9 | F53: 22.2 | G53: 22.1 | H53: 22.35 | I53: 942065 | J53: 21088030.5 | K53: 2018-10-17 | L53: 1008 | M53: INE914E01040
A54: ALBERTDAVD | B54: EQ | C54: 589.7 | D54: 600.95 | E54: 556.7 | F54: 567.85 | G54: 569.95 | H54: 582.75 | I54: 20624 | J54: 12112336.85 | K54: 2018-10-17 | L54: 1075 | M54: INE155C01010
A55: ALBK | B55: EQ | C55: 39.5 | D55: 39.5 | E55: 37.4 | F55: 37.85 | G55: 37.8 | H55: 38.4 | I55: 3130121 | J55: 120107985 | K55: 2018-10-17 | L55: 7797 | M55: INE428A01015
A56: ALCHEM | B56: BE | C56: 4.5 | D56: 4.7 | E56: 4.3 | F56: 4.55 | G56: 4.3 | H56: 4.5 | I56: 39968 | J56: 182515.25 | K56: 2018-10-17 | L56: 54 | M56: INE964B01033
A57: ALEMBICLTD | B57: EQ | C57: 42.65 | D57: 42.9 | E57: 41.05 | F57: 41.3 | G57: 41.2 | H57: 42.15 | I57: 228539 | J57: 9629535.95 | K57: 2018-10-17 | L57: 1684 | M57: INE426A01027
A58: ALICON | B58: EQ | C58: 637 | D58: 646.9 | E58: 610 | F58: 612.5 | G58: 617 | H58: 620.05 | I58: 1389 | J58: 864553.15 | K58: 2018-10-17 | L58: 98 | M58: INE062D01024
A59: ALKALI | B59: EQ | C59: 68.25 | D59: 68.25 | E59: 61.3 | F59: 61.8 | G59: 61.95 | H59: 65.25 | I59: 13605 | J59: 859530.15 | K59: 2018-10-17 | L59: 201 | M59: INE773I01017
A60: ALKEM | B60: EQ | C60: 1977 | D60: 1986.95 | E60: 1935.5 | F60: 1981.25 | G60: 1974.1 | H60: 1974.1 | I60: 11370 | J60: 22387597.15 | K60: 2018-10-17 | L60: 2418 | M60: INE540L01014
A61: ALKYLAMINE | B61: EQ | C61: 624.35 | D61: 624.35 | E61: 600 | F61: 600 | G61: 600 | H61: 600 | I61: 2304 | J61: 1384553.4 | K61: 2018-10-17 | L61: 94 | M61: INE150B01021
A62: ALLCARGO | B62: EQ | C62: 100.8 | D62: 101.45 | E62: 96 | F62: 96.6 | G62: 96.25 | H62: 99.75 | I62: 625086 | J62: 62678213.4 | K62: 2018-10-17 | L62: 2785 | M62: INE418H01029
A63: ALLSEC | B63: EQ | C63: 265.65 | D63: 267.7 | E63: 256.05 | F63: 257.45 | G63: 257 | H63: 259.15 | I63: 2185 | J63: 567776.7 | K63: 2018-10-17 | L63: 146 | M63: INE835G01018
A64: ALMONDZ | B64: EQ | C64: 26.6 | D64: 27.5 | E64: 26.15 | F64: 26.5 | G64: 27.45 | H64: 26.6 | I64: 2570 | J64: 68139.55 | K64: 2018-10-17 | L64: 13 | M64: INE326B01027
A65: ALOKTEXT | B65: EQ | C65: 3.9 | D65: 3.95 | E65: 3.7 | F65: 3.7 | G65: 3.7 | H65: 3.85 | I65: 1775205 | J65: 6666314.1 | K65: 2018-10-17 | L65: 714 | M65: INE270A01011
A66: ALPA | B66: EQ | C66: 26.7 | D66: 26.85 | E66: 26 | F66: 26.3 | G66: 26.4 | H66: 26.25 | I66: 22491 | J66: 593150.95 | K66: 2018-10-17 | L66: 167 | M66: INE385I01010
A67: ALPHAGEO | B67: EQ | C67: 524 | D67: 529 | E67: 495 | F67: 499.05 | G67: 500 | H67: 520.65 | I67: 7841 | J67: 4035799.5 | K67: 2018-10-17 | L67: 761 | M67: INE137C01018
A68: ALPSINDUS | B68: BE | C68: 2.7 | D68: 2.8 | E68: 2.6 | F68: 2.6 | G68: 2.6 | H68: 2.7 | I68: 3087 | J68: 8474.2 | K68: 2018-10-17 | L68: 11 | M68: INE093B01015
A69: AMARAJABAT | B69: EQ | C69: 766.7 | D69: 769.75 | E69: 742.2 | F69: 745.6 | G69: 743.7 | H69: 759.75 | I69: 274982 | J69: 207144190.4 | K69: 2018-10-17 | L69: 10153 | M69: INE885A01032
A70: AMBER | B70: EQ | C70: 944 | D70: 944 | E70: 905 | F70: 924.45 | G70: 925 | H70: 921.4 | I70: 4757 | J70: 4382817.4 | K70: 2018-10-17 | L70: 1488 | M70: INE371P01015
A71: AMBIKCO | B71: EQ | C71: 1161.4 | D71: 1199.95 | E71: 1161.4 | F71: 1168.3 | G71: 1183 | H71: 1161.5 | I71: 1268 | J71: 1492535.35 | K71: 2018-10-17 | L71: 248 | M71: INE540G01014
A72: AMBUJACEM | B72: EQ | C72: 223.5 | D72: 227.85 | E72: 217.4 | F72: 219.3 | G72: 218 | H72: 221.5 | I72: 5346216 | J72: 1200406430 | K72: 2018-10-17 | L72: 34552 | M72: INE079A01024
A73: AMDIND | B73: EQ | C73: 21 | D73: 22.4 | E73: 20.1 | F73: 20.4 | G73: 20.8 | H73: 20.8 | I73: 15281 | J73: 318766.15 | K73: 2018-10-17 | L73: 58 | M73: INE005I01014
A74: AMJLAND | B74: EQ | C74: 22 | D74: 22.9 | E74: 21.65 | F74: 21.9 | G74: 22.6 | H74: 21.95 | I74: 6702 | J74: 147134.85 | K74: 2018-10-17 | L74: 72 | M74: INE606A01024
A75: AMRUTANJAN | B75: EQ | C75: 259.7 | D75: 259.7 | E75: 250 | F75: 250.15 | G75: 251.5 | H75: 252.65 | I75: 6389 | J75: 1612062.5 | K75: 2018-10-17 | L75: 410 | M75: INE098F01031
A76: ANANTRAJ | B76: EQ | C76: 39.6 | D76: 39.8 | E76: 36.6 | F76: 36.9 | G76: 36.75 | H76: 38.8 | I76: 592670 | J76: 22438733.8 | K76: 2018-10-17 | L76: 3688 | M76: INE242C01024
A77: ANDHRABANK | B77: EQ | C77: 27.5 | D77: 27.6 | E77: 26.1 | F77: 26.4 | G77: 26.35 | H77: 27 | I77: 1049880 | J77: 28317267.1 | K77: 2018-10-17 | L77: 2592 | M77: INE434A01013
A78: ANDHRACEMT | B78: EQ | C78: 6.75 | D78: 7 | E78: 6.7 | F78: 6.75 | G78: 6.75 | H78: 6.65 | I78: 105039 | J78: 713611.4 | K78: 2018-10-17 | L78: 211 | M78: INE666E01012
A79: ANDHRSUGAR | B79: EQ | C79: 354.9 | D79: 358 | E79: 337.95 | F79: 341.45 | G79: 343.8 | H79: 351.45 | I79: 107511 | J79: 37397323.55 | K79: 2018-10-17 | L79: 3629 | M79: INE715B01013
A80: ANGIND | B80: BE | C80: 1.85 | D80: 1.85 | E80: 1.75 | F80: 1.75 | G80: 1.75 | H80: 1.8 | I80: 3407 | J80: 6071.45 | K80: 2018-10-17 | L80: 14 | M80: INE017D01010
A81: ANIKINDS | B81: EQ | C81: 29 | D81: 29 | E81: 27 | F81: 27.9 | G81: 27.3 | H81: 26.95 | I81: 8669 | J81: 239657.15 | K81: 2018-10-17 | L81: 70 | M81: INE087B01017
A82: ANKITMETAL | B82: BE | C82: 0.5 | D82: 0.5 | E82: 0.45 | F82: 0.5 | G82: 0.5 | H82: 0.45 | I82: 13192 | J82: 6297.95 | K82: 2018-10-17 | L82: 23 | M82: INE106I01010
A83: ANSALAPI | B83: EQ | C83: 11.7 | D83: 11.95 | E83: 11.35 | F83: 11.55 | G83: 11.45 | H83: 11.6 | I83: 49360 | J83: 570135.7 | K83: 2018-10-17 | L83: 145 | M83: INE436A01026
A84: ANSALHSG | B84: EQ | C84: 11.45 | D84: 11.5 | E84: 10.3 | F84: 10.55 | G84: 10.6 | H84: 11.15 | I84: 11091 | J84: 120864.6 | K84: 2018-10-17 | L84: 107 | M84: INE880B01015
A85: ANTGRAPHIC | B85: BE | C85: 0.55 | D85: 0.55 | E85: 0.5 | F85: 0.55 | G85: 0.55 | H85: 0.55 | I85: 11701 | J85: 6042 | K85: 2018-10-17 | L85: 27 | M85: INE414B01021
A86: APARINDS | B86: EQ | C86: 576.65 | D86: 576.7 | E86: 555 | F86: 564.4 | G86: 568.2 | H86: 572.85 | I86: 10459 | J86: 5909477.3 | K86: 2018-10-17 | L86: 2381 | M86: INE372A01015
A87: APCL | B87: EQ | C87: 122.45 | D87: 129.4 | E87: 121 | F87: 121.2 | G87: 121 | H87: 121.55 | I87: 1487 | J87: 183304.4 | K87: 2018-10-17 | L87: 104 | M87: INE071F01012
A88: APCOTEXIND | B88: EQ | C88: 551.8 | D88: 559.05 | E88: 526 | F88: 532.85 | G88: 535 | H88: 554.85 | I88: 4324 | J88: 2353603.85 | K88: 2018-10-17 | L88: 333 | M88: INE116A01024
A89: APEX | B89: EQ | C89: 392 | D89: 394.8 | E89: 370 | F89: 372.75 | G89: 372.25 | H89: 386.3 | I89: 82685 | J89: 31377843.1 | K89: 2018-10-17 | L89: 2757 | M89: INE346W01013
A90: APLAPOLLO | B90: EQ | C90: 1399 | D90: 1430 | E90: 1334.6 | F90: 1365.1 | G90: 1380 | H90: 1379.05 | I90: 81484 | J90: 110249282.2 | K90: 2018-10-17 | L90: 4574 | M90: INE702C01019
A91: APLLTD | B91: EQ | C91: 615 | D91: 616.3 | E91: 602.2 | F91: 606.8 | G91: 608 | H91: 600.1 | I91: 23401 | J91: 14247750.55 | K91: 2018-10-17 | L91: 1641 | M91: INE901L01018
A92: APOLLO | B92: EQ | C92: 128.6 | D92: 130.9 | E92: 119 | F92: 120.55 | G92: 119.5 | H92: 126.6 | I92: 23136 | J92: 2890388 | K92: 2018-10-17 | L92: 818 | M92: INE713T01010
A93: APOLLOHOSP | B93: EQ | C93: 1120 | D93: 1147.85 | E93: 1112.55 | F93: 1123.7 | G93: 1122.7 | H93: 1109 | I93: 349443 | J93: 394830622 | K93: 2018-10-17 | L93: 26417 | M93: INE437A01024
A94: APOLLOTYRE | B94: EQ | C94: 222.3 | D94: 223.95 | E94: 208 | F94: 209.3 | G94: 209 | H94: 220.3 | I94: 2346918 | J94: 501865759.1 | K94: 2018-10-17 | L94: 19502 | M94: INE438A01022
A95: APOLSINHOT | B95: EQ | C95: 681 | D95: 695.35 | E95: 657.5 | F95: 672.7 | G95: 660.6 | H95: 694.25 | I95: 791 | J95: 533227.2 | K95: 2018-10-17 | L95: 109 | M95: INE451F01024
A96: APTECHT | B96: EQ | C96: 188.95 | D96: 189.9 | E96: 170.55 | F96: 170.55 | G96: 170.55 | H96: 189.5 | I96: 1100487 | J96: 195965290.7 | K96: 2018-10-17 | L96: 19073 | M96: INE266F01018
A97: ARCHIDPLY | B97: EQ | C97: 50.45 | D97: 50.9 | E97: 46.65 | F97: 46.95 | G97: 47 | H97: 49.6 | I97: 31626 | J97: 1547943.4 | K97: 2018-10-17 | L97: 453 | M97: INE877I01016
A98: ARCHIES | B98: EQ | C98: 26.8 | D98: 27 | E98: 25.3 | F98: 25.7 | G98: 25.6 | H98: 26.55 | I98: 23457 | J98: 611492.15 | K98: 2018-10-17 | L98: 243 | M98: INE731A01020
A99: ARCOTECH | B99: BE | C99: 7 | D99: 7 | E99: 7 | F99: 7 | G99: 7 | H99: 6.7 | I99: 41962 | J99: 293734 | K99: 2018-10-17 | L99: 76 | M99: INE574I01035
A100: ARIES | B100: EQ | C100: 103.4 | D100: 104 | E100: 98.5 | F100: 99 | G100: 99 | H100: 102.05 | I100: 12586 | J100: 1277056 | K100: 2018-10-17 | L100: 335 | M100: INE298I01015
A101: ARIHANT | B101: EQ | C101: 32.3 | D101: 32.3 | E101: 26.3 | F101: 26.95 | G101: 28 | H101: 28.3 | I101: 7277 | J101: 204887.45 | K101: 2018-10-17 | L101: 101 | M101: INE413D01011
A102: ARIHANTSUP | B102: EQ | C102: 58.8 | D102: 58.8 | E102: 56.4 | F102: 57.1 | G102: 57 | H102: 56.35 | I102: 15480 | J102: 886679.8 | K102: 2018-10-17 | L102: 195 | M102: INE643K01018
A103: ARMANFIN | B103: EQ | C103: 349.95 | D103: 349.95 | E103: 305 | F103: 306.55 | G103: 306.95 | H103: 335.55 | I103: 8468 | J103: 2680582.65 | K103: 2018-10-17 | L103: 338 | M103: INE109C01017
A104: AROGRANITE | B104: EQ | C104: 56.25 | D104: 56.25 | E104: 53.1 | F104: 53.9 | G104: 53.45 | H104: 55.6 | I104: 3070 | J104: 167638.4 | K104: 2018-10-17 | L104: 70 | M104: INE210C01013
A105: ARROWGREEN | B105: EQ | C105: 126 | D105: 131.3 | E105: 119.9 | F105: 121.1 | G105: 122.8 | H105: 125.05 | I105: 16538 | J105: 2116861.05 | K105: 2018-10-17 | L105: 428 | M105: INE570D01018
A106: ARROWTEX | B106: EQ | C106: 26.2 | D106: 26.8 | E106: 25.2 | F106: 25.45 | G106: 25.3 | H106: 26.2 | I106: 8398 | J106: 219168.75 | K106: 2018-10-17 | L106: 85 | M106: INE933J01015
A107: ARSHIYA | B107: EQ | C107: 43 | D107: 45.5 | E107: 39.55 | F107: 40.6 | G107: 40.25 | H107: 42.5 | I107: 212859 | J107: 8938810.55 | K107: 2018-10-17 | L107: 682 | M107: INE968D01022
A108: ARSSINFRA | B108: EQ | C108: 23.45 | D108: 25 | E108: 22.4 | F108: 24.45 | G108: 25 | H108: 22.75 | I108: 10789 | J108: 260996.35 | K108: 2018-10-17 | L108: 84 | M108: INE267I01010
A109: ARVIND | B109: EQ | C109: 336.35 | D109: 337.3 | E109: 312.1 | F109: 315.1 | G109: 316 | H109: 332.3 | I109: 1893510 | J109: 608561907.3 | K109: 2018-10-17 | L109: 36174 | M109: INE034A01011
A110: ARVSMART | B110: EQ | C110: 120.85 | D110: 121.4 | E110: 108.45 | F110: 112.35 | G110: 114.15 | H110: 118.25 | I110: 17592 | J110: 2011297.75 | K110: 2018-10-17 | L110: 363 | M110: INE034S01021
A111: ASAHIINDIA | B111: EQ | C111: 302.9 | D111: 303 | E111: 290.6 | F111: 294.9 | G111: 291.65 | H111: 300.45 | I111: 6279 | J111: 1882906.9 | K111: 2018-10-17 | L111: 372 | M111: INE439A01020
A112: ASAHISONG | B112: EQ | C112: 255 | D112: 259.9 | E112: 245 | F112: 247.35 | G112: 245.25 | H112: 253.05 | I112: 2437 | J112: 615156.35 | K112: 2018-10-17 | L112: 135 | M112: INE228I01012
A113: ASAL | B113: EQ | C113: 45.5 | D113: 47.25 | E113: 44.25 | F113: 44.85 | G113: 44.25 | H113: 45 | I113: 5394 | J113: 245511.4 | K113: 2018-10-17 | L113: 168 | M113: INE900C01027
A114: ASHAPURMIN | B114: EQ | C114: 31.6 | D114: 32.05 | E114: 30.2 | F114: 30.35 | G114: 30.3 | H114: 31.3 | I114: 52660 | J114: 1622518.75 | K114: 2018-10-17 | L114: 412 | M114: INE348A01023
A115: ASHIANA | B115: EQ | C115: 127.95 | D115: 127.95 | E115: 122.1 | F115: 126.05 | G115: 126.9 | H115: 126.75 | I115: 21505 | J115: 2694044.85 | K115: 2018-10-17 | L115: 556 | M115: INE365D01021
A116: ASHIMASYN | B116: EQ | C116: 16.8 | D116: 16.9 | E116: 14.65 | F116: 14.85 | G116: 14.85 | H116: 16.3 | I116: 204892 | J116: 3222049.55 | K116: 2018-10-17 | L116: 749 | M116: INE440A01010
A117: ASHOKA | B117: EQ | C117: 117.9 | D117: 117.95 | E117: 113 | F117: 113.95 | G117: 113.3 | H117: 116.2 | I117: 352767 | J117: 40970303.45 | K117: 2018-10-17 | L117: 2547 | M117: INE442H01029
A118: ASHOKLEY | B118: EQ | C118: 122 | D118: 123.1 | E118: 112.55 | F118: 114.3 | G118: 114.7 | H118: 120.55 | I118: 23817952 | J118: 2787864926 | K118: 2018-10-17 | L118: 106359 | M118: INE208A01029
A119: ASIANHOTNR | B119: EQ | C119: 171 | D119: 171 | E119: 165.7 | F119: 167.25 | G119: 168.9 | H119: 173.6 | I119: 721 | J119: 121581.35 | K119: 2018-10-17 | L119: 39 | M119: INE363A01022
A120: ASIANPAINT | B120: EQ | C120: 1282.2 | D120: 1282.25 | E120: 1255 | F120: 1259 | G120: 1260 | H120: 1267.6 | I120: 698043 | J120: 884831111.8 | K120: 2018-10-17 | L120: 27346 | M120: INE021A01026
A121: ASIANTILES | B121: EQ | C121: 191.7 | D121: 196.4 | E121: 181 | F121: 182.55 | G121: 181.5 | H121: 189.55 | I121: 71595 | J121: 13420083.4 | K121: 2018-10-17 | L121: 1691 | M121: INE022I01019
A122: ASPINWALL | B122: EQ | C122: 187.05 | D122: 190.9 | E122: 181.55 | F122: 185.85 | G122: 188 | H122: 187.05 | I122: 1685 | J122: 314471.55 | K122: 2018-10-17 | L122: 34 | M122: INE991I01015
A123: ASTEC | B123: EQ | C123: 577.9 | D123: 577.9 | E123: 550.1 | F123: 557.25 | G123: 564 | H123: 563.75 | I123: 20094 | J123: 11321136.05 | K123: 2018-10-17 | L123: 835 | M123: INE563J01010
A124: ASTERDM | B124: EQ | C124: 169 | D124: 169.8 | E124: 165.15 | F124: 169.2 | G124: 169.05 | H124: 166 | I124: 73483 | J124: 12381170.1 | K124: 2018-10-17 | L124: 1449 | M124: INE914M01019
A125: ASTRAL | B125: EQ | C125: 962.2 | D125: 977 | E125: 932.5 | F125: 961.45 | G125: 956 | H125: 950.65 | I125: 25193 | J125: 24038566.15 | K125: 2018-10-17 | L125: 2990 | M125: INE006I01046
A126: ASTRAMICRO | B126: EQ | C126: 83 | D126: 83.75 | E126: 79.75 | F126: 80.2 | G126: 80.25 | H126: 82.25 | I126: 86170 | J126: 7046204.5 | K126: 2018-10-17 | L126: 993 | M126: INE386C01029
A127: ASTRAZEN | B127: EQ | C127: 1720 | D127: 1723.85 | E127: 1645 | F127: 1655.5 | G127: 1660 | H127: 1694.3 | I127: 14306 | J127: 24009728.7 | K127: 2018-10-17 | L127: 1158 | M127: INE203A01020
A128: ASTRON | B128: EQ | C128: 121.8 | D128: 122.9 | E128: 114.15 | F128: 115.4 | G128: 115.95 | H128: 120.55 | I128: 172701 | J128: 20471002.65 | K128: 2018-10-17 | L128: 2735 | M128: INE646X01014
A129: ATFL | B129: EQ | C129: 528 | D129: 531.7 | E129: 511.35 | F129: 519.8 | G129: 514.15 | H129: 525.2 | I129: 3500 | J129: 1838429.9 | K129: 2018-10-17 | L129: 182 | M129: INE209A01019
A130: ATLANTA | B130: EQ | C130: 24.6 | D130: 24.6 | E130: 24.55 | F130: 24.6 | G130: 24.6 | H130: 23.45 | I130: 59110 | J130: 1454098.05 | K130: 2018-10-17 | L130: 269 | M130: INE285H01022
A131: ATNINTER | B131: BE | C131: 0.15 | D131: 0.15 | E131: 0.1 | F131: 0.1 | G131: 0.1 | H131: 0.15 | I131: 4601 | J131: 663.6 | K131: 2018-10-17 | L131: 5 | M131: INE803A01027
A132: ATUL | B132: EQ | C132: 3390 | D132: 3400 | E132: 3209 | F132: 3227.5 | G132: 3215 | H132: 3365.95 | I132: 12000 | J132: 39602701.45 | K132: 2018-10-17 | L132: 2178 | M132: INE100A01010
A133: ATULAUTO | B133: EQ | C133: 335.95 | D133: 344.95 | E133: 320.6 | F133: 322.8 | G133: 321.5 | H133: 332.1 | I133: 12029 | J133: 3993385.95 | K133: 2018-10-17 | L133: 957 | M133: INE951D01028
A134: AUBANK | B134: EQ | C134: 631.55 | D134: 637.75 | E134: 592.6 | F134: 596.05 | G134: 597.5 | H134: 631.55 | I134: 275960 | J134: 170346480.6 | K134: 2018-10-17 | L134: 10053 | M134: INE949L01017
A135: AURIONPRO | B135: EQ | C135: 168 | D135: 172 | E135: 155.1 | F135: 156.75 | G135: 157 | H135: 163.9 | I135: 9693 | J135: 1560919.4 | K135: 2018-10-17 | L135: 354 | M135: INE132H01018
A136: AUROPHARMA | B136: EQ | C136: 780.05 | D136: 784.25 | E136: 746.25 | F136: 756.3 | G136: 754 | H136: 775.5 | I136: 2247685 | J136: 1721833919 | K136: 2018-10-17 | L136: 48790 | M136: INE406A01037
A137: AUSOMENT | B137: EQ | C137: 54.3 | D137: 56.6 | E137: 54.1 | F137: 54.8 | G137: 55 | H137: 54 | I137: 2799 | J137: 154499.95 | K137: 2018-10-17 | L137: 95 | M137: INE218C01016
A138: AUTOAXLES | B138: EQ | C138: 1245 | D138: 1259.8 | E138: 1190 | F138: 1196.7 | G138: 1203 | H138: 1223.05 | I138: 15836 | J138: 19322423.05 | K138: 2018-10-17 | L138: 1366 | M138: INE449A01011
A139: AUTOIND | B139: EQ | C139: 67.8 | D139: 67.8 | E139: 64 | F139: 65.05 | G139: 64.3 | H139: 66.7 | I139: 38434 | J139: 2526032.2 | K139: 2018-10-17 | L139: 598 | M139: INE718H01014
A140: AUTOLITIND | B140: EQ | C140: 44 | D140: 44.15 | E140: 41 | F140: 41.5 | G140: 42 | H140: 43.45 | I140: 6510 | J140: 275447.7 | K140: 2018-10-17 | L140: 83 | M140: INE448A01013
A141: AVADHSUGAR | B141: EQ | C141: 517 | D141: 524 | E141: 486.7 | F141: 487.4 | G141: 489.5 | H141: 512.3 | I141: 88044 | J141: 44518448.65 | K141: 2018-10-17 | L141: 3529 | M141: INE349W01017
A142: AVANTIFEED | B142: EQ | C142: 429.95 | D142: 435.2 | E142: 415 | F142: 418.35 | G142: 419.1 | H142: 423 | I142: 348308 | J142: 146849671.2 | K142: 2018-10-17 | L142: 9225 | M142: INE871C01038
A143: AVTNPL | B143: EQ | C143: 28.65 | D143: 29.45 | E143: 27.25 | F143: 27.6 | G143: 27.55 | H143: 28.65 | I143: 48107 | J143: 1351239 | K143: 2018-10-17 | L143: 317 | M143: INE488D01021
A144: AXISBANK | B144: EQ | C144: 594.75 | D144: 598.8 | E144: 566.6 | F144: 576.05 | G144: 576 | H144: 588.85 | I144: 9609195 | J144: 5555888342 | K144: 2018-10-17 | L144: 160853 | M144: INE238A01034
A145: AXISCADES | B145: EQ | C145: 74.55 | D145: 76 | E145: 68.5 | F145: 69.35 | G145: 68.8 | H145: 74.5 | I145: 51987 | J145: 3728910.65 | K145: 2018-10-17 | L145: 1374 | M145: INE555B01013
A146: AXISGOLD | B146: EQ | C146: 2824 | D146: 2824 | E146: 2810 | F146: 2810.8 | G146: 2810 | H146: 2821.15 | I146: 53 | J146: 149348.2 | K146: 2018-10-17 | L146: 16 | M146: INF846K01347
A147: AXISNIFTY | B147: EQ | C147: 1090.13 | D147: 1090.13 | E147: 1067.6 | F147: 1067.6 | G147: 1067.6 | H147: 1081.45 | I147: 38 | J147: 40770.21 | K147: 2018-10-17 | L147: 7 | M147: INF846K01ZL0
A148: AYMSYNTEX | B148: EQ | C148: 38 | D148: 40.1 | E148: 37.5 | F148: 39.05 | G148: 39.45 | H148: 38.35 | I148: 26302 | J148: 1025334.2 | K148: 2018-10-17 | L148: 126 | M148: INE193B01039
A149: BAFNAPHARM | B149: EQ | C149: 14.85 | D149: 15.55 | E149: 14.15 | F149: 14.8 | G149: 14.6 | H149: 14.15 | I149: 16178 | J149: 238304.1 | K149: 2018-10-17 | L149: 176 | M149: INE878I01014
A150: BAGFILMS | B150: EQ | C150: 5 | D150: 5 | E150: 4.9 | F150: 5 | G150: 4.95 | H150: 4.8 | I150: 195420 | J150: 976224.9 | K150: 2018-10-17 | L150: 198 | M150: INE116D01028
A151: BAJAJ-AUTO | B151: EQ | C151: 2638 | D151: 2649.65 | E151: 2538 | F151: 2547.8 | G151: 2541 | H151: 2610.5 | I151: 285116 | J151: 737685918.9 | K151: 2018-10-17 | L151: 18560 | M151: INE917I01010
A152: BAJAJCORP | B152: EQ | C152: 393 | D152: 397.95 | E152: 384 | F152: 387.85 | G152: 385.5 | H152: 393.2 | I152: 19443 | J152: 7614545.45 | K152: 2018-10-17 | L152: 1891 | M152: INE933K01021
A153: BAJAJELEC | B153: EQ | C153: 538 | D153: 544 | E153: 510 | F153: 515.15 | G153: 516.25 | H153: 531.3 | I153: 220357 | J153: 116369640.5 | K153: 2018-10-17 | L153: 6588 | M153: INE193E01025
A154: BAJAJFINSV | B154: EQ | C154: 5700 | D154: 5740 | E154: 5350 | F154: 5380.25 | G154: 5400 | H154: 5657.1 | I154: 301825 | J154: 1666509418 | K154: 2018-10-17 | L154: 26416 | M154: INE918I01018
A155: BAJAJHIND | B155: EQ | C155: 10.8 | D155: 10.85 | E155: 9.85 | F155: 10.05 | G155: 10.15 | H155: 10.7 | I155: 6681476 | J155: 69393278.9 | K155: 2018-10-17 | L155: 6866 | M155: INE306A01021
A156: BAJAJHLDNG | B156: EQ | C156: 2640 | D156: 2644.95 | E156: 2560 | F156: 2576.9 | G156: 2564.5 | H156: 2625.7 | I156: 5050 | J156: 13153431.55 | K156: 2018-10-17 | L156: 1258 | M156: INE118A01012
A157: BAJFINANCE | B157: EQ | C157: 2340 | D157: 2369.25 | E157: 2132.85 | F157: 2150.5 | G157: 2148 | H157: 2308.85 | I157: 3811985 | J157: 8503887800 | K157: 2018-10-17 | L157: 141863 | M157: INE296A01024
A158: BALAJITELE | B158: EQ | C158: 105.9 | D158: 105.9 | E158: 105 | F158: 105 | G158: 105 | H158: 105.1 | I158: 27648 | J158: 2905971.15 | K158: 2018-10-17 | L158: 305 | M158: INE794B01026
A159: BALAMINES | B159: EQ | C159: 511.95 | D159: 518.35 | E159: 497.75 | F159: 506.75 | G159: 505.15 | H159: 497.85 | I159: 21438 | J159: 10873621.9 | K159: 2018-10-17 | L159: 1393 | M159: INE050E01027
A160: BALKRISHNA | B160: EQ | C160: 60.75 | D160: 61 | E160: 53.8 | F160: 54.35 | G160: 54.8 | H160: 57.9 | I160: 18524 | J160: 1022319.6 | K160: 2018-10-17 | L160: 302 | M160: INE875R01011
A161: BALKRISIND | B161: EQ | C161: 1056.25 | D161: 1059 | E161: 1025.7 | F161: 1031.05 | G161: 1029 | H161: 1046.65 | I161: 547516 | J161: 567591844.1 | K161: 2018-10-17 | L161: 13990 | M161: INE787D01026
A162: BALLARPUR | B162: EQ | C162: 6.5 | D162: 6.6 | E162: 6.25 | F162: 6.35 | G162: 6.45 | H162: 6.45 | I162: 1471744 | J162: 9472553.05 | K162: 2018-10-17 | L162: 863 | M162: INE294A01037
A163: BALMLAWRIE | B163: EQ | C163: 194.95 | D163: 196.55 | E163: 191.45 | F163: 192.15 | G163: 192.55 | H163: 192.85 | I163: 37277 | J163: 7195973.8 | K163: 2018-10-17 | L163: 904 | M163: INE164A01016
A164: BALPHARMA | B164: EQ | C164: 86 | D164: 87.6 | E164: 82.65 | F164: 83.1 | G164: 83.7 | H164: 85 | I164: 32761 | J164: 2800900.95 | K164: 2018-10-17 | L164: 549 | M164: INE083D01012
A165: BALRAMCHIN | B165: EQ | C165: 99.9 | D165: 101.2 | E165: 85.1 | F165: 93.35 | G165: 94.05 | H165: 98.25 | I165: 10089337 | J165: 975595135.7 | K165: 2018-10-17 | L165: 52890 | M165: INE119A01028
A166: BANARBEADS | B166: EQ | C166: 50.1 | D166: 51 | E166: 49 | F166: 50.3 | G166: 50.35 | H166: 51 | I166: 1192 | J166: 59757.2 | K166: 2018-10-17 | L166: 22 | M166: INE655B01011
A167: BANARISUG | B167: EQ | C167: 1769.95 | D167: 1770 | E167: 1650.1 | F167: 1653.8 | G167: 1650.25 | H167: 1749.25 | I167: 1494 | J167: 2531120.55 | K167: 2018-10-17 | L167: 217 | M167: INE459A01010
A168: BANCOINDIA | B168: EQ | C168: 193.55 | D168: 197.3 | E168: 188.55 | F168: 190.75 | G168: 191 | H168: 192 | I168: 38911 | J168: 7549810.1 | K168: 2018-10-17 | L168: 1888 | M168: INE213C01025
A169: BANDHANBNK | B169: EQ | C169: 466 | D169: 471.95 | E169: 450.55 | F169: 454.45 | G169: 454.5 | H169: 463.95 | I169: 766677 | J169: 352972350.9 | K169: 2018-10-17 | L169: 23129 | M169: INE545U01014
A170: BANG | B170: EQ | C170: 51 | D170: 51.45 | E170: 48.65 | F170: 49.5 | G170: 48.65 | H170: 50.25 | I170: 5691 | J170: 284000.3 | K170: 2018-10-17 | L170: 57 | M170: INE863I01016
A171: BANKBARODA | B171: EQ | C171: 102.45 | D171: 102.65 | E171: 98.75 | F171: 99.6 | G171: 99.7 | H171: 100.25 | I171: 22282115 | J171: 2230744232 | K171: 2018-10-17 | L171: 78178 | M171: INE028A01039
A172: BANKBEES | B172: EQ | C172: 2630 | D172: 2638.47 | E172: 2555.85 | F172: 2564.82 | G172: 2564.7 | H172: 2612.83 | I172: 5523 | J172: 14423337.34 | K172: 2018-10-17 | L172: 795 | M172: INF732E01078
A173: BANKINDIA | B173: EQ | C173: 81.55 | D173: 81.9 | E173: 76.45 | F173: 76.75 | G173: 76.8 | H173: 80.05 | I173: 6810399 | J173: 536094537.9 | K173: 2018-10-17 | L173: 20335 | M173: INE084A01016
A174: BANSWRAS | B174: EQ | C174: 71 | D174: 71 | E174: 64.05 | F174: 66.9 | G174: 65.95 | H174: 70.15 | I174: 4166 | J174: 283484.6 | K174: 2018-10-17 | L174: 105 | M174: INE629D01012
A175: BARTRONICS | B175: EQ | C175: 7.5 | D175: 7.7 | E175: 7.2 | F175: 7.35 | G175: 7.4 | H175: 7.1 | I175: 56788 | J175: 424257.7 | K175: 2018-10-17 | L175: 185 | M175: INE855F01034
A176: BASF | B176: EQ | C176: 1720 | D176: 1720 | E176: 1658 | F176: 1665.45 | G176: 1667.6 | H176: 1687.75 | I176: 11518 | J176: 19421024 | K176: 2018-10-17 | L176: 985 | M176: INE373A01013
A177: BASML | B177: EQ | C177: 209 | D177: 209 | E177: 200.1 | F177: 202.05 | G177: 200.1 | H177: 208.3 | I177: 133 | J177: 27663.6 | K177: 2018-10-17 | L177: 7 | M177: INE186H01014
A178: BATAINDIA | B178: EQ | C178: 949 | D178: 954.75 | E178: 905.1 | F178: 911.35 | G178: 915.15 | H178: 941 | I178: 761943 | J178: 708364379 | K178: 2018-10-17 | L178: 18719 | M178: INE176A01028
A179: BAYERCROP | B179: EQ | C179: 4292.3 | D179: 4338 | E179: 4184.45 | F179: 4245.85 | G179: 4320 | H179: 4292.3 | I179: 5498 | J179: 23252216.55 | K179: 2018-10-17 | L179: 1316 | M179: INE462A01022
A180: BBL | B180: EQ | C180: 1200 | D180: 1200 | E180: 1129.7 | F180: 1135.75 | G180: 1135 | H180: 1175.1 | I180: 5372 | J180: 6220157.95 | K180: 2018-10-17 | L180: 812 | M180: INE464A01028
A181: BBTC | B181: EQ | C181: 1325.3 | D181: 1336 | E181: 1252 | F181: 1262 | G181: 1269 | H181: 1311.85 | I181: 143037 | J181: 185088883.3 | K181: 2018-10-17 | L181: 7284 | M181: INE050A01025
A182: BCG | B182: EQ | C182: 4.05 | D182: 4.1 | E182: 3.65 | F182: 3.75 | G182: 3.8 | H182: 3.95 | I182: 422104 | J182: 1617071.85 | K182: 2018-10-17 | L182: 353 | M182: INE425B01027
A183: BDL | B183: EQ | C183: 298 | D183: 299 | E183: 282.75 | F183: 285.75 | G183: 282.75 | H183: 287.65 | I183: 10539 | J183: 3044582.75 | K183: 2018-10-17 | L183: 785 | M183: INE171Z01018
A184: BEARDSELL | B184: EQ | C184: 25.3 | D184: 25.4 | E184: 23.8 | F184: 23.95 | G184: 23.8 | H184: 25.55 | I184: 1556 | J184: 37932.9 | K184: 2018-10-17 | L184: 31 | M184: INE520H01022
A185: BEDMUTHA | B185: BE | C185: 22.2 | D185: 22.2 | E185: 20.35 | F185: 20.8 | G185: 20.8 | H185: 21.15 | I185: 558 | J185: 11643.95 | K185: 2018-10-17 | L185: 16 | M185: INE844K01012
A186: BEL | B186: EQ | C186: 88.6 | D186: 89.25 | E186: 84.85 | F186: 85.5 | G186: 85.3 | H186: 88 | I186: 3924030 | J186: 340043135.4 | K186: 2018-10-17 | L186: 19362 | M186: INE263A01024
A187: BEML | B187: EQ | C187: 633 | D187: 639.2 | E187: 580.55 | F187: 588.55 | G187: 583.7 | H187: 629.4 | I187: 1192210 | J187: 726510417 | K187: 2018-10-17 | L187: 26453 | M187: INE258A01016
A188: BEPL | B188: EQ | C188: 143.4 | D188: 145.75 | E188: 133.1 | F188: 134.65 | G188: 134.5 | H188: 142.3 | I188: 1002155 | J188: 138658414.2 | K188: 2018-10-17 | L188: 7271 | M188: INE922A01025
A189: BERGEPAINT | B189: EQ | C189: 293.7 | D189: 294.7 | E189: 287.3 | F189: 292.7 | G189: 293.05 | H189: 291.55 | I189: 718073 | J189: 209185704.9 | K189: 2018-10-17 | L189: 11182 | M189: INE463A01038
A190: BFINVEST | B190: EQ | C190: 259.4 | D190: 263 | E190: 239.3 | F190: 241.5 | G190: 241.3 | H190: 257 | I190: 88440 | J190: 22303931.25 | K190: 2018-10-17 | L190: 3070 | M190: INE878K01010
A191: BFUTILITIE | B191: EQ | C191: 224.9 | D191: 228 | E191: 210 | F191: 211.45 | G191: 212.5 | H191: 222.35 | I191: 208987 | J191: 45392446 | K191: 2018-10-17 | L191: 6178 | M191: INE243D01012
A192: BGLOBAL | B192: BE | C192: 2.3 | D192: 2.4 | E192: 2.3 | F192: 2.35 | G192: 2.35 | H192: 2.3 | I192: 13108 | J192: 31261.95 | K192: 2018-10-17 | L192: 23 | M192: INE224M01013
A193: BGRENERGY | B193: EQ | C193: 63.25 | D193: 64.8 | E193: 58.25 | F193: 58.6 | G193: 58.9 | H193: 62 | I193: 165178 | J193: 10050576.95 | K193: 2018-10-17 | L193: 2674 | M193: INE661I01014
A194: BHAGERIA | B194: EQ | C194: 320 | D194: 328 | E194: 305 | F194: 308.2 | G194: 310 | H194: 316.9 | I194: 20842 | J194: 6532446 | K194: 2018-10-17 | L194: 579 | M194: INE354C01027
A195: BHAGYANGR | B195: EQ | C195: 32 | D195: 33.6 | E195: 31.95 | F195: 32.6 | G195: 32.8 | H195: 32 | I195: 9204 | J195: 301392.55 | K195: 2018-10-17 | L195: 112 | M195: INE458B01036
A196: BHAGYAPROP | B196: EQ | C196: 23.15 | D196: 24.75 | E196: 23.15 | F196: 24.1 | G196: 24.45 | H196: 23.75 | I196: 2590 | J196: 62087.9 | K196: 2018-10-17 | L196: 21 | M196: INE363W01018
A197: BHANDARI | B197: EQ | C197: 1.9 | D197: 1.9 | E197: 1.8 | F197: 1.85 | G197: 1.85 | H197: 1.85 | I197: 193306 | J197: 353952.4 | K197: 2018-10-17 | L197: 91 | M197: INE474E01029
A198: BHARATFIN | B198: EQ | C198: 1014.4 | D198: 1022.8 | E198: 980.6 | F198: 983.55 | G198: 982.95 | H198: 1005.15 | I198: 1511775 | J198: 1505117629 | K198: 2018-10-17 | L198: 29628 | M198: INE180K01011
A199: BHARATFORG | B199: EQ | C199: 584.6 | D199: 586.75 | E199: 559.05 | F199: 560.65 | G199: 562 | H199: 578.25 | I199: 866039 | J199: 495599316.4 | K199: 2018-10-17 | L199: 15684 | M199: INE465A01025
A200: BHARATGEAR | B200: EQ | C200: 191.5 | D200: 191.5 | E200: 175.6 | F200: 176.95 | G200: 176.2 | H200: 188.05 | I200: 90039 | J200: 16375505.15 | K200: 2018-10-17 | L200: 2766 | M200: INE561C01019
... 1438 more rows
